Workbook

Sheet 24
B2: ADHÉRENTS NOUVELLE AQUITAINE 2017 - 2018
H3: DORDOGNE (24)
B4: CLUBS | C4: S65 | D4: S50 | F4: U20 | G4: U18 | H4: U16 | I4: U14 | J4: U12 | K4: U10 | L4: U8 | M4: Total | N4: TF | O4: S65 | P4: S50 | R4: U20 | S4: U18 | T4: U16 | U4: U14 | V4: U12 | W4: U10 | X4: U8 | Y4: Total | Z4: TM | AA4: TOTAL | AB4: Var.
C5: VF | D5: SF+ | E5: SF | F5: JF | G5: CF | H5: MF | I5: BF | J5: PuF | K5: PoF | L5: PpF | M5: JeunesF | O5: VM | P5: SM+ | Q5: SM | R5: JM | S5: CM | T5: MM | U5: BM | V5: PuM | W5: PoM | X5: PpM | Y5: JeunesM
B6: Cercle d'Échecs Cyrano | C6: ='FEUILLE de SAISIE'!D7 -> 1 | D6: ='FEUILLE de SAISIE'!E7 -> 0 | E6: ='FEUILLE de SAISIE'!F7 -> 0 | F6: ='FEUILLE de SAISIE'!G7 -> 0 | G6: ='FEUILLE de SAISIE'!H7 -> 0 | H6: ='FEUILLE de SAISIE'!I7 -> 0 | I6: ='FEUILLE de SAISIE'!J7 -> 0 | J6: ='FEUILLE de SAISIE'!K7 -> 0 | K6: ='FEUILLE de SAISIE'!L7 -> 0 | L6: ='FEUILLE de SAISIE'!M7 -> 1 | M6: =SUM(F6:L6) -> 1 | N6: =SUM(C6:L6) -> 2 | O6: ='FEUILLE de SAISIE'!N7 -> 9 | P6: ='FEUILLE de SAISIE'!O7 -> 5 | Q6: ='FEUILLE de SAISIE'!P7 -> 5 | R6: ='FEUILLE de SAISIE'!Q7 -> 0 | S6: ='FEUILLE de SAISIE'!R7 -> 0 | T6: ='FEUILLE de SAISIE'!S7 -> 0 | U6: ='FEUILLE de SAISIE'!T7 -> 1 | V6: ='FEUILLE de SAISIE'!U7 -> 0 | W6: ='FEUILLE de SAISIE'!V7 -> 1 | X6: ='FEUILLE de SAISIE'!W7 -> 0 | Y6: =SUM(R6:X6) -> 2 | Z6: =SUM(O6:X6) -> 21 | AA6: =N6+Z6 -> 23 | AB6: =AA6-15 -> 8
B7: Le Fleix-LaTour Infernale (ALAC) | C7: ='FEUILLE de SAISIE'!D9 -> 0 | D7: ='FEUILLE de SAISIE'!E9 -> 0 | E7: ='FEUILLE de SAISIE'!F9 -> 1 | F7: ='FEUILLE de SAISIE'!G9 -> 0 | G7: ='FEUILLE de SAISIE'!H9 -> 0 | H7: ='FEUILLE de SAISIE'!I9 -> 0 | I7: ='FEUILLE de SAISIE'!J9 -> 0 | J7: ='FEUILLE de SAISIE'!K9 -> 0 | K7: ='FEUILLE de SAISIE'!L9 -> 0 | L7: ='FEUILLE de SAISIE'!M9 -> 0 | M7: =SUM(F7:L7) -> 0 | N7: =SUM(C7:L7) -> 1 | O7: ='FEUILLE de SAISIE'!N9 -> 7 | P7: ='FEUILLE de SAISIE'!O9 -> 4 | Q7: ='FEUILLE de SAISIE'!P9 -> 4 | R7: ='FEUILLE de SAISIE'!Q9 -> 0 | S7: ='FEUILLE de SAISIE'!R9 -> 0 | T7: ='FEUILLE de SAISIE'!S9 -> 0 | U7: ='FEUILLE de SAISIE'!T9 -> 0 | V7: ='FEUILLE de SAISIE'!U9 -> 0 | W7: ='FEUILLE de SAISIE'!V9 -> 0 | X7: ='FEUILLE de SAISIE'!W9 -> 0 | Y7: =SUM(R7:X7) -> 0 | Z7: =SUM(O7:X7) -> 15 | AA7: =N7+Z7 -> 16 | AB7: =AA7-15 -> 1
B8: Échiquier du Nontronnais | C8: ='FEUILLE de SAISIE'!D13 -> 0 | D8: ='FEUILLE de SAISIE'!E13 -> 4 | E8: ='FEUILLE de SAISIE'!F13 -> 1 | F8: ='FEUILLE de SAISIE'!G13 -> 0 | G8: ='FEUILLE de SAISIE'!H13 -> 0 | H8: ='FEUILLE de SAISIE'!I13 -> 0 | I8: ='FEUILLE de SAISIE'!J13 -> 2 | J8: ='FEUILLE de SAISIE'!K13 -> 2 | K8: ='FEUILLE de SAISIE'!L13 -> 1 | L8: ='FEUILLE de SAISIE'!M13 -> 0 | M8: 5 | N8: 10 | O8: ='FEUILLE de SAISIE'!N13 -> 3 | P8: ='FEUILLE de SAISIE'!O13 -> 9 | Q8: ='FEUILLE de SAISIE'!P13 -> 9 | R8: ='FEUILLE de SAISIE'!Q13 -> 0 | S8: ='FEUILLE de SAISIE'!R13 -> 1 | T8: ='FEUILLE de SAISIE'!S13 -> 0 | U8: ='FEUILLE de SAISIE'!T13 -> 1 | V8: ='FEUILLE de SAISIE'!U13 -> 6 | W8: ='FEUILLE de SAISIE'!V13 -> 1 | X8: ='FEUILLE de SAISIE'!W13 -> 2 | Y8: 11 | Z8: 32 | AA8: 42 | AB8: =AA8-23 -> 19
B9: Échiquier Salignacois | C9: ='FEUILLE de SAISIE'!D15 -> 0 | D9: ='FEUILLE de SAISIE'!E15 -> 0 | E9: ='FEUILLE de SAISIE'!F15 -> 0 | F9: ='FEUILLE de SAISIE'!G15 -> 0 | G9: ='FEUILLE de SAISIE'!H15 -> 0 | H9: ='FEUILLE de SAISIE'!I15 -> 1 | I9: ='FEUILLE de SAISIE'!J15 -> 1 | J9: ='FEUILLE de SAISIE'!K15 -> 2 | K9: ='FEUILLE de SAISIE'!L15 -> 1 | L9: ='FEUILLE de SAISIE'!M15 -> 1 | M9: 6 | N9: 6 | O9: ='FEUILLE de SAISIE'!N15 -> 0 | P9: ='FEUILLE de SAISIE'!O15 -> 1 | Q9: ='FEUILLE de SAISIE'!P15 -> 3 | R9: ='FEUILLE de SAISIE'!Q15 -> 0 | S9: ='FEUILLE de SAISIE'!R15 -> 2 | T9: ='FEUILLE de SAISIE'!S15 -> 9 | U9: ='FEUILLE de SAISIE'!T15 -> 3 | V9: ='FEUILLE de SAISIE'!U15 -> 5 | W9: ='FEUILLE de SAISIE'!V15 -> 4 | X9: ='FEUILLE de SAISIE'!W15 -> 0 | Y9: 23 | Z9: 27 | AA9: 33 | AB9: =AA9-53 -> -20
B10: L' Échiquier de Saint Sour | C10: ='FEUILLE de SAISIE'!D17 -> 0 | D10: ='FEUILLE de SAISIE'!E17 -> 1 | E10: ='FEUILLE de SAISIE'!F17 -> 0 | F10: ='FEUILLE de SAISIE'!G17 -> 0 | G10: ='FEUILLE de SAISIE'!H17 -> 0 | H10: ='FEUILLE de SAISIE'!I17 -> 0 | I10: ='FEUILLE de SAISIE'!J17 -> 0 | J10: ='FEUILLE de SAISIE'!K17 -> 0 | K10: ='FEUILLE de SAISIE'!L17 -> 0 | L10: ='FEUILLE de SAISIE'!M17 -> 1 | M10: 1 | N10: 2 | O10: ='FEUILLE de SAISIE'!N17 -> 0 | P10: ='FEUILLE de SAISIE'!O17 -> 0 | Q10: ='FEUILLE de SAISIE'!P17 -> 1 | R10: ='FEUILLE de SAISIE'!Q17 -> 0 | S10: ='FEUILLE de SAISIE'!R17 -> 0 | T10: ='FEUILLE de SAISIE'!S17 -> 0 | U10: ='FEUILLE de SAISIE'!T17 -> 1 | V10: ='FEUILLE de SAISIE'!U17 -> 0 | W10: ='FEUILLE de SAISIE'!V17 -> 0 | X10: ='FEUILLE de SAISIE'!W17 -> 0 | Y10: 1 | Z10: 2 | AA10: 4 | AB10: =AA10-68 -> -64
B11: TOTAUX CDJE 24 | C11: =SUM(C6:C10) -> 1 | D11: =SUM(D6:D10) -> 5 | E11: 2 | F11: 0 | G11: 0 | H11: 1 | I11: 3 | J11: 4 | K11: 2 | L11: =SUM(L6:L10) -> 3 | M11: 13 | N11: 21 | O11: 19 | P11: 19 | Q11: 22 | R11: 0 | S11: 3 | T11: 9 | U11: 6 | V11: 11 | W11: 6 | X11: 2 | Y11: 37 | Z11: 97 | AA11: =SUM(AA6:AA10) -> 118 | AB11: =SUM(AB6:AB10) -> -56

Sheet 33
B2: ADHÉRENTS NOUVELLE AQUITAINE 2017 - 2018
I3: GIRONDE (33)
B4: CLUBS | C4: S65 | D4: S50 | F4: U20 | G4: U18 | H4: U16 | I4: U14 | J4: U12 | K4: U10 | L4: U8 | M4: Total | N4: TF | O4: S65 | P4: S50 | R4: U20 | S4: U18 | T4: U16 | U4: U14 | V4: U12 | W4: U10 | X4: U8 | Y4: Total | Z4: TM | AA4: TOTAL | AB4: Var.
C5: VF | D5: SF+ | E5: SF | F5: JF | G5: CF | H5: MF | I5: BF | J5: PuF | K5: PoF | L5: PpF | M5: JeunesF | O5: VM | P5: SM+ | Q5: SM | R5: JM | S5: CM | T5: MM | U5: BM | V5: PuM | W5: PoM | X5: PpM | Y5: JeunesM
B6: AGJA-Échiquier Aquitaine | C6: ='FEUILLE de SAISIE'!D24 -> 2 | D6: ='FEUILLE de SAISIE'!E24 -> 3 | E6: ='FEUILLE de SAISIE'!F24 -> 4 | F6: ='FEUILLE de SAISIE'!G24 -> 2 | G6: ='FEUILLE de SAISIE'!H24 -> 2 | H6: ='FEUILLE de SAISIE'!I24 -> 1 | I6: ='FEUILLE de SAISIE'!J24 -> 1 | J6: ='FEUILLE de SAISIE'!K24 -> 1 | K6: ='FEUILLE de SAISIE'!L24 -> 5 | L6: ='FEUILLE de SAISIE'!M24 -> 4 | M6: =SUM(F6:L6) -> 16 | N6: =SUM(C6:L6) -> 25 | O6: ='FEUILLE de SAISIE'!N24 -> 16 | P6: ='FEUILLE de SAISIE'!O24 -> 9 | Q6: ='FEUILLE de SAISIE'!P24 -> 19 | R6: ='FEUILLE de SAISIE'!Q24 -> 4 | S6: ='FEUILLE de SAISIE'!R24 -> 2 | T6: ='FEUILLE de SAISIE'!S24 -> 3 | U6: ='FEUILLE de SAISIE'!T24 -> 10 | V6: ='FEUILLE de SAISIE'!U24 -> 14 | W6: ='FEUILLE de SAISIE'!V24 -> 17 | X6: ='FEUILLE de SAISIE'!W24 -> 9 | Y6: =SUM(R6:X6) -> 59 | Z6: =SUM(O6:X6) -> 103 | AA6: =N6+Z6 -> 128 | AB6: =AA6-136 -> -8
B7: Bordeaux-ASPOM Échecs | C7: ='FEUILLE de SAISIE'!D30 -> 1 | D7: ='FEUILLE de SAISIE'!E30 -> 1 | E7: ='FEUILLE de SAISIE'!F30 -> 0 | F7: ='FEUILLE de SAISIE'!G30 -> 1 | G7: ='FEUILLE de SAISIE'!H30 -> 0 | H7: ='FEUILLE de SAISIE'!I30 -> 3 | I7: ='FEUILLE de SAISIE'!J30 -> 7 | J7: ='FEUILLE de SAISIE'!K30 -> 7 | K7: ='FEUILLE de SAISIE'!L30 -> 8 | L7: ='FEUILLE de SAISIE'!M30 -> 5 | M7: =SUM(F7:L7) -> 31 | N7: =SUM(C7:L7) -> 33 | O7: ='FEUILLE de SAISIE'!N30 -> 7 | P7: ='FEUILLE de SAISIE'!O30 -> 17 | Q7: ='FEUILLE de SAISIE'!P30 -> 28 | R7: ='FEUILLE de SAISIE'!Q30 -> 1 | S7: ='FEUILLE de SAISIE'!R30 -> 0 | T7: ='FEUILLE de SAISIE'!S30 -> 5 | U7: ='FEUILLE de SAISIE'!T30 -> 12 | V7: ='FEUILLE de SAISIE'!U30 -> 8 | W7: ='FEUILLE de SAISIE'!V30 -> 18 | X7: ='FEUILLE de SAISIE'!W30 -> 13 | Y7: =SUM(R7:X7) -> 57 | Z7: =SUM(O7:X7) -> 109 | AA7: =N7+Z7 -> 142 | AB7: =AA7-183 -> -41
B8: Union Saint Bruno-Bordeaux Échecs | C8: ='FEUILLE de SAISIE'!D35 -> 0 | D8: ='FEUILLE de SAISIE'!E35 -> 1 | E8: ='FEUILLE de SAISIE'!F35 -> 1 | F8: ='FEUILLE de SAISIE'!G35 -> 0 | G8: ='FEUILLE de SAISIE'!H35 -> 1 | H8: ='FEUILLE de SAISIE'!I35 -> 1 | I8: ='FEUILLE de SAISIE'!J35 -> 1 | J8: ='FEUILLE de SAISIE'!K35 -> 6 | K8: ='FEUILLE de SAISIE'!L35 -> 14 | L8: ='FEUILLE de SAISIE'!M35 -> 5 | M8: 28 | N8: 30 | O8: ='FEUILLE de SAISIE'!N35 -> 0 | P8: ='FEUILLE de SAISIE'!O35 -> 7 | Q8: ='FEUILLE de SAISIE'!P35 -> 10 | R8: ='FEUILLE de SAISIE'!Q35 -> 0 | S8: ='FEUILLE de SAISIE'!R35 -> 4 | T8: ='FEUILLE de SAISIE'!S35 -> 4 | U8: ='FEUILLE de SAISIE'!T35 -> 3 | V8: ='FEUILLE de SAISIE'!U35 -> 9 | W8: ='FEUILLE de SAISIE'!V35 -> 34 | X8: ='FEUILLE de SAISIE'!W35 -> 11 | Y8: 65 | Z8: 82 | AA8: 112 | AB8: =AA8-116 -> -4
B9: Échiquier Bordelais | C9: ='FEUILLE de SAISIE'!D45 -> 1 | D9: ='FEUILLE de SAISIE'!E45 -> 3 | E9: ='FEUILLE de SAISIE'!F45 -> 1 | F9: ='FEUILLE de SAISIE'!G45 -> 1 | G9: ='FEUILLE de SAISIE'!H45 -> 2 | H9: ='FEUILLE de SAISIE'!I45 -> 0 | I9: ='FEUILLE de SAISIE'!J45 -> 0 | J9: ='FEUILLE de SAISIE'!K45 -> 5 | K9: ='FEUILLE de SAISIE'!L45 -> 12 | L9: ='FEUILLE de SAISIE'!M45 -> 18 | M9: =SUM(F9:L9) -> 38 | N9: =SUM(C9:L9) -> 43 | O9: ='FEUILLE de SAISIE'!N45 -> 13 | P9: ='FEUILLE de SAISIE'!O45 -> 19 | Q9: ='FEUILLE de SAISIE'!P45 -> 46 | R9: ='FEUILLE de SAISIE'!Q45 -> 5 | S9: ='FEUILLE de SAISIE'!R45 -> 7 | T9: ='FEUILLE de SAISIE'!S45 -> 8 | U9: ='FEUILLE de SAISIE'!T45 -> 11 | V9: ='FEUILLE de SAISIE'!U45 -> 46 | W9: ='FEUILLE de SAISIE'!V45 -> 61 | X9: ='FEUILLE de SAISIE'!W45 -> 46 | Y9: 184 | Z9: 262 | AA9: 305 | AB9: =AA9-349 -> -44
B10: Échiquier Albert Le Grand | C10: ='FEUILLE de SAISIE'!D56 -> 0 | D10: ='FEUILLE de SAISIE'!E56 -> 1 | E10: ='FEUILLE de SAISIE'!F56 -> 3 | F10: ='FEUILLE de SAISIE'!G56 -> 0 | G10: ='FEUILLE de SAISIE'!H56 -> 0 | H10: ='FEUILLE de SAISIE'!I56 -> 4 | I10: ='FEUILLE de SAISIE'!J56 -> 8 | J10: ='FEUILLE de SAISIE'!K56 -> 27 | K10: ='FEUILLE de SAISIE'!L56 -> 22 | L10: ='FEUILLE de SAISIE'!M56 -> 19 | M10: 80 | N10: 84 | O10: ='FEUILLE de SAISIE'!N56 -> 0 | P10: ='FEUILLE de SAISIE'!O56 -> 1 | Q10: ='FEUILLE de SAISIE'!P56 -> 7 | R10: ='FEUILLE de SAISIE'!Q56 -> 1 | S10: ='FEUILLE de SAISIE'!R56 -> 5 | T10: ='FEUILLE de SAISIE'!S56 -> 16 | U10: ='FEUILLE de SAISIE'!T56 -> 19 | V10: ='FEUILLE de SAISIE'!U56 -> 60 | W10: ='FEUILLE de SAISIE'!V56 -> 72 | X10: ='FEUILLE de SAISIE'!W56 -> 30 | Y10: 203 | Z10: 211 | AA10: 295 | AB10: =AA10-50 -> 245
B11: Échiquier Club Créonnais | C11: ='FEUILLE de SAISIE'!D61 -> 1 | D11: ='FEUILLE de SAISIE'!E61 -> 1 | E11: ='FEUILLE de SAISIE'!F61 -> 4 | F11: ='FEUILLE de SAISIE'!G61 -> 0 | G11: ='FEUILLE de SAISIE'!H61 -> 0 | H11: ='FEUILLE de SAISIE'!I61 -> 0 | I11: ='FEUILLE de SAISIE'!J61 -> 3 | J11: ='FEUILLE de SAISIE'!K61 -> 4 | K11: ='FEUILLE de SAISIE'!L61 -> 5 | L11: ='FEUILLE de SAISIE'!M61 -> 2 | M11: 14 | N11: 20 | O11: ='FEUILLE de SAISIE'!N61 -> 9 | P11: ='FEUILLE de SAISIE'!O61 -> 11 | Q11: ='FEUILLE de SAISIE'!P61 -> 8 | R11: ='FEUILLE de SAISIE'!Q61 -> 0 | S11: ='FEUILLE de SAISIE'!R61 -> 1 | T11: ='FEUILLE de SAISIE'!S61 -> 1 | U11: ='FEUILLE de SAISIE'!T61 -> 8 | V11: ='FEUILLE de SAISIE'!U61 -> 10 | W11: ='FEUILLE de SAISIE'!V61 -> 11 | X11: ='FEUILLE de SAISIE'!W61 -> 9 | Y11: 40 | Z11: 68 | AA11: 88 | AB11: =AA11-244 -> -156
B12: Gujan-Mestras Échecs | C12: ='FEUILLE de SAISIE'!D65 -> 0 | D12: ='FEUILLE de SAISIE'!E65 -> 0 | E12: ='FEUILLE de SAISIE'!F65 -> 2 | F12: ='FEUILLE de SAISIE'!G65 -> 0 | G12: ='FEUILLE de SAISIE'!H65 -> 0 | H12: ='FEUILLE de SAISIE'!I65 -> 0 | I12: ='FEUILLE de SAISIE'!J65 -> 2 | J12: ='FEUILLE de SAISIE'!K65 -> 0 | K12: ='FEUILLE de SAISIE'!L65 -> 0 | L12: ='FEUILLE de SAISIE'!M65 -> 1 | M12: 3 | N12: 5 | O12: ='FEUILLE de SAISIE'!N65 -> 10 | P12: ='FEUILLE de SAISIE'!O65 -> 11 | Q12: ='FEUILLE de SAISIE'!P65 -> 10 | R12: ='FEUILLE de SAISIE'!Q65 -> 0 | S12: ='FEUILLE de SAISIE'!R65 -> 1 | T12: ='FEUILLE de SAISIE'!S65 -> 4 | U12: ='FEUILLE de SAISIE'!T65 -> 2 | V12: ='FEUILLE de SAISIE'!U65 -> 4 | W12: ='FEUILLE de SAISIE'!V65 -> 6 | X12: ='FEUILLE de SAISIE'!W65 -> 4 | Y12: 21 | Z12: 52 | AA12: 57 | AB12: =AA12-49 -> 8
B13: Échiquier club Réolais | C13: ='FEUILLE de SAISIE'!D67 -> 0 | D13: ='FEUILLE de SAISIE'!E67 -> 0 | E13: ='FEUILLE de SAISIE'!F67 -> 0 | F13: ='FEUILLE de SAISIE'!G67 -> 0 | G13: ='FEUILLE de SAISIE'!H67 -> 0 | H13: ='FEUILLE de SAISIE'!I67 -> 0 | I13: ='FEUILLE de SAISIE'!J67 -> 0 | J13: ='FEUILLE de SAISIE'!K67 -> 0 | K13: ='FEUILLE de SAISIE'!L67 -> 0 | L13: ='FEUILLE de SAISIE'!M67 -> 0 | M13: 0 | N13: 0 | O13: ='FEUILLE de SAISIE'!N67 -> 1 | P13: ='FEUILLE de SAISIE'!O67 -> 2 | Q13: ='FEUILLE de SAISIE'!P67 -> 3 | R13: ='FEUILLE de SAISIE'!Q67 -> 0 | S13: ='FEUILLE de SAISIE'!R67 -> 0 | T13: ='FEUILLE de SAISIE'!S67 -> 1 | U13: ='FEUILLE de SAISIE'!T67 -> 3 | V13: ='FEUILLE de SAISIE'!U67 -> 0 | W13: ='FEUILLE de SAISIE'!V67 -> 1 | X13: ='FEUILLE de SAISIE'!W67 -> 1 | Y13: 6 | Z13: 12 | AA13: 12 | AB13: =AA13-13 -> -1
B14: Échiquier Médocain | C14: ='FEUILLE de SAISIE'!D72 -> 1 | D14: ='FEUILLE de SAISIE'!E72 -> 3 | E14: ='FEUILLE de SAISIE'!F72 -> 3 | F14: ='FEUILLE de SAISIE'!G72 -> 0 | G14: ='FEUILLE de SAISIE'!H72 -> 0 | H14: ='FEUILLE de SAISIE'!I72 -> 0 | I14: ='FEUILLE de SAISIE'!J72 -> 1 | J14: ='FEUILLE de SAISIE'!K72 -> 0 | K14: ='FEUILLE de SAISIE'!L72 -> 0 | L14: ='FEUILLE de SAISIE'!M72 -> 0 | M14: 1 | N14: 8 | O14: ='FEUILLE de SAISIE'!N72 -> 2 | P14: ='FEUILLE de SAISIE'!O72 -> 7 | Q14: ='FEUILLE de SAISIE'!P72 -> 13 | R14: ='FEUILLE de SAISIE'!Q72 -> 0 | S14: ='FEUILLE de SAISIE'!R72 -> 4 | T14: ='FEUILLE de SAISIE'!S72 -> 1 | U14: ='FEUILLE de SAISIE'!T72 -> 2 | V14: ='FEUILLE de SAISIE'!U72 -> 4 | W14: ='FEUILLE de SAISIE'!V72 -> 3 | X14: ='FEUILLE de SAISIE'!W72 -> 0 | Y14: 14 | Z14: 36 | AA14: 44 | AB14: =AA14-41 -> 3
B15: Échiquier Libournais | C15: ='FEUILLE de SAISIE'!D78 -> 3 | D15: ='FEUILLE de SAISIE'!E78 -> 2 | E15: ='FEUILLE de SAISIE'!F78 -> 2 | F15: ='FEUILLE de SAISIE'!G78 -> 0 | G15: ='FEUILLE de SAISIE'!H78 -> 0 | H15: ='FEUILLE de SAISIE'!I78 -> 1 | I15: ='FEUILLE de SAISIE'!J78 -> 10 | J15: ='FEUILLE de SAISIE'!K78 -> 8 | K15: ='FEUILLE de SAISIE'!L78 -> 8 | L15: ='FEUILLE de SAISIE'!M78 -> 1 | M15: 28 | N15: 35 | O15: ='FEUILLE de SAISIE'!N78 -> 6 | P15: ='FEUILLE de SAISIE'!O78 -> 5 | Q15: ='FEUILLE de SAISIE'!P78 -> 6 | R15: ='FEUILLE de SAISIE'!Q78 -> 0 | S15: ='FEUILLE de SAISIE'!R78 -> 4 | T15: ='FEUILLE de SAISIE'!S78 -> 8 | U15: ='FEUILLE de SAISIE'!T78 -> 17 | V15: ='FEUILLE de SAISIE'!U78 -> 21 | W15: ='FEUILLE de SAISIE'!V78 -> 18 | X15: ='FEUILLE de SAISIE'!W78 -> 8 | Y15: 76 | Z15: 93 | AA15: 128 | AB15: =AA15-118 -> 10
B16: Mérignac Échecs | C16: ='FEUILLE de SAISIE'!D80 -> 0 | D16: ='FEUILLE de SAISIE'!E80 -> 0 | E16: ='FEUILLE de SAISIE'!F80 -> 1 | F16: ='FEUILLE de SAISIE'!G80 -> 0 | G16: ='FEUILLE de SAISIE'!H80 -> 0 | H16: ='FEUILLE de SAISIE'!I80 -> 0 | I16: ='FEUILLE de SAISIE'!J80 -> 0 | J16: ='FEUILLE de SAISIE'!K80 -> 0 | K16: ='FEUILLE de SAISIE'!L80 -> 0 | L16: ='FEUILLE de SAISIE'!M80 -> 0 | M16: 0 | N16: 1 | O16: ='FEUILLE de SAISIE'!N80 -> 2 | P16: ='FEUILLE de SAISIE'!O80 -> 4 | Q16: ='FEUILLE de SAISIE'!P80 -> 2 | R16: ='FEUILLE de SAISIE'!Q80 -> 0 | S16: ='FEUILLE de SAISIE'!R80 -> 0 | T16: ='FEUILLE de SAISIE'!S80 -> 0 | U16: ='FEUILLE de SAISIE'!T80 -> 0 | V16: ='FEUILLE de SAISIE'!U80 -> 0 | W16: ='FEUILLE de SAISIE'!V80 -> 0 | X16: ='FEUILLE de SAISIE'!W80 -> 0 | Y16: 0 | Z16: 8 | AA16: 9 | AB16: =AA16-18 -> -9
B17: Parempuyre Échecs | C17: ='FEUILLE de SAISIE'!D82 -> 0 | D17: ='FEUILLE de SAISIE'!E82 -> 1 | E17: ='FEUILLE de SAISIE'!F82 -> 1 | F17: ='FEUILLE de SAISIE'!G82 -> 1 | G17: ='FEUILLE de SAISIE'!H82 -> 0 | H17: ='FEUILLE de SAISIE'!I82 -> 2 | I17: ='FEUILLE de SAISIE'!J82 -> 0 | J17: ='FEUILLE de SAISIE'!K82 -> 1 | K17: ='FEUILLE de SAISIE'!L82 -> 0 | L17: ='FEUILLE de SAISIE'!M82 -> 1 | M17: 5 | N17: 7 | O17: ='FEUILLE de SAISIE'!N82 -> 2 | P17: ='FEUILLE de SAISIE'!O82 -> 5 | Q17: ='FEUILLE de SAISIE'!P82 -> 4 | R17: ='FEUILLE de SAISIE'!Q82 -> 1 | S17: ='FEUILLE de SAISIE'!R82 -> 6 | T17: ='FEUILLE de SAISIE'!S82 -> 1 | U17: ='FEUILLE de SAISIE'!T82 -> 4 | V17: ='FEUILLE de SAISIE'!U82 -> 1 | W17: ='FEUILLE de SAISIE'!V82 -> 0 | X17: ='FEUILLE de SAISIE'!W82 -> 1 | Y17: 14 | Z17: 25 | AA17: 32 | AB17: =AA17-48 -> -16
B18: Échiquier Tressois | C18: ='FEUILLE de SAISIE'!D87 -> 0 | D18: ='FEUILLE de SAISIE'!E87 -> 0 | E18: ='FEUILLE de SAISIE'!F87 -> 0 | F18: ='FEUILLE de SAISIE'!G87 -> 0 | G18: ='FEUILLE de SAISIE'!H87 -> 0 | H18: ='FEUILLE de SAISIE'!I87 -> 0 | I18: ='FEUILLE de SAISIE'!J87 -> 2 | J18: ='FEUILLE de SAISIE'!K87 -> 3 | K18: ='FEUILLE de SAISIE'!L87 -> 2 | L18: ='FEUILLE de SAISIE'!M87 -> 3 | M18: 10 | N18: 10 | O18: ='FEUILLE de SAISIE'!N87 -> 6 | P18: ='FEUILLE de SAISIE'!O87 -> 10 | Q18: ='FEUILLE de SAISIE'!P87 -> 16 | R18: ='FEUILLE de SAISIE'!Q87 -> 1 | S18: ='FEUILLE de SAISIE'!R87 -> 2 | T18: ='FEUILLE de SAISIE'!S87 -> 8 | U18: ='FEUILLE de SAISIE'!T87 -> 8 | V18: ='FEUILLE de SAISIE'!U87 -> 17 | W18: ='FEUILLE de SAISIE'!V87 -> 14 | X18: ='FEUILLE de SAISIE'!W87 -> 9 | Y18: 59 | Z18: 91 | AA18: 101 | AB18: =AA18-62 -> 39
B19: TOTAUX CDJE 33 | C19: =SUM(C6:C18) -> 9 | D19: =SUM(D6:D18) -> 16 | E19: 22 | F19: 5 | G19: 5 | H19: 12 | I19: 35 | J19: 62 | K19: 76 | L19: 59 | M19: 254 | N19: 301 | O19: 74 | P19: =SUM(P6:P18) -> 108 | Q19: 172 | R19: 13 | S19: 36 | T19: 60 | U19: 99 | V19: 194 | W19: 255 | X19: 141 | Y19: 798 | Z19: 1152 | AA19: 1453 | AB19: =SUM(AB6:AB18) -> 26

Sheet 40
B2: ADHÉRENTS NOUVELLE AQUITAINE 2017 - 2018
I3: LANDES (40)
B4: CLUBS | C4: S65 | D4: S50 | F4: U20 | G4: U18 | H4: U16 | I4: U14 | J4: U12 | K4: U10 | L4: U8 | M4: Total | N4: TF | O4: S65 | P4: S50 | R4: U20 | S4: U18 | T4: U16 | U4: U14 | V4: U12 | W4: U10 | X4: U8 | Y4: Total | Z4: TM | AA4: TOTAL | AB4: Var.
C5: VF | D5: SF+ | E5: SF | F5: JF | G5: CF | H5: MF | I5: BF | J5: PuF | K5: PoF | L5: PpF | M5: JeunesF | O5: VM | P5: SM+ | Q5: SM | R5: JM | S5: CM | T5: MM | U5: BM | V5: PuM | W5: PoM | X5: PpM | Y5: JeunesM
B6: Dax Échiquier Dacquois | C6: ='FEUILLE de SAISIE'!D90 -> 0 | D6: ='FEUILLE de SAISIE'!E90 -> 0 | E6: ='FEUILLE de SAISIE'!F90 -> 0 | F6: ='FEUILLE de SAISIE'!G90 -> 0 | G6: ='FEUILLE de SAISIE'!H90 -> 0 | H6: ='FEUILLE de SAISIE'!I90 -> 0 | I6: ='FEUILLE de SAISIE'!J90 -> 0 | J6: ='FEUILLE de SAISIE'!K90 -> 0 | K6: ='FEUILLE de SAISIE'!L90 -> 1 | L6: ='FEUILLE de SAISIE'!M90 -> 0 | M6: =SUM(F6:L6) -> 1 | N6: =SUM(C6:L6) -> 1 | O6: ='FEUILLE de SAISIE'!N90 -> 15 | P6: ='FEUILLE de SAISIE'!O90 -> 1 | Q6: ='FEUILLE de SAISIE'!P90 -> 2 | R6: ='FEUILLE de SAISIE'!Q90 -> 0 | S6: ='FEUILLE de SAISIE'!R90 -> 1 | T6: ='FEUILLE de SAISIE'!S90 -> 0 | U6: ='FEUILLE de SAISIE'!T90 -> 1 | V6: ='FEUILLE de SAISIE'!U90 -> 4 | W6: ='FEUILLE de SAISIE'!V90 -> 2 | X6: ='FEUILLE de SAISIE'!W90 -> 0 | Y6: =SUM(R6:X6) -> 8 | Z6: =SUM(O6:X6) -> 26 | AA6: =N6+Z6 -> 27 | AB6: =AA6-31 -> -4
B7: Mimizan le Fou Ensablé (ASEM) | C7: ='FEUILLE de SAISIE'!D92 -> 1 | D7: ='FEUILLE de SAISIE'!E92 -> 1 | E7: ='FEUILLE de SAISIE'!F92 -> 0 | F7: ='FEUILLE de SAISIE'!G92 -> 0 | G7: ='FEUILLE de SAISIE'!H92 -> 0 | H7: ='FEUILLE de SAISIE'!I92 -> 0 | I7: ='FEUILLE de SAISIE'!J92 -> 0 | J7: ='FEUILLE de SAISIE'!K92 -> 0 | K7: ='FEUILLE de SAISIE'!L92 -> 0 | L7: ='FEUILLE de SAISIE'!M92 -> 0 | M7: =SUM(F7:L7) -> 0 | N7: =SUM(C7:L7) -> 2 | O7: ='FEUILLE de SAISIE'!N92 -> 4 | P7: ='FEUILLE de SAISIE'!O92 -> 7 | Q7: ='FEUILLE de SAISIE'!P92 -> 3 | R7: ='FEUILLE de SAISIE'!Q92 -> 0 | S7: ='FEUILLE de SAISIE'!R92 -> 0 | T7: ='FEUILLE de SAISIE'!S92 -> 1 | U7: ='FEUILLE de SAISIE'!T92 -> 0 | V7: ='FEUILLE de SAISIE'!U92 -> 0 | W7: ='FEUILLE de SAISIE'!V92 -> 0 | X7: ='FEUILLE de SAISIE'!W92 -> 0 | Y7: =SUM(R7:X7) -> 1 | Z7: =SUM(O7:X7) -> 15 | AA7: =N7+Z7 -> 17 | AB7: =AA7-11 -> 6
B8: Échiquier Montois | C8: ='FEUILLE de SAISIE'!D100 -> 0 | D8: ='FEUILLE de SAISIE'!E100 -> 2 | E8: ='FEUILLE de SAISIE'!F100 -> 4 | F8: ='FEUILLE de SAISIE'!G100 -> 0 | G8: ='FEUILLE de SAISIE'!H100 -> 2 | H8: ='FEUILLE de SAISIE'!I100 -> 0 | I8: ='FEUILLE de SAISIE'!J100 -> 14 | J8: ='FEUILLE de SAISIE'!K100 -> 18 | K8: ='FEUILLE de SAISIE'!L100 -> 11 | L8: ='FEUILLE de SAISIE'!M100 -> 1 | M8: =SUM(F8:L8) -> 46 | N8: 52 | O8: ='FEUILLE de SAISIE'!N100 -> 4 | P8: ='FEUILLE de SAISIE'!O100 -> 14 | Q8: ='FEUILLE de SAISIE'!P100 -> 11 | R8: ='FEUILLE de SAISIE'!Q100 -> 0 | S8: ='FEUILLE de SAISIE'!R100 -> 1 | T8: ='FEUILLE de SAISIE'!S100 -> 12 | U8: ='FEUILLE de SAISIE'!T100 -> 37 | V8: ='FEUILLE de SAISIE'!U100 -> 53 | W8: ='FEUILLE de SAISIE'!V100 -> 27 | X8: ='FEUILLE de SAISIE'!W100 -> 4 | Y8: 134 | Z8: 163 | AA8: 215 | AB8: =AA8-241 -> -26
B9: Hossegor Échecs | C9: ='FEUILLE de SAISIE'!D102 -> 1 | D9: ='FEUILLE de SAISIE'!E102 -> 2 | E9: ='FEUILLE de SAISIE'!F102 -> 1 | F9: ='FEUILLE de SAISIE'!G102 -> 0 | G9: ='FEUILLE de SAISIE'!H102 -> 0 | H9: ='FEUILLE de SAISIE'!I102 -> 0 | I9: ='FEUILLE de SAISIE'!J102 -> 1 | J9: ='FEUILLE de SAISIE'!K102 -> 0 | K9: ='FEUILLE de SAISIE'!L102 -> 0 | L9: ='FEUILLE de SAISIE'!M102 -> 0 | M9: =SUM(F9:L9) -> 1 | N9: 5 | O9: ='FEUILLE de SAISIE'!N102 -> 8 | P9: ='FEUILLE de SAISIE'!O102 -> 6 | Q9: ='FEUILLE de SAISIE'!P102 -> 5 | R9: ='FEUILLE de SAISIE'!Q102 -> 1 | S9: ='FEUILLE de SAISIE'!R102 -> 0 | T9: ='FEUILLE de SAISIE'!S102 -> 1 | U9: ='FEUILLE de SAISIE'!T102 -> 2 | V9: ='FEUILLE de SAISIE'!U102 -> 1 | W9: ='FEUILLE de SAISIE'!V102 -> 1 | X9: ='FEUILLE de SAISIE'!W102 -> 0 | Y9: 6 | Z9: 25 | AA9: 30 | AB9: =AA9-34 -> -4
B10: TOTAUX CDJE 40 | C10: =SUM(C6:C9) -> 2 | D10: =SUM(D6:D9) -> 5 | E10: =SUM(E6:E9) -> 5 | F10: 0 | G10: 2 | H10: 0 | I10: 15 | J10: 18 | K10: 12 | L10: 1 | M10: 48 | N10: 60 | O10: 31 | P10: 28 | Q10: 21 | R10: 1 | S10: 2 | T10: 14 | U10: 40 | V10: 58 | W10: 30 | X10: 4 | Y10: 149 | Z10: =SUM(Z6:Z9) -> 229 | AA10: 289 | AB10: =SUM(AB6:AB9) -> -28

Sheet 47
B2: ADHÉRENTS NOUVELLE AQUITAINE 2017 - 2018
I3: LOT ET GARONNE (47)
B4: CLUBS | C4: S65 | D4: S50 | F4: U20 | G4: U18 | H4: U16 | I4: U14 | J4: U12 | K4: U10 | L4: U8 | M4: Total | N4: TF | O4: S65 | P4: S50 | R4: U20 | S4: U18 | T4: U16 | U4: U14 | V4: U12 | W4: U10 | X4: U8 | Y4: Total | Z4: TM | AA4: TOTAL | AB4: Var.
C5: VF | D5: SF+ | E5: SF | F5: JF | G5: CF | H5: MF | I5: BF | J5: PuF | K5: PoF | L5: PpF | M5: JeunesF | O5: VM | P5: SM+ | Q5: SM | R5: JM | S5: CM | T5: MM | U5: BM | V5: PuM | W5: PoM | X5: PpM | Y5: JeunesM
B6: Échiquier Agenais | C6: ='FEUILLE de SAISIE'!D109 -> 0 | D6: ='FEUILLE de SAISIE'!E109 -> 1 | E6: ='FEUILLE de SAISIE'!F109 -> 8 | F6: ='FEUILLE de SAISIE'!G109 -> 0 | G6: ='FEUILLE de SAISIE'!H109 -> 0 | H6: ='FEUILLE de SAISIE'!I109 -> 0 | I6: ='FEUILLE de SAISIE'!J109 -> 2 | J6: ='FEUILLE de SAISIE'!K109 -> 2 | K6: ='FEUILLE de SAISIE'!L109 -> 6 | L6: ='FEUILLE de SAISIE'!M109 -> 4 | M6: =SUM(F6:L6) -> 14 | N6: =SUM(C6:L6) -> 23 | O6: ='FEUILLE de SAISIE'!N109 -> 3 | P6: ='FEUILLE de SAISIE'!O109 -> 12 | Q6: ='FEUILLE de SAISIE'!P109 -> 26 | R6: ='FEUILLE de SAISIE'!Q109 -> 0 | S6: ='FEUILLE de SAISIE'!R109 -> 2 | T6: ='FEUILLE de SAISIE'!S109 -> 6 | U6: ='FEUILLE de SAISIE'!T109 -> 6 | V6: ='FEUILLE de SAISIE'!U109 -> 16 | W6: ='FEUILLE de SAISIE'!V109 -> 20 | X6: ='FEUILLE de SAISIE'!W109 -> 14 | Y6: =SUM(R6:X6) -> 64 | Z6: =SUM(O6:X6) -> 105 | AA6: =N6+Z6 -> 128 | AB6: =AA6-139 -> -11
B7: Échiquier Marmandais | C7: ='FEUILLE de SAISIE'!D111 -> 1 | D7: ='FEUILLE de SAISIE'!E111 -> 0 | E7: ='FEUILLE de SAISIE'!F111 -> 0 | F7: ='FEUILLE de SAISIE'!G111 -> 0 | G7: ='FEUILLE de SAISIE'!H111 -> 0 | H7: ='FEUILLE de SAISIE'!I111 -> 0 | I7: ='FEUILLE de SAISIE'!J111 -> 0 | J7: ='FEUILLE de SAISIE'!K111 -> 2 | K7: ='FEUILLE de SAISIE'!L111 -> 0 | L7: ='FEUILLE de SAISIE'!M111 -> 0 | M7: =SUM(F7:L7) -> 2 | N7: =SUM(C7:L7) -> 3 | O7: ='FEUILLE de SAISIE'!N111 -> 2 | P7: ='FEUILLE de SAISIE'!O111 -> 3 | Q7: ='FEUILLE de SAISIE'!P111 -> 2 | R7: ='FEUILLE de SAISIE'!Q111 -> 0 | S7: ='FEUILLE de SAISIE'!R111 -> 0 | T7: ='FEUILLE de SAISIE'!S111 -> 0 | U7: ='FEUILLE de SAISIE'!T111 -> 1 | V7: ='FEUILLE de SAISIE'!U111 -> 3 | W7: ='FEUILLE de SAISIE'!V111 -> 0 | X7: ='FEUILLE de SAISIE'!W111 -> 0 | Y7: =SUM(R7:X7) -> 4 | Z7: =SUM(O7:X7) -> 11 | AA7: =N7+Z7 -> 14 | AB7: =AA7-23 -> -9
B8: Club des Échecs du Pays de Lauzun | C8: ='FEUILLE de SAISIE'!D113 -> 2 | D8: ='FEUILLE de SAISIE'!E113 -> 3 | E8: ='FEUILLE de SAISIE'!F113 -> 1 | F8: ='FEUILLE de SAISIE'!G113 -> 0 | G8: ='FEUILLE de SAISIE'!H113 -> 0 | H8: ='FEUILLE de SAISIE'!I113 -> 0 | I8: ='FEUILLE de SAISIE'!J113 -> 0 | J8: ='FEUILLE de SAISIE'!K113 -> 0 | K8: ='FEUILLE de SAISIE'!L113 -> 0 | L8: ='FEUILLE de SAISIE'!M113 -> 0 | M8: 0 | N8: 6 | O8: ='FEUILLE de SAISIE'!N113 -> 8 | P8: ='FEUILLE de SAISIE'!O113 -> 3 | Q8: ='FEUILLE de SAISIE'!P113 -> 3 | R8: ='FEUILLE de SAISIE'!Q113 -> 0 | S8: ='FEUILLE de SAISIE'!R113 -> 1 | T8: ='FEUILLE de SAISIE'!S113 -> 0 | U8: ='FEUILLE de SAISIE'!T113 -> 0 | V8: ='FEUILLE de SAISIE'!U113 -> 1 | W8: ='FEUILLE de SAISIE'!V113 -> 2 | X8: ='FEUILLE de SAISIE'!W113 -> 0 | Y8: 4 | Z8: 18 | AA8: 24 | AB8: 0
B9: L'Échiquier Villeneuvois | C9: ='FEUILLE de SAISIE'!D117 -> 0 | D9: ='FEUILLE de SAISIE'!E117 -> 3 | E9: ='FEUILLE de SAISIE'!F117 -> 2 | F9: ='FEUILLE de SAISIE'!G117 -> 0 | G9: ='FEUILLE de SAISIE'!H117 -> 0 | H9: ='FEUILLE de SAISIE'!I117 -> 0 | I9: ='FEUILLE de SAISIE'!J117 -> 1 | J9: ='FEUILLE de SAISIE'!K117 -> 1 | K9: ='FEUILLE de SAISIE'!L117 -> 2 | L9: ='FEUILLE de SAISIE'!M117 -> 2 | M9: 6 | N9: 11 | O9: ='FEUILLE de SAISIE'!N117 -> 2 | P9: ='FEUILLE de SAISIE'!O117 -> 8 | Q9: ='FEUILLE de SAISIE'!P117 -> 11 | R9: ='FEUILLE de SAISIE'!Q117 -> 0 | S9: ='FEUILLE de SAISIE'!R117 -> 0 | T9: ='FEUILLE de SAISIE'!S117 -> 3 | U9: ='FEUILLE de SAISIE'!T117 -> 4 | V9: ='FEUILLE de SAISIE'!U117 -> 11 | W9: ='FEUILLE de SAISIE'!V117 -> 6 | X9: ='FEUILLE de SAISIE'!W117 -> 6 | Y9: 30 | Z9: 51 | AA9: 62 | AB9: =AA9-53 -> 9
B10: TOTAUX CDJE 47 | C10: =SUM(C6:C9) -> 3 | D10: =SUM(D6:D9) -> 7 | E10: 11 | F10: 0 | G10: 0 | H10: 0 | I10: 3 | J10: 5 | K10: 8 | L10: 6 | M10: 22 | N10: 43 | O10: 15 | P10: 26 | Q10: 42 | R10: 0 | S10: 3 | T10: 9 | U10: 11 | V10: 31 | W10: 28 | X10: 20 | Y10: 102 | Z10: 185 | AA10: 228 | AB10: =SUM(AB6:AB9) -> -11

Sheet 64
B2: ADHÉRENTS NOUVELLE AQUITAINE 2017 - 2018
H3: PYRÉNNÉES ATLANTIQUES (64)
B4: CLUBS | C4: S65 | D4: S50 | F4: U20 | G4: U18 | H4: U16 | I4: U14 | J4: U12 | K4: U10 | L4: U8 | M4: Total | N4: TF | O4: S65 | P4: S50 | R4: U20 | S4: U18 | T4: U16 | U4: U14 | V4: U12 | W4: U10 | X4: U8 | Y4: Total | Z4: TM | AA4: TOTAL | AB4: Var.
C5: VF | D5: SF+ | E5: SF | F5: JF | G5: CF | H5: MF | I5: BF | J5: PuF | K5: PoF | L5: PpF | M5: JeunesF | O5: VM | P5: SM+ | Q5: SM | R5: JM | S5: CM | T5: MM | U5: BM | V5: PuM | W5: PoM | X5: PpM | Y5: JeunesM
B6: Échiquier Bayonne Adour | C6: ='FEUILLE de SAISIE'!D120 -> 5 | D6: ='FEUILLE de SAISIE'!E120 -> 2 | E6: ='FEUILLE de SAISIE'!F120 -> 0 | F6: ='FEUILLE de SAISIE'!G120 -> 0 | G6: ='FEUILLE de SAISIE'!H120 -> 0 | H6: ='FEUILLE de SAISIE'!I120 -> 0 | I6: ='FEUILLE de SAISIE'!J120 -> 0 | J6: ='FEUILLE de SAISIE'!K120 -> 0 | K6: ='FEUILLE de SAISIE'!L120 -> 0 | L6: ='FEUILLE de SAISIE'!M120 -> 0 | M6: =SUM(F6:L6) -> 0 | N6: =SUM(C6:L6) -> 7 | O6: ='FEUILLE de SAISIE'!N120 -> 5 | P6: ='FEUILLE de SAISIE'!O120 -> 6 | Q6: ='FEUILLE de SAISIE'!P120 -> 2 | R6: ='FEUILLE de SAISIE'!Q120 -> 0 | S6: ='FEUILLE de SAISIE'!R120 -> 4 | T6: ='FEUILLE de SAISIE'!S120 -> 0 | U6: ='FEUILLE de SAISIE'!T120 -> 4 | V6: ='FEUILLE de SAISIE'!U120 -> 0 | W6: ='FEUILLE de SAISIE'!V120 -> 3 | X6: ='FEUILLE de SAISIE'!W120 -> 1 | Y6: =SUM(R6:X6) -> 12 | Z6: =SUM(O6:X6) -> 25 | AA6: =N6+Z6 -> 32 | AB6: =AA6-21 -> 11
B7: Aviron Bayonnais Échecs | C7: ='FEUILLE de SAISIE'!D127 -> 1 | D7: ='FEUILLE de SAISIE'!E127 -> 2 | E7: ='FEUILLE de SAISIE'!F127 -> 2 | F7: ='FEUILLE de SAISIE'!G127 -> 0 | G7: ='FEUILLE de SAISIE'!H127 -> 0 | H7: ='FEUILLE de SAISIE'!I127 -> 0 | I7: ='FEUILLE de SAISIE'!J127 -> 1 | J7: ='FEUILLE de SAISIE'!K127 -> 2 | K7: ='FEUILLE de SAISIE'!L127 -> 4 | L7: ='FEUILLE de SAISIE'!M127 -> 7 | M7: =SUM(F7:L7) -> 14 | N7: =SUM(C7:L7) -> 19 | O7: ='FEUILLE de SAISIE'!N127 -> 4 | P7: ='FEUILLE de SAISIE'!O127 -> 12 | Q7: ='FEUILLE de SAISIE'!P127 -> 19 | R7: ='FEUILLE de SAISIE'!Q127 -> 1 | S7: ='FEUILLE de SAISIE'!R127 -> 1 | T7: ='FEUILLE de SAISIE'!S127 -> 4 | U7: ='FEUILLE de SAISIE'!T127 -> 0 | V7: ='FEUILLE de SAISIE'!U127 -> 19 | W7: ='FEUILLE de SAISIE'!V127 -> 58 | X7: ='FEUILLE de SAISIE'!W127 -> 45 | Y7: =SUM(R7:X7) -> 128 | Z7: =SUM(O7:X7) -> 163 | AA7: =N7+Z7 -> 182 | AB7: =AA7-135 -> 47
B8: Échecs SICSBT | C8: ='FEUILLE de SAISIE'!D129 -> 1 | D8: ='FEUILLE de SAISIE'!E129 -> 0 | E8: ='FEUILLE de SAISIE'!F129 -> 1 | F8: ='FEUILLE de SAISIE'!G129 -> 0 | G8: ='FEUILLE de SAISIE'!H129 -> 0 | H8: ='FEUILLE de SAISIE'!I129 -> 0 | I8: ='FEUILLE de SAISIE'!J129 -> 0 | J8: ='FEUILLE de SAISIE'!K129 -> 0 | K8: ='FEUILLE de SAISIE'!L129 -> 0 | L8: ='FEUILLE de SAISIE'!M129 -> 0 | M8: =SUM(F8:L8) -> 0 | N8: =SUM(C8:L8) -> 2 | O8: ='FEUILLE de SAISIE'!N129 -> 1 | P8: ='FEUILLE de SAISIE'!O129 -> 2 | Q8: ='FEUILLE de SAISIE'!P129 -> 0 | R8: ='FEUILLE de SAISIE'!Q129 -> 0 | S8: ='FEUILLE de SAISIE'!R129 -> 0 | T8: ='FEUILLE de SAISIE'!S129 -> 0 | U8: ='FEUILLE de SAISIE'!T129 -> 2 | V8: ='FEUILLE de SAISIE'!U129 -> 4 | W8: ='FEUILLE de SAISIE'!V129 -> 6 | X8: ='FEUILLE de SAISIE'!W129 -> 1 | Y8: =SUM(R8:X8) -> 13 | Z8: =SUM(O8:X8) -> 16 | AA8: =N8+Z8 -> 18 | AB8: =AA8-23 -> -5
B9: Échiquier Henri IV Pau | C9: ='FEUILLE de SAISIE'!D136 -> 4 | D9: ='FEUILLE de SAISIE'!E136 -> 2 | E9: ='FEUILLE de SAISIE'!F136 -> 2 | F9: ='FEUILLE de SAISIE'!G136 -> 0 | G9: ='FEUILLE de SAISIE'!H136 -> 1 | H9: ='FEUILLE de SAISIE'!I136 -> 1 | I9: ='FEUILLE de SAISIE'!J136 -> 7 | J9: ='FEUILLE de SAISIE'!K136 -> 2 | K9: ='FEUILLE de SAISIE'!L136 -> 9 | L9: ='FEUILLE de SAISIE'!M136 -> 4 | M9: 24 | N9: 32 | O9: ='FEUILLE de SAISIE'!N136 -> 9 | P9: ='FEUILLE de SAISIE'!O136 -> 6 | Q9: ='FEUILLE de SAISIE'!P136 -> 21 | R9: ='FEUILLE de SAISIE'!Q136 -> 0 | S9: ='FEUILLE de SAISIE'!R136 -> 8 | T9: ='FEUILLE de SAISIE'!S136 -> 11 | U9: ='FEUILLE de SAISIE'!T136 -> 16 | V9: ='FEUILLE de SAISIE'!U136 -> 24 | W9: ='FEUILLE de SAISIE'!V136 -> 22 | X9: ='FEUILLE de SAISIE'!W136 -> 22 | Y9: 103 | Z9: 139 | AA9: 171 | AB9: =AA9-251 -> -80
B10: Pau Sarrailh Échecs | C10: ='FEUILLE de SAISIE'!D138 -> 0 | D10: ='FEUILLE de SAISIE'!E138 -> 0 | E10: ='FEUILLE de SAISIE'!F138 -> 0 | F10: ='FEUILLE de SAISIE'!G138 -> 0 | G10: ='FEUILLE de SAISIE'!H138 -> 0 | H10: ='FEUILLE de SAISIE'!I138 -> 0 | I10: ='FEUILLE de SAISIE'!J138 -> 0 | J10: ='FEUILLE de SAISIE'!K138 -> 0 | K10: ='FEUILLE de SAISIE'!L138 -> 0 | L10: ='FEUILLE de SAISIE'!M138 -> 0 | M10: 0 | N10: 0 | O10: ='FEUILLE de SAISIE'!N138 -> 5 | P10: ='FEUILLE de SAISIE'!O138 -> 1 | Q10: ='FEUILLE de SAISIE'!P138 -> 4 | R10: ='FEUILLE de SAISIE'!Q138 -> 0 | S10: ='FEUILLE de SAISIE'!R138 -> 2 | T10: ='FEUILLE de SAISIE'!S138 -> 0 | U10: ='FEUILLE de SAISIE'!T138 -> 1 | V10: ='FEUILLE de SAISIE'!U138 -> 0 | W10: ='FEUILLE de SAISIE'!V138 -> 1 | X10: ='FEUILLE de SAISIE'!W138 -> 3 | Y10: 7 | Z10: 17 | AA10: 17 | AB10: =AA10-19 -> -2
B11: Club d'Échecs Pau Berlioz | C11: ='FEUILLE de SAISIE'!D140 -> 3 | D11: ='FEUILLE de SAISIE'!E140 -> 1 | E11: ='FEUILLE de SAISIE'!F140 -> 4 | F11: ='FEUILLE de SAISIE'!G140 -> 0 | G11: ='FEUILLE de SAISIE'!H140 -> 0 | H11: ='FEUILLE de SAISIE'!I140 -> 0 | I11: ='FEUILLE de SAISIE'!J140 -> 0 | J11: ='FEUILLE de SAISIE'!K140 -> 0 | K11: ='FEUILLE de SAISIE'!L140 -> 0 | L11: ='FEUILLE de SAISIE'!M140 -> 2 | M11: 2 | N11: 10 | O11: ='FEUILLE de SAISIE'!N140 -> 8 | P11: ='FEUILLE de SAISIE'!O140 -> 3 | Q11: ='FEUILLE de SAISIE'!P140 -> 3 | R11: ='FEUILLE de SAISIE'!Q140 -> 1 | S11: ='FEUILLE de SAISIE'!R140 -> 0 | T11: ='FEUILLE de SAISIE'!S140 -> 2 | U11: ='FEUILLE de SAISIE'!T140 -> 3 | V11: ='FEUILLE de SAISIE'!U140 -> 4 | W11: ='FEUILLE de SAISIE'!V140 -> 4 | X11: ='FEUILLE de SAISIE'!W140 -> 1 | Y11: 15 | Z11: 29 | AA11: 39 | AB11: =AA11-45 -> -6
B12: École d'Échecs du Béarn | C12: ='FEUILLE de SAISIE'!D142 -> 0 | D12: ='FEUILLE de SAISIE'!E142 -> 0 | E12: ='FEUILLE de SAISIE'!F142 -> 1 | F12: ='FEUILLE de SAISIE'!G142 -> 0 | G12: ='FEUILLE de SAISIE'!H142 -> 0 | H12: ='FEUILLE de SAISIE'!I142 -> 0 | I12: ='FEUILLE de SAISIE'!J142 -> 0 | J12: ='FEUILLE de SAISIE'!K142 -> 0 | K12: ='FEUILLE de SAISIE'!L142 -> 3 | L12: ='FEUILLE de SAISIE'!M142 -> 3 | M12: 6 | N12: 7 | O12: ='FEUILLE de SAISIE'!N142 -> 0 | P12: ='FEUILLE de SAISIE'!O142 -> 0 | Q12: ='FEUILLE de SAISIE'!P142 -> 2 | R12: ='FEUILLE de SAISIE'!Q142 -> 0 | S12: ='FEUILLE de SAISIE'!R142 -> 0 | T12: ='FEUILLE de SAISIE'!S142 -> 0 | U12: ='FEUILLE de SAISIE'!T142 -> 1 | V12: ='FEUILLE de SAISIE'!U142 -> 0 | W12: ='FEUILLE de SAISIE'!V142 -> 3 | X12: ='FEUILLE de SAISIE'!W142 -> 4 | Y12: 8 | Z12: 10 | AA12: 17 | AB12: =AA12-40 -> -23
B13: La Tour du Château | C13: ='FEUILLE de SAISIE'!D144 -> 2 | D13: ='FEUILLE de SAISIE'!E144 -> 0 | E13: ='FEUILLE de SAISIE'!F144 -> 2 | F13: ='FEUILLE de SAISIE'!G144 -> 0 | G13: ='FEUILLE de SAISIE'!H144 -> 0 | H13: ='FEUILLE de SAISIE'!I144 -> 0 | I13: ='FEUILLE de SAISIE'!J144 -> 0 | J13: ='FEUILLE de SAISIE'!K144 -> 0 | K13: ='FEUILLE de SAISIE'!L144 -> 0 | L13: ='FEUILLE de SAISIE'!M144 -> 0 | M13: 0 | N13: 4 | O13: ='FEUILLE de SAISIE'!N144 -> 2 | P13: ='FEUILLE de SAISIE'!O144 -> 1 | Q13: ='FEUILLE de SAISIE'!P144 -> 1 | R13: ='FEUILLE de SAISIE'!Q144 -> 0 | S13: ='FEUILLE de SAISIE'!R144 -> 0 | T13: ='FEUILLE de SAISIE'!S144 -> 1 | U13: ='FEUILLE de SAISIE'!T144 -> 1 | V13: ='FEUILLE de SAISIE'!U144 -> 2 | W13: ='FEUILLE de SAISIE'!V144 -> 3 | X13: ='FEUILLE de SAISIE'!W144 -> 1 | Y13: 8 | Z13: 12 | AA13: 16 | AB13: =AA13-23 -> -7
B14: TOTAUX CDJE 64 | C14: =SUM(C6:C13) -> 16 | D14: =SUM(D6:D13) -> 7 | E14: 12 | F14: 0 | G14: 1 | H14: 1 | I14: 8 | J14: 4 | K14: 16 | L14: 16 | M14: 46 | N14: 81 | O14: 34 | P14: 31 | Q14: 52 | R14: 2 | S14: 15 | T14: 18 | U14: 28 | V14: 53 | W14: 100 | X14: 78 | Y14: 294 | Z14: 411 | AA14: 492 | AB14: -65

Sheet TOTAUX AQ
B2: ADHÉRENTS en AQUITAINE 2017 - 2018
B4: CDJE | C4: S65 | D4: S50 | F4: U20 | G4: U18 | H4: U16 | I4: U14 | J4: U12 | K4: U10 | L4: U8 | M4: Total | N4: TF | O4: S65 | P4: S50 | R4: U20 | S4: U18 | T4: U16 | U4: U14 | V4: U12 | W4: U10 | X4: U8 | Y4: Total | Z4: TM | AA4: TOTAL | AB4: Écarts | AC4: Nb de clubs
C5: VF | D5: SF+ | E5: SF | F5: JF | G5: CF | H5: MF | I5: BF | J5: PuF | K5: PoF | L5: PpF | M5: Jeunes F | O5: VM | P5: SM+ | Q5: SM | R5: JM | S5: CM | T5: MM | U5: BM | V5: PuM | W5: PoM | X5: PpM | Y5: Jeunes M
B6: CDJE 24 | C6: ='24'!C11 -> 1 | D6: ='24'!D11 -> 5 | E6: ='24'!E11 -> 2 | F6: ='24'!F11 -> 0 | G6: ='24'!G11 -> 0 | H6: ='24'!H11 -> 1 | I6: ='24'!I11 -> 3 | J6: ='24'!J11 -> 4 | K6: ='24'!K11 -> 2 | L6: ='24'!L11 -> 3 | M6: =SUM(F6:L6) -> 13 | N6: =SUM(C6:L6) -> 21 | O6: ='24'!O11 -> 19 | P6: ='24'!P11 -> 19 | Q6: ='24'!Q11 -> 22 | R6: ='24'!R11 -> 0 | S6: ='24'!S11 -> 3 | T6: ='24'!T11 -> 9 | U6: ='24'!U11 -> 6 | V6: ='24'!V11 -> 11 | W6: ='24'!W11 -> 6 | X6: ='24'!X11 -> 2 | Y6: =SUM(R6:X6) -> 37 | Z6: =SUM(O6:X6) -> 97 | AA6: =N6+Z6 -> 118 | AB6: =AA6-174 -> -56 | AC6: 5
B7: CDJE 33 | C7: ='33'!C19 -> 9 | D7: ='33'!D19 -> 16 | E7: ='33'!E19 -> 22 | F7: ='33'!F19 -> 5 | G7: ='33'!G19 -> 5 | H7: ='33'!H19 -> 12 | I7: ='33'!I19 -> 35 | J7: ='33'!J19 -> 62 | K7: ='33'!K19 -> 76 | L7: ='33'!L19 -> 59 | M7: =SUM(F7:L7) -> 254 | N7: =SUM(C7:L7) -> 301 | O7: ='33'!O19 -> 74 | P7: ='33'!P19 -> 108 | Q7: ='33'!Q19 -> 172 | R7: ='33'!R19 -> 13 | S7: ='33'!S19 -> 36 | T7: ='33'!T19 -> 60 | U7: ='33'!U19 -> 99 | V7: ='33'!V19 -> 194 | W7: ='33'!W19 -> 255 | X7: ='33'!X19 -> 141 | Y7: =SUM(R7:X7) -> 798 | Z7: =SUM(O7:X7) -> 1152 | AA7: =N7+Z7 -> 1453 | AB7: =AA7-1428 -> 25 | AC7: 13
B8: CDJE 40 | C8: ='40'!C10 -> 2 | D8: ='40'!D10 -> 5 | E8: ='40'!E10 -> 5 | F8: ='40'!F10 -> 0 | G8: ='40'!G10 -> 2 | H8: ='40'!H10 -> 0 | I8: ='40'!I10 -> 15 | J8: ='40'!J10 -> 18 | K8: ='40'!K10 -> 12 | L8: ='40'!L10 -> 1 | M8: 48 | N8: 60 | O8: ='40'!O10 -> 31 | P8: ='40'!P10 -> 28 | Q8: ='40'!Q10 -> 21 | R8: ='40'!R10 -> 1 | S8: ='40'!S10 -> 2 | T8: ='40'!T10 -> 14 | U8: ='40'!U10 -> 40 | V8: ='40'!V10 -> 58 | W8: ='40'!W10 -> 30 | X8: ='40'!X10 -> 4 | Y8: 149 | Z8: 229 | AA8: 289 | AB8: =AA8-317 -> -28 | AC8: 4
B9: CDJE 47 | C9: ='47'!C10 -> 3 | D9: ='47'!D10 -> 7 | E9: ='47'!E10 -> 11 | F9: ='47'!F10 -> 0 | G9: ='47'!G10 -> 0 | H9: ='47'!H10 -> 0 | I9: ='47'!I10 -> 3 | J9: ='47'!J10 -> 5 | K9: ='47'!K10 -> 8 | L9: ='47'!L10 -> 6 | M9: 22 | N9: 43 | O9: ='47'!O10 -> 15 | P9: ='47'!P10 -> 26 | Q9: ='47'!Q10 -> 42 | R9: ='47'!R10 -> 0 | S9: ='47'!S10 -> 3 | T9: ='47'!T10 -> 9 | U9: ='47'!U10 -> 11 | V9: ='47'!V10 -> 31 | W9: ='47'!W10 -> 28 | X9: ='47'!X10 -> 20 | Y9: 102 | Z9: 185 | AA9: 228 | AB9: =AA9-215 -> 13 | AC9: 4
B10: CDJE 64 | C10: ='64'!C14 -> 16 | D10: ='64'!D14 -> 7 | E10: ='64'!E14 -> 12 | F10: ='64'!F14 -> 0 | G10: ='64'!G14 -> 1 | H10: ='64'!H14 -> 1 | I10: ='64'!I14 -> 8 | J10: ='64'!J14 -> 4 | K10: ='64'!K14 -> 16 | L10: ='64'!L14 -> 16 | M10: 46 | N10: 81 | O10: ='64'!O14 -> 34 | P10: ='64'!P14 -> 31 | Q10: ='64'!Q14 -> 52 | R10: ='64'!R14 -> 2 | S10: ='64'!S14 -> 15 | T10: ='64'!T14 -> 18 | U10: ='64'!U14 -> 28 | V10: ='64'!V14 -> 53 | W10: ='64'!W14 -> 100 | X10: ='64'!X14 -> 78 | Y10: 294 | Z10: 411 | AA10: 492 | AB10: =AA10-557 -> -65 | AC10: 8
B11: TOTAUX AQUITAINE | C11: =SUM(C6:C10) -> 31 | D11: =SUM(D6:D10) -> 40 | E11: 52 | F11: 5 | G11: 8 | H11: 14 | I11: 64 | J11: 93 | K11: 114 | L11: 85 | M11: 383 | N11: 506 | O11: 173 | P11: 212 | Q11: 309 | R11: 16 | S11: 59 | T11: 110 | U11: 184 | V11: 347 | W11: 419 | X11: 245 | Y11: 1380 | Z11: 2074 | AA11: 2580 | AB11: -111 | AC11: =SUM(AC6:AC10) -> 34
B13: (T= total; V= vétéran; S= sénior; J= junior; C= cadet; M= minime; B= benjamin; Po= poussin; Pp= petit poussin; F= féminin; M= masculin ) | T13: Au 31 août 2018

Sheet 16
B3: ADHÉRENTS NOUVELLE AQUITAINE 2017 - 2018
H4: CHARENTE (16)
B5: CLUBS | C5: S65 | D5: S50 | F5: U20 | G5: U18 | H5: U16 | I5: U14 | J5: U12 | K5: U10 | L5: U8 | M5: Total | N5: TF | O5: S65 | P5: S50 | R5: U20 | S5: U18 | T5: U16 | U5: U14 | V5: U12 | W5: U10 | X5: U8 | Y5: Total | Z5: TM | AA5: TOTAL | AB5: Var.
C6: VF | D6: SF+ | E6: SF | F6: JF | G6: CF | H6: MF | I6: BF | J6: PuF | K6: PoF | L6: PpF | M6: JeunesF | O6: VM | P6: SM+ | Q6: SM | R6: JM | S6: CM | T6: MM | U6: BM | V6: PuM | W6: PoM | X6: PpM | Y6: JeunesM
B7: Échiquier Angoumoisin | C7: ='FEUILLE de SAISIE'!D148 -> 1 | D7: ='FEUILLE de SAISIE'!E148 -> 0 | E7: ='FEUILLE de SAISIE'!F148 -> 0 | F7: ='FEUILLE de SAISIE'!G148 -> 0 | G7: ='FEUILLE de SAISIE'!H148 -> 0 | H7: ='FEUILLE de SAISIE'!I148 -> 0 | I7: ='FEUILLE de SAISIE'!J148 -> 0 | J7: ='FEUILLE de SAISIE'!K148 -> 1 | K7: ='FEUILLE de SAISIE'!L148 -> 1 | L7: ='FEUILLE de SAISIE'!M148 -> 1 | M7: =SUM(F7:L7) -> 3 | N7: =SUM(C7:L7) -> 4 | O7: ='FEUILLE de SAISIE'!N148 -> 0 | P7: ='FEUILLE de SAISIE'!O148 -> 5 | Q7: ='FEUILLE de SAISIE'!P148 -> 12 | R7: ='FEUILLE de SAISIE'!Q148 -> 0 | S7: ='FEUILLE de SAISIE'!R148 -> 0 | T7: ='FEUILLE de SAISIE'!S148 -> 0 | U7: ='FEUILLE de SAISIE'!T148 -> 0 | V7: ='FEUILLE de SAISIE'!U148 -> 2 | W7: ='FEUILLE de SAISIE'!V148 -> 5 | X7: ='FEUILLE de SAISIE'!W148 -> 5 | Y7: =SUM(R7:X7) -> 12 | Z7: =SUM(O7:X7) -> 29 | AA7: =N7+Z7 -> 33 | AB7: =AA7-24 -> 9
B8: Section échecs amicale laïque Barbezilienne | C8: ='FEUILLE de SAISIE'!D150 -> 0 | D8: ='FEUILLE de SAISIE'!E150 -> 0 | E8: ='FEUILLE de SAISIE'!F150 -> 0 | F8: ='FEUILLE de SAISIE'!G150 -> 0 | G8: ='FEUILLE de SAISIE'!H150 -> 0 | H8: ='FEUILLE de SAISIE'!I150 -> 0 | I8: ='FEUILLE de SAISIE'!J150 -> 0 | J8: ='FEUILLE de SAISIE'!K150 -> 0 | K8: ='FEUILLE de SAISIE'!L150 -> 1 | L8: ='FEUILLE de SAISIE'!M150 -> 1 | M8: =SUM(F8:L8) -> 2 | N8: =SUM(C8:L8) -> 2 | O8: ='FEUILLE de SAISIE'!N150 -> 0 | P8: ='FEUILLE de SAISIE'!O150 -> 1 | Q8: ='FEUILLE de SAISIE'!P150 -> 0 | R8: ='FEUILLE de SAISIE'!Q150 -> 0 | S8: ='FEUILLE de SAISIE'!R150 -> 0 | T8: ='FEUILLE de SAISIE'!S150 -> 0 | U8: ='FEUILLE de SAISIE'!T150 -> 0 | V8: ='FEUILLE de SAISIE'!U150 -> 7 | W8: ='FEUILLE de SAISIE'!V150 -> 10 | X8: ='FEUILLE de SAISIE'!W150 -> 0 | Y8: =SUM(R8:X8) -> 17 | Z8: =SUM(O8:X8) -> 18 | AA8: =N8+Z8 -> 20 | AB8: =AA8-33 -> -13
B9: Chasseneuil Animation Loisirs et Culture-CALC | C9: ='FEUILLE de SAISIE'!D152 -> 2 | D9: ='FEUILLE de SAISIE'!E152 -> 1 | E9: ='FEUILLE de SAISIE'!F152 -> 0 | F9: ='FEUILLE de SAISIE'!G152 -> 0 | G9: ='FEUILLE de SAISIE'!H152 -> 0 | H9: ='FEUILLE de SAISIE'!I152 -> 0 | I9: ='FEUILLE de SAISIE'!J152 -> 0 | J9: ='FEUILLE de SAISIE'!K152 -> 0 | K9: ='FEUILLE de SAISIE'!L152 -> 3 | L9: ='FEUILLE de SAISIE'!M152 -> 0 | M9: 3 | N9: 6 | O9: ='FEUILLE de SAISIE'!N152 -> 2 | P9: ='FEUILLE de SAISIE'!O152 -> 0 | Q9: ='FEUILLE de SAISIE'!P152 -> 2 | R9: ='FEUILLE de SAISIE'!Q152 -> 0 | S9: ='FEUILLE de SAISIE'!R152 -> 0 | T9: ='FEUILLE de SAISIE'!S152 -> 0 | U9: ='FEUILLE de SAISIE'!T152 -> 2 | V9: ='FEUILLE de SAISIE'!U152 -> 7 | W9: ='FEUILLE de SAISIE'!V152 -> 13 | X9: ='FEUILLE de SAISIE'!W152 -> 0 | Y9: 22 | Z9: 26 | AA9: 32 | AB9: =AA9-31 -> 1
B10: Club d'Échecs de Cognac | C10: ='FEUILLE de SAISIE'!D154 -> 0 | D10: ='FEUILLE de SAISIE'!E154 -> 0 | E10: ='FEUILLE de SAISIE'!F154 -> 0 | F10: ='FEUILLE de SAISIE'!G154 -> 0 | G10: ='FEUILLE de SAISIE'!H154 -> 0 | H10: ='FEUILLE de SAISIE'!I154 -> 0 | I10: ='FEUILLE de SAISIE'!J154 -> 0 | J10: ='FEUILLE de SAISIE'!K154 -> 0 | K10: ='FEUILLE de SAISIE'!L154 -> 0 | L10: ='FEUILLE de SAISIE'!M154 -> 0 | M10: 0 | N10: 0 | O10: ='FEUILLE de SAISIE'!N154 -> 6 | P10: ='FEUILLE de SAISIE'!O154 -> 7 | Q10: ='FEUILLE de SAISIE'!P154 -> 4 | R10: ='FEUILLE de SAISIE'!Q154 -> 1 | S10: ='FEUILLE de SAISIE'!R154 -> 3 | T10: ='FEUILLE de SAISIE'!S154 -> 0 | U10: ='FEUILLE de SAISIE'!T154 -> 2 | V10: ='FEUILLE de SAISIE'!U154 -> 3 | W10: ='FEUILLE de SAISIE'!V154 -> 5 | X10: ='FEUILLE de SAISIE'!W154 -> 1 | Y10: 15 | Z10: 32 | AA10: 32 | AB10: =AA10-25 -> 7
B11: Échiquier Couronnais | C11: ='FEUILLE de SAISIE'!D158 -> 0 | D11: ='FEUILLE de SAISIE'!E158 -> 0 | E11: ='FEUILLE de SAISIE'!F158 -> 2 | F11: ='FEUILLE de SAISIE'!G158 -> 0 | G11: ='FEUILLE de SAISIE'!H158 -> 0 | H11: ='FEUILLE de SAISIE'!I158 -> 0 | I11: ='FEUILLE de SAISIE'!J158 -> 1 | J11: ='FEUILLE de SAISIE'!K158 -> 1 | K11: ='FEUILLE de SAISIE'!L158 -> 5 | L11: ='FEUILLE de SAISIE'!M158 -> 0 | M11: 7 | N11: 9 | O11: ='FEUILLE de SAISIE'!N158 -> 3 | P11: ='FEUILLE de SAISIE'!O158 -> 10 | Q11: ='FEUILLE de SAISIE'!P158 -> 15 | R11: ='FEUILLE de SAISIE'!Q158 -> 0 | S11: ='FEUILLE de SAISIE'!R158 -> 1 | T11: ='FEUILLE de SAISIE'!S158 -> 4 | U11: ='FEUILLE de SAISIE'!T158 -> 1 | V11: ='FEUILLE de SAISIE'!U158 -> 14 | W11: ='FEUILLE de SAISIE'!V158 -> 5 | X11: ='FEUILLE de SAISIE'!W158 -> 1 | Y11: 26 | Z11: 54 | AA11: 63 | AB11: =AA11-47 -> 16
B12: Les Tours Du Montbronnais | C12: ='FEUILLE de SAISIE'!D162 -> 0 | D12: ='FEUILLE de SAISIE'!E162 -> 0 | E12: ='FEUILLE de SAISIE'!F162 -> 0 | F12: ='FEUILLE de SAISIE'!G162 -> 0 | G12: ='FEUILLE de SAISIE'!H162 -> 0 | H12: ='FEUILLE de SAISIE'!I162 -> 3 | I12: ='FEUILLE de SAISIE'!J162 -> 1 | J12: ='FEUILLE de SAISIE'!K162 -> 1 | K12: ='FEUILLE de SAISIE'!L162 -> 2 | L12: ='FEUILLE de SAISIE'!M162 -> 2 | M12: 9 | N12: 9 | O12: ='FEUILLE de SAISIE'!N162 -> 5 | P12: ='FEUILLE de SAISIE'!O162 -> 4 | Q12: ='FEUILLE de SAISIE'!P162 -> 5 | R12: ='FEUILLE de SAISIE'!Q162 -> 0 | S12: ='FEUILLE de SAISIE'!R162 -> 0 | T12: ='FEUILLE de SAISIE'!S162 -> 0 | U12: ='FEUILLE de SAISIE'!T162 -> 2 | V12: ='FEUILLE de SAISIE'!U162 -> 5 | W12: ='FEUILLE de SAISIE'!V162 -> 12 | X12: ='FEUILLE de SAISIE'!W162 -> 0 | Y12: 19 | Z12: 33 | AA12: 42 | AB12: =AA12-41 -> 1
B13: TOTAUX CDJE 16 | C13: =SUM(C7:C12) -> 3 | D13: 1 | E13: 2 | F13: 0 | G13: 0 | H13: 3 | I13: 2 | J13: 3 | K13: 12 | L13: 4 | M13: 24 | N13: 30 | O13: 16 | P13: 27 | Q13: 38 | R13: 1 | S13: 4 | T13: 4 | U13: 7 | V13: 38 | W13: 50 | X13: 7 | Y13: 111 | Z13: 192 | AA13: 222 | AB13: =SUM(AB7:AB12) -> 21

Sheet 17
B3: ADHÉRENTS NOUVELLE AQUITAINE 2017 - 2018
H4: CHARENTE MARITIME (17)
B5: CLUBS | C5: S65 | D5: S50 | F5: U20 | G5: U18 | H5: U16 | I5: U14 | J5: U12 | K5: U10 | L5: U8 | M5: Total | N5: TF | O5: S65 | P5: S50 | R5: U20 | S5: U18 | T5: U16 | U5: U14 | V5: U12 | W5: U10 | X5: U8 | Y5: Total | Z5: TM | AA5: TOTAL | AB5: Var.
C6: VF | D6: SF+ | E6: SF | F6: JF | G6: CF | H6: MF | I6: BF | J6: PuF | K6: PoF | L6: PpF | M6: JeunesF | O6: VM | P6: SM+ | Q6: SM | R6: JM | S6: CM | T6: MM | U6: BM | V6: PuM | W6: PoM | X6: PpM | Y6: JeunesM
B7: Aytré-La Rochelle Échecs | C7: ='FEUILLE de SAISIE'!D165 -> 0 | D7: ='FEUILLE de SAISIE'!E165 -> 0 | E7: ='FEUILLE de SAISIE'!F165 -> 1 | F7: ='FEUILLE de SAISIE'!G165 -> 0 | G7: ='FEUILLE de SAISIE'!H165 -> 0 | H7: ='FEUILLE de SAISIE'!I165 -> 0 | I7: ='FEUILLE de SAISIE'!J165 -> 0 | J7: ='FEUILLE de SAISIE'!K165 -> 0 | K7: ='FEUILLE de SAISIE'!L165 -> 0 | L7: ='FEUILLE de SAISIE'!M165 -> 0 | M7: =SUM(F7:L7) -> 0 | N7: =SUM(C7:L7) -> 1 | O7: ='FEUILLE de SAISIE'!N165 -> 3 | P7: ='FEUILLE de SAISIE'!O165 -> 14 | Q7: ='FEUILLE de SAISIE'!P165 -> 7 | R7: ='FEUILLE de SAISIE'!Q165 -> 0 | S7: ='FEUILLE de SAISIE'!R165 -> 1 | T7: ='FEUILLE de SAISIE'!S165 -> 0 | U7: ='FEUILLE de SAISIE'!T165 -> 2 | V7: ='FEUILLE de SAISIE'!U165 -> 0 | W7: ='FEUILLE de SAISIE'!V165 -> 1 | X7: ='FEUILLE de SAISIE'!W165 -> 0 | Y7: =SUM(R7:X7) -> 4 | Z7: =SUM(O7:X7) -> 28 | AA7: =N7+Z7 -> 29 | AB7: =AA7-27 -> 2
B8: Club d'Échecs de Marennes-Oléron | C8: ='FEUILLE de SAISIE'!D167 -> 0 | D8: ='FEUILLE de SAISIE'!E167 -> 1 | E8: ='FEUILLE de SAISIE'!F167 -> 1 | F8: ='FEUILLE de SAISIE'!G167 -> 0 | G8: ='FEUILLE de SAISIE'!H167 -> 0 | H8: ='FEUILLE de SAISIE'!I167 -> 0 | I8: ='FEUILLE de SAISIE'!J167 -> 0 | J8: ='FEUILLE de SAISIE'!K167 -> 0 | K8: ='FEUILLE de SAISIE'!L167 -> 0 | L8: ='FEUILLE de SAISIE'!M167 -> 0 | M8: =SUM(F8:L8) -> 0 | N8: =SUM(C8:L8) -> 2 | O8: ='FEUILLE de SAISIE'!N167 -> 2 | P8: ='FEUILLE de SAISIE'!O167 -> 7 | Q8: ='FEUILLE de SAISIE'!P167 -> 4 | R8: ='FEUILLE de SAISIE'!Q167 -> 0 | S8: ='FEUILLE de SAISIE'!R167 -> 1 | T8: ='FEUILLE de SAISIE'!S167 -> 2 | U8: ='FEUILLE de SAISIE'!T167 -> 0 | V8: ='FEUILLE de SAISIE'!U167 -> 2 | W8: ='FEUILLE de SAISIE'!V167 -> 7 | X8: ='FEUILLE de SAISIE'!W167 -> 4 | Y8: =SUM(R8:X8) -> 16 | Z8: =SUM(O8:X8) -> 29 | AA8: =N8+Z8 -> 31 | AB8: =AA8-26 -> 5
B9: Échiquier Rochefortais | C9: ='FEUILLE de SAISIE'!D169 -> 0 | D9: ='FEUILLE de SAISIE'!E169 -> 0 | E9: ='FEUILLE de SAISIE'!F169 -> 0 | F9: ='FEUILLE de SAISIE'!G169 -> 0 | G9: ='FEUILLE de SAISIE'!H169 -> 0 | H9: ='FEUILLE de SAISIE'!I169 -> 0 | I9: ='FEUILLE de SAISIE'!J169 -> 2 | J9: ='FEUILLE de SAISIE'!K169 -> 0 | K9: ='FEUILLE de SAISIE'!L169 -> 2 | L9: ='FEUILLE de SAISIE'!M169 -> 0 | M9: 4 | N9: 4 | O9: ='FEUILLE de SAISIE'!N169 -> 2 | P9: ='FEUILLE de SAISIE'!O169 -> 8 | Q9: ='FEUILLE de SAISIE'!P169 -> 5 | R9: ='FEUILLE de SAISIE'!Q169 -> 0 | S9: ='FEUILLE de SAISIE'!R169 -> 1 | T9: ='FEUILLE de SAISIE'!S169 -> 2 | U9: ='FEUILLE de SAISIE'!T169 -> 3 | V9: ='FEUILLE de SAISIE'!U169 -> 3 | W9: ='FEUILLE de SAISIE'!V169 -> 3 | X9: ='FEUILLE de SAISIE'!W169 -> 2 | Y9: 14 | Z9: 29 | AA9: 33 | AB9: =AA9-32 -> 1
B10: La Tour de Germanicus | C10: ='FEUILLE de SAISIE'!D175 -> 0 | D10: ='FEUILLE de SAISIE'!E175 -> 2 | E10: ='FEUILLE de SAISIE'!F175 -> 2 | F10: ='FEUILLE de SAISIE'!G175 -> 0 | G10: ='FEUILLE de SAISIE'!H175 -> 0 | H10: ='FEUILLE de SAISIE'!I175 -> 1 | I10: ='FEUILLE de SAISIE'!J175 -> 2 | J10: ='FEUILLE de SAISIE'!K175 -> 12 | K10: ='FEUILLE de SAISIE'!L175 -> 8 | L10: ='FEUILLE de SAISIE'!M175 -> 1 | M10: 24 | N10: 28 | O10: ='FEUILLE de SAISIE'!N175 -> 6 | P10: ='FEUILLE de SAISIE'!O175 -> 11 | Q10: ='FEUILLE de SAISIE'!P175 -> 4 | R10: ='FEUILLE de SAISIE'!Q175 -> 1 | S10: ='FEUILLE de SAISIE'!R175 -> 2 | T10: ='FEUILLE de SAISIE'!S175 -> 4 | U10: ='FEUILLE de SAISIE'!T175 -> 9 | V10: ='FEUILLE de SAISIE'!U175 -> 25 | W10: ='FEUILLE de SAISIE'!V175 -> 29 | X10: ='FEUILLE de SAISIE'!W175 -> 2 | Y10: 72 | Z10: 93 | AA10: 121 | AB10: =AA10-88 -> 33
B11: Échiquier Surgerien | C11: ='FEUILLE de SAISIE'!D180 -> 1 | D11: ='FEUILLE de SAISIE'!E180 -> 1 | E11: ='FEUILLE de SAISIE'!F180 -> 3 | F11: ='FEUILLE de SAISIE'!G180 -> 0 | G11: ='FEUILLE de SAISIE'!H180 -> 1 | H11: ='FEUILLE de SAISIE'!I180 -> 1 | I11: ='FEUILLE de SAISIE'!J180 -> 1 | J11: ='FEUILLE de SAISIE'!K180 -> 2 | K11: ='FEUILLE de SAISIE'!L180 -> 10 | L11: ='FEUILLE de SAISIE'!M180 -> 9 | M11: 24 | N11: 29 | O11: ='FEUILLE de SAISIE'!N180 -> 4 | P11: ='FEUILLE de SAISIE'!O180 -> 3 | Q11: ='FEUILLE de SAISIE'!P180 -> 9 | R11: ='FEUILLE de SAISIE'!Q180 -> 0 | S11: ='FEUILLE de SAISIE'!R180 -> 5 | T11: ='FEUILLE de SAISIE'!S180 -> 4 | U11: ='FEUILLE de SAISIE'!T180 -> 8 | V11: ='FEUILLE de SAISIE'!U180 -> 19 | W11: ='FEUILLE de SAISIE'!V180 -> 18 | X11: ='FEUILLE de SAISIE'!W180 -> 17 | Y11: 71 | Z11: 87 | AA11: 116 | AB11: =AA11-112 -> 4
B12: TOTAUX CDJE 17 | C12: =SUM(C7:C11) -> 1 | D12: 4 | E12: 7 | F12: 0 | G12: 1 | H12: 2 | I12: 5 | J12: 14 | K12: 20 | L12: 10 | M12: 52 | N12: 64 | O12: 17 | P12: 43 | Q12: 29 | R12: 1 | S12: 10 | T12: 12 | U12: 22 | V12: 49 | W12: 58 | X12: 25 | Y12: 177 | Z12: 266 | AA12: 330 | AB12: =SUM(AB7:AB11) -> 45

Sheet 79
B3: ADHÉRENTS NOUVELLE AQUITAINE 2017 - 2018
H4: DEUX SÈVRES (79)
B5: CLUBS | C5: S65 | D5: S50 | F5: U20 | G5: U18 | H5: U16 | I5: U14 | J5: U12 | K5: U10 | L5: U8 | M5: Total | N5: TF | O5: S65 | P5: S50 | R5: U20 | S5: U18 | T5: U16 | U5: U14 | V5: U12 | W5: U10 | X5: U8 | Y5: Total | Z5: TM | AA5: TOTAL | AB5: Var.
C6: VF | D6: SF+ | E6: SF | F6: JF | G6: CF | H6: MF | I6: BF | J6: PuF | K6: PoF | L6: PpF | M6: JeunesF | O6: VM | P6: SM+ | Q6: SM | R6: JM | S6: CM | T6: MM | U6: BM | V6: PuM | W6: PoM | X6: PpM | Y6: JeunesM
B7: Échec et Mat de Bressuire | C7: ='FEUILLE de SAISIE'!D183 -> 1 | D7: ='FEUILLE de SAISIE'!E183 -> 0 | E7: ='FEUILLE de SAISIE'!F183 -> 2 | F7: ='FEUILLE de SAISIE'!G183 -> 0 | G7: ='FEUILLE de SAISIE'!H183 -> 0 | H7: ='FEUILLE de SAISIE'!I183 -> 0 | I7: ='FEUILLE de SAISIE'!J183 -> 0 | J7: ='FEUILLE de SAISIE'!K183 -> 1 | K7: ='FEUILLE de SAISIE'!L183 -> 2 | L7: ='FEUILLE de SAISIE'!M183 -> 1 | M7: =SUM(F7:L7) -> 4 | N7: =SUM(C7:L7) -> 7 | O7: ='FEUILLE de SAISIE'!N183 -> 0 | P7: ='FEUILLE de SAISIE'!O183 -> 3 | Q7: ='FEUILLE de SAISIE'!P183 -> 5 | R7: ='FEUILLE de SAISIE'!Q183 -> 0 | S7: ='FEUILLE de SAISIE'!R183 -> 0 | T7: ='FEUILLE de SAISIE'!S183 -> 1 | U7: ='FEUILLE de SAISIE'!T183 -> 0 | V7: ='FEUILLE de SAISIE'!U183 -> 5 | W7: ='FEUILLE de SAISIE'!V183 -> 7 | X7: ='FEUILLE de SAISIE'!W183 -> 3 | Y7: =SUM(R7:X7) -> 16 | Z7: =SUM(O7:X7) -> 24 | AA7: =N7+Z7 -> 31 | AB7: =AA7-31 -> 0
B8: Échiquier Niortais | C8: ='FEUILLE de SAISIE'!D188 -> 0 | D8: ='FEUILLE de SAISIE'!E188 -> 2 | E8: ='FEUILLE de SAISIE'!F188 -> 2 | F8: ='FEUILLE de SAISIE'!G188 -> 0 | G8: ='FEUILLE de SAISIE'!H188 -> 0 | H8: ='FEUILLE de SAISIE'!I188 -> 2 | I8: ='FEUILLE de SAISIE'!J188 -> 1 | J8: ='FEUILLE de SAISIE'!K188 -> 4 | K8: ='FEUILLE de SAISIE'!L188 -> 3 | L8: ='FEUILLE de SAISIE'!M188 -> 0 | M8: =SUM(F8:L8) -> 10 | N8: =SUM(C8:L8) -> 14 | O8: ='FEUILLE de SAISIE'!N188 -> 3 | P8: ='FEUILLE de SAISIE'!O188 -> 10 | Q8: ='FEUILLE de SAISIE'!P188 -> 7 | R8: ='FEUILLE de SAISIE'!Q188 -> 1 | S8: ='FEUILLE de SAISIE'!R188 -> 2 | T8: ='FEUILLE de SAISIE'!S188 -> 4 | U8: ='FEUILLE de SAISIE'!T188 -> 9 | V8: ='FEUILLE de SAISIE'!U188 -> 10 | W8: ='FEUILLE de SAISIE'!V188 -> 16 | X8: ='FEUILLE de SAISIE'!W188 -> 10 | Y8: =SUM(R8:X8) -> 52 | Z8: =SUM(O8:X8) -> 72 | AA8: =N8+Z8 -> 86 | AB8: =AA8-83 -> 3
B9: Échiquier Saint Maixentais | C9: ='FEUILLE de SAISIE'!D190 -> 0 | D9: ='FEUILLE de SAISIE'!E190 -> 0 | E9: ='FEUILLE de SAISIE'!F190 -> 0 | F9: ='FEUILLE de SAISIE'!G190 -> 0 | G9: ='FEUILLE de SAISIE'!H190 -> 0 | H9: ='FEUILLE de SAISIE'!I190 -> 0 | I9: ='FEUILLE de SAISIE'!J190 -> 0 | J9: ='FEUILLE de SAISIE'!K190 -> 0 | K9: ='FEUILLE de SAISIE'!L190 -> 0 | L9: ='FEUILLE de SAISIE'!M190 -> 0 | M9: 0 | N9: 0 | O9: ='FEUILLE de SAISIE'!N190 -> 2 | P9: ='FEUILLE de SAISIE'!O190 -> 3 | Q9: ='FEUILLE de SAISIE'!P190 -> 9 | R9: ='FEUILLE de SAISIE'!Q190 -> 1 | S9: ='FEUILLE de SAISIE'!R190 -> 2 | T9: ='FEUILLE de SAISIE'!S190 -> 0 | U9: ='FEUILLE de SAISIE'!T190 -> 1 | V9: ='FEUILLE de SAISIE'!U190 -> 3 | W9: ='FEUILLE de SAISIE'!V190 -> 0 | X9: ='FEUILLE de SAISIE'!W190 -> 2 | Y9: 9 | Z9: 23 | AA9: 23 | AB9: =AA9-23 -> 0
B10: Club d'Échecs de Thouars | C10: ='FEUILLE de SAISIE'!D192 -> 0 | D10: ='FEUILLE de SAISIE'!E192 -> 0 | E10: ='FEUILLE de SAISIE'!F192 -> 1 | F10: ='FEUILLE de SAISIE'!G192 -> 0 | G10: ='FEUILLE de SAISIE'!H192 -> 0 | H10: ='FEUILLE de SAISIE'!I192 -> 1 | I10: ='FEUILLE de SAISIE'!J192 -> 0 | J10: ='FEUILLE de SAISIE'!K192 -> 0 | K10: ='FEUILLE de SAISIE'!L192 -> 1 | L10: ='FEUILLE de SAISIE'!M192 -> 0 | M10: 2 | N10: 3 | O10: ='FEUILLE de SAISIE'!N192 -> 2 | P10: ='FEUILLE de SAISIE'!O192 -> 2 | Q10: ='FEUILLE de SAISIE'!P192 -> 7 | R10: ='FEUILLE de SAISIE'!Q192 -> 0 | S10: ='FEUILLE de SAISIE'!R192 -> 3 | T10: ='FEUILLE de SAISIE'!S192 -> 1 | U10: ='FEUILLE de SAISIE'!T192 -> 3 | V10: ='FEUILLE de SAISIE'!U192 -> 1 | W10: ='FEUILLE de SAISIE'!V192 -> 0 | X10: ='FEUILLE de SAISIE'!W192 -> 1 | Y10: 9 | Z10: 20 | AA10: 23 | AB10: =AA10-14 -> 9
B11: TOTAUX CDJE 79 | C11: =SUM(C7:C10) -> 1 | D11: 2 | E11: 5 | F11: 0 | G11: 0 | H11: 3 | I11: 1 | J11: 5 | K11: 6 | L11: 1 | M11: 16 | N11: 24 | O11: 7 | P11: 18 | Q11: 28 | R11: 2 | S11: 7 | T11: 6 | U11: 13 | V11: 19 | W11: 23 | X11: 16 | Y11: 86 | Z11: 139 | AA11: 163 | AB11: =SUM(AB7:AB10) -> 12

Sheet 86
B3: ADHÉRENTS NOUVELLE AQUITAINE 2017 - 2018
H4: VIENNE (86)
B5: CLUBS | C5: S65 | D5: S50 | F5: U20 | G5: U18 | H5: U16 | I5: U14 | J5: U12 | K5: U10 | L5: U8 | M5: Total | N5: TF | O5: S65 | P5: S50 | R5: U20 | S5: U18 | T5: U16 | U5: U14 | V5: U12 | W5: U10 | X5: U8 | Y5: Total | Z5: TM | AA5: TOTAL | AB5: Var.
C6: VF | D6: SF+ | E6: SF | F6: JF | G6: CF | H6: MF | I6: BF | J6: PuF | K6: PoF | L6: PpF | M6: JeunesF | O6: VM | P6: SM+ | Q6: SM | R6: JM | S6: CM | T6: MM | U6: BM | V6: PuM | W6: PoM | X6: PpM | Y6: JeunesM
B7: Échiquier Poitevin | C7: ='FEUILLE de SAISIE'!D197 -> 3 | D7: ='FEUILLE de SAISIE'!E197 -> 0 | E7: ='FEUILLE de SAISIE'!F197 -> 2 | F7: ='FEUILLE de SAISIE'!G197 -> 0 | G7: ='FEUILLE de SAISIE'!H197 -> 0 | H7: ='FEUILLE de SAISIE'!I197 -> 0 | I7: ='FEUILLE de SAISIE'!J197 -> 0 | J7: ='FEUILLE de SAISIE'!K197 -> 0 | K7: ='FEUILLE de SAISIE'!L197 -> 1 | L7: ='FEUILLE de SAISIE'!M197 -> 0 | M7: =SUM(F7:L7) -> 1 | N7: =SUM(C7:L7) -> 6 | O7: ='FEUILLE de SAISIE'!N197 -> 5 | P7: ='FEUILLE de SAISIE'!O197 -> 7 | Q7: ='FEUILLE de SAISIE'!P197 -> 9 | R7: ='FEUILLE de SAISIE'!Q197 -> 0 | S7: ='FEUILLE de SAISIE'!R197 -> 0 | T7: ='FEUILLE de SAISIE'!S197 -> 2 | U7: ='FEUILLE de SAISIE'!T197 -> 6 | V7: ='FEUILLE de SAISIE'!U197 -> 7 | W7: ='FEUILLE de SAISIE'!V197 -> 1 | X7: ='FEUILLE de SAISIE'!W197 -> 5 | Y7: =SUM(R7:X7) -> 21 | Z7: =SUM(O7:X7) -> 42 | AA7: =N7+Z7 -> 48 | AB7: =AA7-47 -> 1
B8: C.E. Chatelleraudais | C8: ='FEUILLE de SAISIE'!D199 -> 0 | D8: ='FEUILLE de SAISIE'!E199 -> 0 | E8: ='FEUILLE de SAISIE'!F199 -> 0 | F8: ='FEUILLE de SAISIE'!G199 -> 0 | G8: ='FEUILLE de SAISIE'!H199 -> 0 | H8: ='FEUILLE de SAISIE'!I199 -> 0 | I8: ='FEUILLE de SAISIE'!J199 -> 0 | J8: ='FEUILLE de SAISIE'!K199 -> 0 | K8: ='FEUILLE de SAISIE'!L199 -> 0 | L8: ='FEUILLE de SAISIE'!M199 -> 0 | M8: =SUM(F8:L8) -> 0 | N8: =SUM(C8:L8) -> 0 | O8: ='FEUILLE de SAISIE'!N199 -> 2 | P8: ='FEUILLE de SAISIE'!O199 -> 1 | Q8: ='FEUILLE de SAISIE'!P199 -> 0 | R8: ='FEUILLE de SAISIE'!Q199 -> 0 | S8: ='FEUILLE de SAISIE'!R199 -> 0 | T8: ='FEUILLE de SAISIE'!S199 -> 0 | U8: ='FEUILLE de SAISIE'!T199 -> 1 | V8: ='FEUILLE de SAISIE'!U199 -> 0 | W8: ='FEUILLE de SAISIE'!V199 -> 0 | X8: ='FEUILLE de SAISIE'!W199 -> 1 | Y8: =SUM(R8:X8) -> 2 | Z8: =SUM(O8:X8) -> 5 | AA8: =N8+Z8 -> 5 | AB8: =AA8-47 -> -42
B9: Poitiers-Migne Échecs | C9: ='FEUILLE de SAISIE'!D201 -> 0 | D9: ='FEUILLE de SAISIE'!E201 -> 1 | E9: ='FEUILLE de SAISIE'!F201 -> 1 | F9: ='FEUILLE de SAISIE'!G201 -> 1 | G9: ='FEUILLE de SAISIE'!H201 -> 0 | H9: ='FEUILLE de SAISIE'!I201 -> 0 | I9: ='FEUILLE de SAISIE'!J201 -> 1 | J9: ='FEUILLE de SAISIE'!K201 -> 0 | K9: ='FEUILLE de SAISIE'!L201 -> 0 | L9: ='FEUILLE de SAISIE'!M201 -> 0 | M9: 2 | N9: =SUM(C9:L9) -> 4 | O9: ='FEUILLE de SAISIE'!N201 -> 3 | P9: ='FEUILLE de SAISIE'!O201 -> 1 | Q9: ='FEUILLE de SAISIE'!P201 -> 17 | R9: ='FEUILLE de SAISIE'!Q201 -> 1 | S9: ='FEUILLE de SAISIE'!R201 -> 1 | T9: ='FEUILLE de SAISIE'!S201 -> 4 | U9: ='FEUILLE de SAISIE'!T201 -> 1 | V9: ='FEUILLE de SAISIE'!U201 -> 3 | W9: ='FEUILLE de SAISIE'!V201 -> 0 | X9: ='FEUILLE de SAISIE'!W201 -> 0 | Y9: 10 | Z9: 31 | AA9: 35 | AB9: -12
B10: Rois et Dames des Trois Cités | C10: ='FEUILLE de SAISIE'!D203 -> 0 | D10: ='FEUILLE de SAISIE'!E203 -> 1 | E10: ='FEUILLE de SAISIE'!F203 -> 0 | F10: ='FEUILLE de SAISIE'!G203 -> 0 | G10: ='FEUILLE de SAISIE'!H203 -> 0 | H10: ='FEUILLE de SAISIE'!I203 -> 0 | I10: ='FEUILLE de SAISIE'!J203 -> 0 | J10: ='FEUILLE de SAISIE'!K203 -> 0 | K10: ='FEUILLE de SAISIE'!L203 -> 0 | L10: ='FEUILLE de SAISIE'!M203 -> 0 | M10: 0 | N10: 1 | O10: ='FEUILLE de SAISIE'!N203 -> 2 | P10: ='FEUILLE de SAISIE'!O203 -> 6 | Q10: ='FEUILLE de SAISIE'!P203 -> 8 | R10: ='FEUILLE de SAISIE'!Q203 -> 0 | S10: ='FEUILLE de SAISIE'!R203 -> 0 | T10: ='FEUILLE de SAISIE'!S203 -> 2 | U10: ='FEUILLE de SAISIE'!T203 -> 0 | V10: ='FEUILLE de SAISIE'!U203 -> 1 | W10: ='FEUILLE de SAISIE'!V203 -> 1 | X10: ='FEUILLE de SAISIE'!W203 -> 0 | Y10: 4 | Z10: 20 | AA10: 21 | AB10: -26
B11: TOTAUX CDJE 86 | C11: =SUM(C7:C10) -> 3 | D11: 2 | E11: 3 | F11: 1 | G11: 0 | H11: 0 | I11: 1 | J11: 0 | K11: 1 | L11: 0 | M11: 3 | N11: 11 | O11: 12 | P11: 15 | Q11: 34 | R11: 1 | S11: 1 | T11: 8 | U11: 8 | V11: 11 | W11: 2 | X11: 6 | Y11: 37 | Z11: 98 | AA11: 109 | AB11: =SUM(AB7:AB10) -> -79

Sheet TOTAUX CP
B3: ADHÉRENTS de CHARENTES-POITOU 2017 - 2018
B5: CDJE | C5: S65 | D5: S50 | F5: U20 | G5: U18 | H5: U16 | I5: U14 | J5: U12 | K5: U10 | L5: U8 | M5: Total | N5: TF | O5: S65 | P5: S50 | R5: U20 | S5: U18 | T5: U16 | U5: U14 | V5: U12 | W5: U10 | X5: U8 | Y5: Total | Z5: TM | AA5: TOTAL | AB5: Écarts | AC5: Nb de clubs
C6: VF | D6: SF+ | E6: SF | F6: JF | G6: CF | H6: MF | I6: BF | J6: PuF | K6: PoF | L6: PpF | M6: Jeunes F | O6: VM | P6: SM+ | Q6: SM | R6: JM | S6: CM | T6: MM | U6: BM | V6: PuM | W6: PoM | X6: PpM | Y6: Jeunes M
B7: CDJE 16 | C7: ='16'!C13 -> 3 | D7: ='16'!D13 -> 1 | E7: ='16'!E13 -> 2 | F7: ='16'!F13 -> 0 | G7: ='16'!G13 -> 0 | H7: ='16'!H13 -> 3 | I7: ='16'!I13 -> 2 | J7: ='16'!J13 -> 3 | K7: ='16'!K13 -> 12 | L7: ='16'!L13 -> 4 | M7: =SUM(F7:L7) -> 24 | N7: =SUM(C7:L7) -> 30 | O7: ='16'!O13 -> 16 | P7: ='16'!P13 -> 27 | Q7: ='16'!Q13 -> 38 | R7: ='16'!R13 -> 1 | S7: ='16'!S13 -> 4 | T7: ='16'!T13 -> 4 | U7: ='16'!U13 -> 7 | V7: ='16'!V13 -> 38 | W7: ='16'!W13 -> 50 | X7: ='16'!X13 -> 7 | Y7: =SUM(R7:X7) -> 111 | Z7: =SUM(O7:X7) -> 192 | AA7: =N7+Z7 -> 222 | AB7: =AA7-201 -> 21 | AC7: 6
B8: CDJE 17 | C8: ='17'!C12 -> 1 | D8: ='17'!D12 -> 4 | E8: ='17'!E12 -> 7 | F8: ='17'!F12 -> 0 | G8: ='17'!G12 -> 1 | H8: ='17'!H12 -> 2 | I8: ='17'!I12 -> 5 | J8: ='17'!J12 -> 14 | K8: ='17'!K12 -> 20 | L8: ='17'!L12 -> 10 | M8: =SUM(F8:L8) -> 52 | N8: =SUM(C8:L8) -> 64 | O8: ='17'!O12 -> 17 | P8: ='17'!P12 -> 43 | Q8: ='17'!Q12 -> 29 | R8: ='17'!R12 -> 1 | S8: ='17'!S12 -> 10 | T8: ='17'!T12 -> 12 | U8: ='17'!U12 -> 22 | V8: ='17'!V12 -> 49 | W8: ='17'!W12 -> 58 | X8: ='17'!X12 -> 25 | Y8: =SUM(R8:X8) -> 177 | Z8: =SUM(O8:X8) -> 266 | AA8: =N8+Z8 -> 330 | AB8: =AA8-298 -> 32 | AC8: 5
B9: CDJE 79 | C9: ='79'!C11 -> 1 | D9: ='79'!D11 -> 2 | E9: ='79'!E11 -> 5 | F9: ='79'!F11 -> 0 | G9: ='79'!G11 -> 0 | H9: ='79'!H11 -> 3 | I9: ='79'!I11 -> 1 | J9: ='79'!J11 -> 5 | K9: ='79'!K11 -> 6 | L9: ='79'!L11 -> 1 | M9: 16 | N9: 24 | O9: ='79'!O11 -> 7 | P9: ='79'!P11 -> 18 | Q9: ='79'!Q11 -> 28 | R9: ='79'!R11 -> 2 | S9: ='79'!S11 -> 7 | T9: ='79'!T11 -> 6 | U9: ='79'!U11 -> 13 | V9: ='79'!V11 -> 19 | W9: ='79'!W11 -> 23 | X9: ='79'!X11 -> 16 | Y9: 86 | Z9: 139 | AA9: 163 | AB9: =AA9-161 -> 2 | AC9: 4
B10: CDJE 86 | C10: ='86'!C11 -> 3 | D10: ='86'!D11 -> 2 | E10: ='86'!E11 -> 3 | F10: ='86'!F11 -> 1 | G10: ='86'!G11 -> 0 | H10: ='86'!H11 -> 0 | I10: ='86'!I11 -> 1 | J10: ='86'!J11 -> 0 | K10: ='86'!K11 -> 1 | L10: ='86'!L11 -> 0 | M10: 3 | N10: 11 | O10: ='86'!O11 -> 12 | P10: ='86'!P11 -> 15 | Q10: ='86'!Q11 -> 34 | R10: ='86'!R11 -> 1 | S10: ='86'!S11 -> 1 | T10: ='86'!T11 -> 8 | U10: ='86'!U11 -> 8 | V10: ='86'!V11 -> 11 | W10: ='86'!W11 -> 2 | X10: ='86'!X11 -> 6 | Y10: 37 | Z10: 98 | AA10: 109 | AB10: =AA10-125 -> -16 | AC10: 4
B11: TOTAUX CHARENTES-POITOU | C11: =SUM(C7:C10) -> 8 | D11: 9 | E11: 17 | F11: 1 | G11: 1 | H11: 8 | I11: 9 | J11: 22 | K11: 39 | L11: 15 | M11: 95 | N11: 129 | O11: 52 | P11: 103 | Q11: 129 | R11: 5 | S11: 22 | T11: 30 | U11: 50 | V11: 117 | W11: 133 | X11: 54 | Y11: 411 | Z11: 695 | AA11: 824 | AB11: 39 | AC11: =SUM(AC7:AC10) -> 19
B13: (T= total; V= vétéran; S= sénior; J= junior; C= cadet; M= minime; B= benjamin; Po= poussin; Pp= petit poussin; F= féminin; M= masculin ) | T13: Au 31 août 2018

Sheet 19
B3: ADHÉRENTS NOUVELLE AQUITAINE 2017 - 2018
I4: CORRÈZE (19)
B5: CLUBS | C5: S65 | D5: S50 | F5: U20 | G5: U18 | H5: U16 | I5: U14 | J5: U12 | K5: U10 | L5: U8 | M5: Total | N5: TF | O5: S65 | P5: S50 | R5: U20 | S5: U18 | T5: U16 | U5: U14 | V5: U12 | W5: U10 | X5: U8 | Y5: Total | Z5: TM | AA5: TOTAL | AB5: Var.
C6: VF | D6: SF+ | E6: SF | F6: JF | G6: CF | H6: MF | I6: BF | J6: PuF | K6: PoF | L6: PpF | M6: JeunesF | O6: VM | P6: SM+ | Q6: SM | R6: JM | S6: CM | T6: MM | U6: BM | V6: PuM | W6: PoM | X6: PpM | Y6: JeunesM
B7: Collège d'Argentat | C7: ='FEUILLE de SAISIE'!D207 -> 0 | D7: ='FEUILLE de SAISIE'!E207 -> 0 | E7: ='FEUILLE de SAISIE'!F207 -> 0 | F7: ='FEUILLE de SAISIE'!G207 -> 0 | G7: ='FEUILLE de SAISIE'!H207 -> 0 | H7: ='FEUILLE de SAISIE'!I207 -> 1 | I7: ='FEUILLE de SAISIE'!J207 -> 5 | J7: ='FEUILLE de SAISIE'!K207 -> 1 | K7: ='FEUILLE de SAISIE'!L207 -> 0 | L7: ='FEUILLE de SAISIE'!M207 -> 0 | M7: =SUM(F7:L7) -> 7 | N7: =SUM(C7:L7) -> 7 | O7: ='FEUILLE de SAISIE'!N207 -> 0 | P7: ='FEUILLE de SAISIE'!O207 -> 0 | Q7: ='FEUILLE de SAISIE'!P207 -> 1 | R7: ='FEUILLE de SAISIE'!Q207 -> 0 | S7: ='FEUILLE de SAISIE'!R207 -> 0 | T7: ='FEUILLE de SAISIE'!S207 -> 2 | U7: ='FEUILLE de SAISIE'!T207 -> 4 | V7: ='FEUILLE de SAISIE'!U207 -> 1 | W7: ='FEUILLE de SAISIE'!V207 -> 0 | X7: ='FEUILLE de SAISIE'!W207 -> 0 | Y7: =SUM(R7:X7) -> 7 | Z7: =SUM(O7:X7) -> 8 | AA7: =N7+Z7 -> 15 | AB7: =AA7-19 -> -4
B8: Brive Le Cavalier Gaillard | C8: ='FEUILLE de SAISIE'!D212 -> 0 | D8: ='FEUILLE de SAISIE'!E212 -> 1 | E8: ='FEUILLE de SAISIE'!F212 -> 1 | F8: ='FEUILLE de SAISIE'!G212 -> 0 | G8: ='FEUILLE de SAISIE'!H212 -> 2 | H8: ='FEUILLE de SAISIE'!I212 -> 1 | I8: ='FEUILLE de SAISIE'!J212 -> 3 | J8: ='FEUILLE de SAISIE'!K212 -> 6 | K8: ='FEUILLE de SAISIE'!L212 -> 2 | L8: ='FEUILLE de SAISIE'!M212 -> 2 | M8: =SUM(F8:L8) -> 16 | N8: =SUM(C8:L8) -> 18 | O8: ='FEUILLE de SAISIE'!N212 -> 1 | P8: ='FEUILLE de SAISIE'!O212 -> 8 | Q8: ='FEUILLE de SAISIE'!P212 -> 8 | R8: ='FEUILLE de SAISIE'!Q212 -> 3 | S8: ='FEUILLE de SAISIE'!R212 -> 2 | T8: ='FEUILLE de SAISIE'!S212 -> 10 | U8: ='FEUILLE de SAISIE'!T212 -> 9 | V8: ='FEUILLE de SAISIE'!U212 -> 26 | W8: ='FEUILLE de SAISIE'!V212 -> 10 | X8: ='FEUILLE de SAISIE'!W212 -> 6 | Y8: =SUM(R8:X8) -> 66 | Z8: =SUM(O8:X8) -> 83 | AA8: =N8+Z8 -> 101 | AB8: =AA8-86 -> 15
B9: Alekhine Brive Chess CE de Brive | C9: ='FEUILLE de SAISIE'!D214 -> 0 | D9: ='FEUILLE de SAISIE'!E214 -> 0 | E9: ='FEUILLE de SAISIE'!F214 -> 0 | F9: ='FEUILLE de SAISIE'!G214 -> 0 | G9: ='FEUILLE de SAISIE'!H214 -> 0 | H9: ='FEUILLE de SAISIE'!I214 -> 0 | I9: ='FEUILLE de SAISIE'!J214 -> 1 | J9: ='FEUILLE de SAISIE'!K214 -> 0 | K9: ='FEUILLE de SAISIE'!L214 -> 0 | L9: ='FEUILLE de SAISIE'!M214 -> 0 | M9: 1 | N9: 1 | O9: ='FEUILLE de SAISIE'!N214 -> 0 | P9: ='FEUILLE de SAISIE'!O214 -> 0 | Q9: ='FEUILLE de SAISIE'!P214 -> 1 | R9: ='FEUILLE de SAISIE'!Q214 -> 0 | S9: ='FEUILLE de SAISIE'!R214 -> 0 | T9: ='FEUILLE de SAISIE'!S214 -> 0 | U9: ='FEUILLE de SAISIE'!T214 -> 1 | V9: ='FEUILLE de SAISIE'!U214 -> 0 | W9: ='FEUILLE de SAISIE'!V214 -> 1 | X9: ='FEUILLE de SAISIE'!W214 -> 1 | Y9: 3 | Z9: 4 | AA9: 5 | AB9: =AA9-5 -> 0
B10: Cercle d'Échecs d'Égletons | C10: ='FEUILLE de SAISIE'!D218 -> 0 | D10: ='FEUILLE de SAISIE'!E218 -> 0 | E10: ='FEUILLE de SAISIE'!F218 -> 0 | F10: ='FEUILLE de SAISIE'!G218 -> 0 | G10: ='FEUILLE de SAISIE'!H218 -> 0 | H10: ='FEUILLE de SAISIE'!I218 -> 1 | I10: ='FEUILLE de SAISIE'!J218 -> 7 | J10: ='FEUILLE de SAISIE'!K218 -> 7 | K10: ='FEUILLE de SAISIE'!L218 -> 0 | L10: ='FEUILLE de SAISIE'!M218 -> 1 | M10: 16 | N10: 16 | O10: ='FEUILLE de SAISIE'!N218 -> 2 | P10: ='FEUILLE de SAISIE'!O218 -> 2 | Q10: ='FEUILLE de SAISIE'!P218 -> 0 | R10: ='FEUILLE de SAISIE'!Q218 -> 0 | S10: ='FEUILLE de SAISIE'!R218 -> 0 | T10: ='FEUILLE de SAISIE'!S218 -> 6 | U10: ='FEUILLE de SAISIE'!T218 -> 9 | V10: ='FEUILLE de SAISIE'!U218 -> 18 | W10: ='FEUILLE de SAISIE'!V218 -> 3 | X10: ='FEUILLE de SAISIE'!W218 -> 2 | Y10: 38 | Z10: 42 | AA10: 58 | AB10: =AA10-44 -> 14
B11: Meyssac Échecs | C11: ='FEUILLE de SAISIE'!D220 -> 2 | D11: ='FEUILLE de SAISIE'!E220 -> 1 | E11: ='FEUILLE de SAISIE'!F220 -> 0 | F11: ='FEUILLE de SAISIE'!G220 -> 0 | G11: ='FEUILLE de SAISIE'!H220 -> 0 | H11: ='FEUILLE de SAISIE'!I220 -> 0 | I11: ='FEUILLE de SAISIE'!J220 -> 2 | J11: ='FEUILLE de SAISIE'!K220 -> 1 | K11: ='FEUILLE de SAISIE'!L220 -> 1 | L11: ='FEUILLE de SAISIE'!M220 -> 1 | M11: 5 | N11: 8 | O11: ='FEUILLE de SAISIE'!N220 -> 8 | P11: ='FEUILLE de SAISIE'!O220 -> 5 | Q11: ='FEUILLE de SAISIE'!P220 -> 3 | R11: ='FEUILLE de SAISIE'!Q220 -> 0 | S11: ='FEUILLE de SAISIE'!R220 -> 1 | T11: ='FEUILLE de SAISIE'!S220 -> 2 | U11: ='FEUILLE de SAISIE'!T220 -> 4 | V11: ='FEUILLE de SAISIE'!U220 -> 1 | W11: ='FEUILLE de SAISIE'!V220 -> 2 | X11: ='FEUILLE de SAISIE'!W220 -> 1 | Y11: 11 | Z11: 27 | AA11: 35 | AB11: =AA11-45 -> -10
B12: Club d'Échecs du Pays de Brive | C12: ='FEUILLE de SAISIE'!D225 -> 0 | D12: ='FEUILLE de SAISIE'!E225 -> 1 | E12: ='FEUILLE de SAISIE'!F225 -> 2 | F12: ='FEUILLE de SAISIE'!G225 -> 0 | G12: ='FEUILLE de SAISIE'!H225 -> 0 | H12: ='FEUILLE de SAISIE'!I225 -> 2 | I12: ='FEUILLE de SAISIE'!J225 -> 3 | J12: ='FEUILLE de SAISIE'!K225 -> 7 | K12: ='FEUILLE de SAISIE'!L225 -> 3 | L12: ='FEUILLE de SAISIE'!M225 -> 0 | M12: 15 | N12: 18 | O12: ='FEUILLE de SAISIE'!N225 -> 1 | P12: ='FEUILLE de SAISIE'!O225 -> 4 | Q12: ='FEUILLE de SAISIE'!P225 -> 5 | R12: ='FEUILLE de SAISIE'!Q225 -> 0 | S12: ='FEUILLE de SAISIE'!R225 -> 1 | T12: ='FEUILLE de SAISIE'!S225 -> 3 | U12: ='FEUILLE de SAISIE'!T225 -> 20 | V12: ='FEUILLE de SAISIE'!U225 -> 28 | W12: ='FEUILLE de SAISIE'!V225 -> 11 | X12: ='FEUILLE de SAISIE'!W225 -> 13 | Y12: 76 | Z12: 86 | AA12: 104 | AB12: =AA12-144 -> -40
B13: Échiquier Tulliste | C13: ='FEUILLE de SAISIE'!D227 -> 2 | D13: ='FEUILLE de SAISIE'!E227 -> 0 | E13: ='FEUILLE de SAISIE'!F227 -> 1 | F13: ='FEUILLE de SAISIE'!G227 -> 0 | G13: ='FEUILLE de SAISIE'!H227 -> 0 | H13: ='FEUILLE de SAISIE'!I227 -> 0 | I13: ='FEUILLE de SAISIE'!J227 -> 0 | J13: ='FEUILLE de SAISIE'!K227 -> 1 | K13: ='FEUILLE de SAISIE'!L227 -> 0 | L13: ='FEUILLE de SAISIE'!M227 -> 0 | M13: 1 | N13: 4 | O13: ='FEUILLE de SAISIE'!N227 -> 0 | P13: ='FEUILLE de SAISIE'!O227 -> 0 | Q13: ='FEUILLE de SAISIE'!P227 -> 4 | R13: ='FEUILLE de SAISIE'!Q227 -> 1 | S13: ='FEUILLE de SAISIE'!R227 -> 0 | T13: ='FEUILLE de SAISIE'!S227 -> 1 | U13: ='FEUILLE de SAISIE'!T227 -> 1 | V13: ='FEUILLE de SAISIE'!U227 -> 2 | W13: ='FEUILLE de SAISIE'!V227 -> 0 | X13: ='FEUILLE de SAISIE'!W227 -> 0 | Y13: 5 | Z13: 9 | AA13: 13 | AB13: =AA13-11 -> 2
B14: TOTAUX CDJE 19 | C14: =SUM(C7:C13) -> 4 | D14: =SUM(D7:D13) -> 3 | E14: 4 | F14: 0 | G14: 2 | H14: 5 | I14: 21 | J14: 23 | K14: 6 | L14: 4 | M14: 61 | N14: 72 | O14: 12 | P14: 19 | Q14: 22 | R14: 4 | S14: 4 | T14: 24 | U14: 48 | V14: 76 | W14: 27 | X14: 23 | Y14: 206 | Z14: 259 | AA14: 331 | AB14: =SUM(AB7:AB13) -> -23

Sheet 23
B3: ADHÉRENTS NOUVELLE AQUITAINE 2017 - 2018
I4: CREUSE (23)
B5: CLUBS | C5: S65 | D5: S50 | F5: U20 | G5: U18 | H5: U16 | I5: U14 | J5: U12 | K5: U10 | L5: U8 | M5: Total | N5: TF | O5: S65 | P5: S50 | R5: U20 | S5: U18 | T5: U16 | U5: U14 | V5: U12 | W5: U10 | X5: U8 | Y5: Total | Z5: TM | AA5: TOTAL | AB5: Var.
C6: VF | D6: SF+ | E6: SF | F6: JF | G6: CF | H6: MF | I6: BF | J6: PuF | K6: PoF | L6: PpF | M6: JeunesF | O6: VM | P6: SM+ | Q6: SM | R6: JM | S6: CM | T6: MM | U6: BM | V6: PuM | W6: PoM | X6: PpM | Y6: JeunesM
B7: Creuse-Échecs | C7: ='FEUILLE de SAISIE'!D230 -> 0 | D7: ='FEUILLE de SAISIE'!E230 -> 1 | E7: ='FEUILLE de SAISIE'!F230 -> 1 | F7: ='FEUILLE de SAISIE'!G230 -> 0 | G7: ='FEUILLE de SAISIE'!H230 -> 0 | H7: ='FEUILLE de SAISIE'!I230 -> 0 | I7: ='FEUILLE de SAISIE'!J230 -> 0 | J7: ='FEUILLE de SAISIE'!K230 -> 0 | K7: ='FEUILLE de SAISIE'!L230 -> 0 | L7: ='FEUILLE de SAISIE'!M230 -> 0 | M7: =SUM(F7:L7) -> 0 | N7: =SUM(C7:L7) -> 2 | O7: ='FEUILLE de SAISIE'!N230 -> 0 | P7: ='FEUILLE de SAISIE'!O230 -> 3 | Q7: ='FEUILLE de SAISIE'!P230 -> 2 | R7: ='FEUILLE de SAISIE'!Q230 -> 0 | S7: ='FEUILLE de SAISIE'!R230 -> 0 | T7: ='FEUILLE de SAISIE'!S230 -> 0 | U7: ='FEUILLE de SAISIE'!T230 -> 1 | V7: ='FEUILLE de SAISIE'!U230 -> 1 | W7: ='FEUILLE de SAISIE'!V230 -> 1 | X7: ='FEUILLE de SAISIE'!W230 -> 0 | Y7: =SUM(R7:X7) -> 3 | Z7: =SUM(O7:X7) -> 8 | AA7: =N7+Z7 -> 10 | AB7: =AA7-83 -> -73
B8: TOTAUX CDJE 23 | C8: =C7 -> 0 | D8: =D7 -> 1 | E8: 1 | F8: 0 | G8: 0 | H8: 0 | I8: 0 | J8: 0 | K8: 0 | L8: 0 | M8: 0 | N8: 2 | O8: 0 | P8: 3 | Q8: 2 | R8: 0 | S8: 0 | T8: 0 | U8: 1 | V8: 1 | W8: 1 | X8: 0 | Y8: 3 | Z8: 8 | AA8: 10 | AB8: =SUM(AB7) -> -73

Sheet 87
B4: ADHÉRENTS NOUVELLE AQUITAINE 2017 - 2018
I5: HAUTE VIENNE (87)
B6: CLUBS | C6: S65 | D6: S50 | F6: U20 | G6: U18 | H6: U16 | I6: U14 | J6: U12 | K6: U10 | L6: U8 | M6: Total | N6: TF | O6: S65 | P6: S50 | R6: U20 | S6: U18 | T6: U16 | U6: U14 | V6: U12 | W6: U10 | X6: U8 | Y6: Total | Z6: TM | AA6: TOTAL | AB6: Var.
C7: VF | D7: SF+ | E7: SF | F7: JF | G7: CF | H7: MF | I7: BF | J7: PuF | K7: PoF | L7: PpF | M7: JeunesF | O7: VM | P7: SM+ | Q7: SM | R7: JM | S7: CM | T7: MM | U7: BM | V7: PuM | W7: PoM | X7: PpM | Y7: JeunesM
B8: Couzeix Chess Club (C3) | C8: ='FEUILLE de SAISIE'!D232 -> 0 | D8: ='FEUILLE de SAISIE'!E232 -> 0 | E8: ='FEUILLE de SAISIE'!F232 -> 1 | F8: ='FEUILLE de SAISIE'!G232 -> 0 | G8: ='FEUILLE de SAISIE'!H232 -> 0 | H8: ='FEUILLE de SAISIE'!I232 -> 0 | I8: ='FEUILLE de SAISIE'!J232 -> 0 | J8: ='FEUILLE de SAISIE'!K232 -> 0 | K8: ='FEUILLE de SAISIE'!L232 -> 4 | L8: ='FEUILLE de SAISIE'!M232 -> 1 | M8: =SUM(F8:L8) -> 5 | N8: =SUM(C8:L8) -> 6 | O8: ='FEUILLE de SAISIE'!N232 -> 1 | P8: ='FEUILLE de SAISIE'!O232 -> 5 | Q8: ='FEUILLE de SAISIE'!P232 -> 7 | R8: ='FEUILLE de SAISIE'!Q232 -> 0 | S8: ='FEUILLE de SAISIE'!R232 -> 0 | T8: ='FEUILLE de SAISIE'!S232 -> 2 | U8: ='FEUILLE de SAISIE'!T232 -> 4 | V8: ='FEUILLE de SAISIE'!U232 -> 2 | W8: ='FEUILLE de SAISIE'!V232 -> 8 | X8: ='FEUILLE de SAISIE'!W232 -> 1 | Y8: =SUM(R8:X8) -> 17 | Z8: =SUM(O8:X8) -> 30 | AA8: =N8+Z8 -> 36 | AB8: =AA8-31 -> 5
B9: Isle Échecs | C9: ='FEUILLE de SAISIE'!D234 -> 0 | D9: ='FEUILLE de SAISIE'!E234 -> 0 | E9: ='FEUILLE de SAISIE'!F234 -> 0 | F9: ='FEUILLE de SAISIE'!G234 -> 0 | G9: ='FEUILLE de SAISIE'!H234 -> 0 | H9: ='FEUILLE de SAISIE'!I234 -> 0 | I9: ='FEUILLE de SAISIE'!J234 -> 0 | J9: ='FEUILLE de SAISIE'!K234 -> 0 | K9: ='FEUILLE de SAISIE'!L234 -> 3 | L9: ='FEUILLE de SAISIE'!M234 -> 2 | M9: =SUM(F9:L9) -> 5 | N9: =SUM(C9:L9) -> 5 | O9: ='FEUILLE de SAISIE'!N234 -> 4 | P9: ='FEUILLE de SAISIE'!O234 -> 4 | Q9: ='FEUILLE de SAISIE'!P234 -> 2 | R9: ='FEUILLE de SAISIE'!Q234 -> 0 | S9: ='FEUILLE de SAISIE'!R234 -> 0 | T9: ='FEUILLE de SAISIE'!S234 -> 1 | U9: ='FEUILLE de SAISIE'!T234 -> 2 | V9: ='FEUILLE de SAISIE'!U234 -> 2 | W9: ='FEUILLE de SAISIE'!V234 -> 1 | X9: ='FEUILLE de SAISIE'!W234 -> 1 | Y9: =SUM(R9:X9) -> 7 | Z9: =SUM(O9:X9) -> 17 | AA9: =N9+Z9 -> 22 | AB9: =AA9-7 -> 15
B10: LEC Échiquier Limousin | C10: ='FEUILLE de SAISIE'!D241 -> 1 | D10: ='FEUILLE de SAISIE'!E241 -> 2 | E10: ='FEUILLE de SAISIE'!F241 -> 3 | F10: ='FEUILLE de SAISIE'!G241 -> 0 | G10: ='FEUILLE de SAISIE'!H241 -> 5 | H10: ='FEUILLE de SAISIE'!I241 -> 2 | I10: ='FEUILLE de SAISIE'!J241 -> 2 | J10: ='FEUILLE de SAISIE'!K241 -> 5 | K10: ='FEUILLE de SAISIE'!L241 -> 8 | L10: ='FEUILLE de SAISIE'!M241 -> 0 | M10: =SUM(F10:L10) -> 22 | N10: 28 | O10: ='FEUILLE de SAISIE'!N241 -> 5 | P10: ='FEUILLE de SAISIE'!O241 -> 17 | Q10: ='FEUILLE de SAISIE'!P241 -> 31 | R10: ='FEUILLE de SAISIE'!Q241 -> 4 | S10: ='FEUILLE de SAISIE'!R241 -> 10 | T10: ='FEUILLE de SAISIE'!S241 -> 7 | U10: ='FEUILLE de SAISIE'!T241 -> 15 | V10: ='FEUILLE de SAISIE'!U241 -> 23 | W10: ='FEUILLE de SAISIE'!V241 -> 18 | X10: ='FEUILLE de SAISIE'!W241 -> 10 | Y10: 87 | Z10: 140 | AA10: 168 | AB10: =AA10-188 -> -20
B11: ASSJ Échecs-Cercle Philidor Saint Junien | C11: ='FEUILLE de SAISIE'!D243 -> 0 | D11: ='FEUILLE de SAISIE'!E243 -> 0 | E11: ='FEUILLE de SAISIE'!F243 -> 0 | F11: ='FEUILLE de SAISIE'!G243 -> 0 | G11: ='FEUILLE de SAISIE'!H243 -> 0 | H11: ='FEUILLE de SAISIE'!I243 -> 0 | I11: ='FEUILLE de SAISIE'!J243 -> 0 | J11: ='FEUILLE de SAISIE'!K243 -> 1 | K11: ='FEUILLE de SAISIE'!L243 -> 0 | L11: ='FEUILLE de SAISIE'!M243 -> 0 | M11: =SUM(F11:L11) -> 1 | N11: 1 | O11: ='FEUILLE de SAISIE'!N243 -> 1 | P11: ='FEUILLE de SAISIE'!O243 -> 1 | Q11: ='FEUILLE de SAISIE'!P243 -> 0 | R11: ='FEUILLE de SAISIE'!Q243 -> 0 | S11: ='FEUILLE de SAISIE'!R243 -> 0 | T11: ='FEUILLE de SAISIE'!S243 -> 2 | U11: ='FEUILLE de SAISIE'!T243 -> 0 | V11: ='FEUILLE de SAISIE'!U243 -> 0 | W11: ='FEUILLE de SAISIE'!V243 -> 1 | X11: ='FEUILLE de SAISIE'!W243 -> 0 | Y11: 3 | Z11: 5 | AA11: 6 | AB11: =AA11-7 -> -1
B12: TOTAUX CDJE 87 | C12: =SUM(C8:C11) -> 1 | D12: =SUM(D8:D11) -> 2 | E12: 4 | F12: 0 | G12: 5 | H12: 2 | I12: 2 | J12: 6 | K12: 15 | L12: 3 | M12: 33 | N12: 40 | O12: 11 | P12: 27 | Q12: 40 | R12: 4 | S12: 10 | T12: 12 | U12: 21 | V12: 27 | W12: 28 | X12: 12 | Y12: 114 | Z12: =SUM(Z9:Z11) -> 162 | AA12: 232 | AB12: =SUM(AB8:AB11) -> -1

Sheet TOTAUX LIM
B3: ADHÉRENTS du LIMOUSIN 2017 - 2018
B5: CDJE | C5: S65 | D5: S50 | F5: U20 | G5: U18 | H5: U16 | I5: U14 | J5: U12 | K5: U10 | L5: U8 | M5: Total | N5: TF | O5: S65 | P5: S50 | R5: U20 | S5: U18 | T5: U16 | U5: U14 | V5: U12 | W5: U10 | X5: U8 | Y5: Total | Z5: TM | AA5: TOTAL | AB5: Écarts | AC5: Nb de clubs
C6: VF | D6: SF+ | E6: SF | F6: JF | G6: CF | H6: MF | I6: BF | J6: PuF | K6: PoF | L6: PpF | M6: Jeunes F | O6: VM | P6: SM+ | Q6: SM | R6: JM | S6: CM | T6: MM | U6: BM | V6: PuM | W6: PoM | X6: PpM | Y6: Jeunes M
B7: CDJE 19 | C7: ='19'!C14 -> 4 | D7: ='19'!D14 -> 3 | E7: ='19'!E14 -> 4 | F7: ='19'!F14 -> 0 | G7: ='19'!G14 -> 2 | H7: ='19'!H14 -> 5 | I7: ='19'!I14 -> 21 | J7: ='19'!J14 -> 23 | K7: ='19'!K14 -> 6 | L7: ='19'!L14 -> 4 | M7: =SUM(F7:L7) -> 61 | N7: =SUM(C7:L7) -> 72 | O7: ='19'!O14 -> 12 | P7: ='19'!P14 -> 19 | Q7: ='19'!Q14 -> 22 | R7: ='19'!R14 -> 4 | S7: ='19'!S14 -> 4 | T7: ='19'!T14 -> 24 | U7: ='19'!U14 -> 48 | V7: ='19'!V14 -> 76 | W7: ='19'!W14 -> 27 | X7: ='19'!X14 -> 23 | Y7: =SUM(R7:X7) -> 206 | Z7: =SUM(O7:X7) -> 259 | AA7: =N7+Z7 -> 331 | AB7: =AA7-354 -> -23 | AC7: 7
B8: CDJE 23 | C8: ='23'!C8 -> 0 | D8: ='23'!D8 -> 1 | E8: ='23'!E8 -> 1 | F8: ='23'!F8 -> 0 | G8: ='23'!G8 -> 0 | H8: ='23'!H8 -> 0 | I8: ='23'!I8 -> 0 | J8: ='23'!J8 -> 0 | K8: ='23'!K8 -> 0 | L8: ='23'!L8 -> 0 | M8: =SUM(F8:L8) -> 0 | N8: =SUM(C8:L8) -> 2 | O8: ='23'!O8 -> 0 | P8: ='23'!P8 -> 3 | Q8: ='23'!Q8 -> 2 | R8: ='23'!R8 -> 0 | S8: ='23'!S8 -> 0 | T8: ='23'!T8 -> 0 | U8: ='23'!U8 -> 1 | V8: ='23'!V8 -> 1 | W8: ='23'!W8 -> 1 | X8: ='23'!X8 -> 0 | Y8: =SUM(R8:X8) -> 3 | Z8: =SUM(O8:X8) -> 8 | AA8: =N8+Z8 -> 10 | AB8: =AA8-83 -> -73 | AC8: 1
B9: CDJE 87 | C9: ='87'!C12 -> 1 | D9: ='87'!D12 -> 2 | E9: ='87'!E12 -> 4 | F9: ='87'!F12 -> 0 | G9: ='87'!G12 -> 5 | H9: ='87'!H12 -> 2 | I9: ='87'!I12 -> 2 | J9: ='87'!J12 -> 6 | K9: ='87'!K12 -> 15 | L9: ='87'!L12 -> 3 | M9: 33 | N9: 40 | O9: ='87'!O12 -> 11 | P9: ='87'!P12 -> 27 | Q9: ='87'!Q12 -> 40 | R9: ='87'!R12 -> 4 | S9: ='87'!S12 -> 10 | T9: ='87'!T12 -> 12 | U9: ='87'!U12 -> 21 | V9: ='87'!V12 -> 27 | W9: ='87'!W12 -> 28 | X9: ='87'!X12 -> 12 | Y9: 114 | Z9: 192 | AA9: 232 | AB9: =AA9-233 -> -1 | AC9: 4
B10: TOTAUX LIMOUSIN | C10: =SUM(C7:C9) -> 5 | D10: 6 | E10: 9 | F10: 0 | G10: 7 | H10: 7 | I10: 23 | J10: 29 | K10: 21 | L10: 7 | M10: 94 | N10: 114 | O10: 23 | P10: 49 | Q10: 64 | R10: 8 | S10: 14 | T10: 36 | U10: 70 | V10: 104 | W10: 56 | X10: 35 | Y10: 323 | Z10: 459 | AA10: 573 | AB10: -97 | AC10: =SUM(AC7:AC9) -> 12
B12: (T= total; V= vétéran; S= sénior; J= junior; C= cadet; M= minime; B= benjamin; Po= poussin; Pp= petit poussin; F= féminin; M= masculin ) | T12: Au 31 août 2018

Sheet TOTAL GÉNÉRAL
B2: TOTAL GÉNÉRAL 2017 - 2018
B4: CDJE | C4: S65 | D4: S50 | F4: U20 | G4: U18 | H4: U16 | I4: U14 | J4: U12 | K4: U10 | L4: U8 | M4: Total | N4: TF | O4: S65 | P4: S50 | R4: U20 | S4: U18 | T4: U16 | U4: U14 | V4: U12 | W4: U10 | X4: U8 | Y4: Total | Z4: TM | AA4: TOTAL | AB4: Écarts | AC4: Nb de clubs
C5: VF | D5: SF+ | E5: SF | F5: JF | G5: CF | H5: MF | I5: BF | J5: PuF | K5: PoF | L5: PpF | M5: Jeunes F | O5: VM | P5: SM+ | Q5: SM | R5: JM | S5: CM | T5: MM | U5: BM | V5: PuM | W5: PoM | X5: PpM | Y5: Jeunes M
B6: AQUITAINE | C6: ='TOTAUX AQ'!C11 -> 31 | D6: ='TOTAUX AQ'!D11 -> 40 | E6: ='TOTAUX AQ'!E11 -> 52 | F6: ='TOTAUX AQ'!F11 -> 5 | G6: ='TOTAUX AQ'!G11 -> 8 | H6: ='TOTAUX AQ'!H11 -> 14 | I6: ='TOTAUX AQ'!I11 -> 64 | J6: ='TOTAUX AQ'!J11 -> 93 | K6: ='TOTAUX AQ'!K11 -> 114 | L6: ='TOTAUX AQ'!L11 -> 85 | M6: =SUM(F6:L6) -> 383 | N6: =SUM(C6:L6) -> 506 | O6: ='TOTAUX AQ'!O11 -> 173 | P6: ='TOTAUX AQ'!P11 -> 212 | Q6: ='TOTAUX AQ'!Q11 -> 309 | R6: ='TOTAUX AQ'!R11 -> 16 | S6: ='TOTAUX AQ'!S11 -> 59 | T6: ='TOTAUX AQ'!T11 -> 110 | U6: ='TOTAUX AQ'!U11 -> 184 | V6: ='TOTAUX AQ'!V11 -> 347 | W6: ='TOTAUX AQ'!W11 -> 419 | X6: ='TOTAUX AQ'!X11 -> 245 | Y6: =SUM(R6:X6) -> 1380 | Z6: =SUM(O6:X6) -> 2074 | AA6: =N6+Z6 -> 2580 | AB6: =AA6-2691 -> -111 | AC6: ='TOTAUX AQ'!AC11 -> 34
B7: CHARENTES-POITOU | C7: ='TOTAUX CP'!C11 -> 8 | D7: ='TOTAUX CP'!D11 -> 9 | E7: ='TOTAUX CP'!E11 -> 17 | F7: ='TOTAUX CP'!F11 -> 1 | G7: ='TOTAUX CP'!G11 -> 1 | H7: ='TOTAUX CP'!H11 -> 8 | I7: ='TOTAUX CP'!I11 -> 9 | J7: ='TOTAUX CP'!J11 -> 22 | K7: ='TOTAUX CP'!K11 -> 39 | L7: ='TOTAUX CP'!L11 -> 15 | M7: =SUM(F7:L7) -> 95 | N7: =SUM(C7:L7) -> 129 | O7: ='TOTAUX CP'!O11 -> 52 | P7: ='TOTAUX CP'!P11 -> 103 | Q7: ='TOTAUX CP'!Q11 -> 129 | R7: ='TOTAUX CP'!R11 -> 5 | S7: ='TOTAUX CP'!S11 -> 22 | T7: ='TOTAUX CP'!T11 -> 30 | U7: ='TOTAUX CP'!U11 -> 50 | V7: ='TOTAUX CP'!V11 -> 117 | W7: ='TOTAUX CP'!W11 -> 133 | X7: ='TOTAUX CP'!X11 -> 54 | Y7: =SUM(R7:X7) -> 411 | Z7: =SUM(O7:X7) -> 695 | AA7: =N7+Z7 -> 824 | AB7: =AA7-785 -> 39 | AC7: ='TOTAUX CP'!AC11 -> 19
B8: LIMOUSIN | C8: ='TOTAUX LIM'!C10 -> 5 | D8: ='TOTAUX LIM'!D10 -> 6 | E8: ='TOTAUX LIM'!E10 -> 9 | F8: ='TOTAUX LIM'!F10 -> 0 | G8: ='TOTAUX LIM'!G10 -> 7 | H8: ='TOTAUX LIM'!H10 -> 7 | I8: ='TOTAUX LIM'!I10 -> 23 | J8: ='TOTAUX LIM'!J10 -> 29 | K8: ='TOTAUX LIM'!K10 -> 21 | L8: ='TOTAUX LIM'!L10 -> 7 | M8: 94 | N8: 114 | O8: ='TOTAUX LIM'!O10 -> 23 | P8: ='TOTAUX LIM'!P10 -> 49 | Q8: ='TOTAUX LIM'!Q10 -> 64 | R8: ='TOTAUX LIM'!R10 -> 8 | S8: ='TOTAUX LIM'!S10 -> 14 | T8: ='TOTAUX LIM'!T10 -> 36 | U8: ='TOTAUX LIM'!U10 -> 70 | V8: ='TOTAUX LIM'!V10 -> 104 | W8: ='TOTAUX LIM'!W10 -> 56 | X8: ='TOTAUX LIM'!X10 -> 35 | Y8: 323 | Z8: 459 | AA8: 573 | AB8: =AA8-670 -> -97 | AC8: ='TOTAUX LIM'!AC10 -> 12
B9: NOUVELLE AQUITAINE | C9: =SUM(C6:C8) -> 44 | D9: 55 | E9: 78 | F9: 6 | G9: 16 | H9: =SUM(H6:H8) -> 29 | I9: 96 | J9: 144 | K9: 174 | L9: 107 | M9: 572 | N9: 749 | O9: 248 | P9: 364 | Q9: 502 | R9: 29 | S9: 95 | T9: 176 | U9: 304 | V9: 568 | W9: 608 | X9: 334 | Y9: 2114 | Z9: 3228 | AA9: 3977 | AB9: -169 | AC9: =SUM(AC6:AC8) -> 65
B11: (T= total; V= vétéran; S= sénior; J= junior; C= cadet; M= minime; B= benjamin; Po= poussin; Pp= petit poussin; F= féminin; M= masculin ) | T11: Au 31 août 2018

Sheet Évolutions Ligue
B2: ÉVOLUTIONS LIGUE
B4: =IF(C4=D4,"","A REVOIR") -> 
B5: CDJE | C5: 2015-2016 | D5: 2016-2017 | E5: 2017-2018 | F5: Var. | G5: 2018-2019 | H5: Var. | I5: 2019-2020
B6: CDJE 24 | C6: 156 | D6: 174 | E6: ='24'!AA11 -> 118 | F6: =E6-D6 -> -56 | G6: Voir | I6: Voir
B7: CDJE 33 | C7: 1261 | D7: 1428 | E7: ='33'!AA19 -> 1453 | F7: 25
B8: CDJE 40 | C8: 280 | D8: 317 | E8: ='40'!AA10 -> 289 | F8: -28 | G8: en | I8: en
B9: CDJE 47 | C9: 205 | D9: 215 | E9: ='47'!AA10 -> 228 | F9: 13
B10: CDJE 64 | C10: 533 | D10: 557 | E10: ='64'!AA14 -> 492 | F10: -65 | G10: août 2019 | I10: août 2020
B11: CDJE 16 | C11: 194 | D11: 201 | E11: ='16'!AA13 -> 222 | F11: 21
B12: CDJE 17 | C12: 288 | D12: 298 | E12: ='17'!AA12 -> 330 | F12: 32
B13: CDJE 79 | C13: 157 | D13: 161 | E13: ='79'!AA11 -> 163 | F13: 2
B14: CDJE 86 | C14: 134 | D14: 125 | E14: ='86'!AA11 -> 109 | F14: -16
B15: CDJE 19 | C15: 310 | D15: 354 | E15: ='19'!AA14 -> 331 | F15: -23
B16: CDJE 23 | C16: 77 | D16: 83 | E16: ='23'!AA8 -> 10 | F16: -73
B17: CDJE 87 | C17: 252 | D17: 233 | E17: ='87'!AA12 -> 232 | F17: -1
B18: TOTAUX | C18: =SUM(C6:C17) -> 3847 | D18: =SUM(D6:D17) -> 4146 | E18: =SUM(E6:E17) -> 3977 | F18: -169

Sheet Graphique aquitaine
C2: É V O L U T I O N D E S L I C E N C E S E N A Q U I T A I N E
C4: Années | D4: Licences A | E4: Licences B | F4: Licences A & B | G4: (Total réel)
C5: 2008-2009 | D5: 935 | E5: 908 | F5: 1842 | G5: =D5+E5 -> 1843
C6: 2009-2010 | D6: 937 | E6: 1090 | F6: 2027 | G6: 2027
C7: 2010-2011 | D7: 924 | E7: 1234 | F7: 2158 | G7: 2158
C8: 2011-2012 | D8: 993 | E8: 1445 | F8: 2458 | G8: 2438
C9: 2012-2013 | D9: 1116 | E9: 1471 | F9: 2584 | G9: 2587
C10: 2013-2014 | D10: 1108 | E10: 1598 | F10: 2706 | G10: 2706
C11: 2014-2015 | D11: 1099 | E11: 1499 | F11: 2598 | G11: 2598
C12: 2015-2016 | D12: 1141 | E12: 1294 | F12: 2435 | G12: 2435
C13: 2016-2017 | D13: 1185 | E13: 1506 | F13: 2691 | G13: 2691
C14: 2017-2018 | D14: ='Feuille des licences'!E77 -> 1176 | E14: ='Feuille des licences'!F77 -> 1393 | F14: =SUM(D14:E14) -> 2569
C15: 2018-2019 | F15: =SUM(D15:E15) -> 0
C36: Nota : un gros écart apparaît entre les licences A & B et la somme des licences A et B réelle (1312 pour 2027) en 2010

Sheet Graphique LNAE
G2: É V O L U T I O N D E S L I C E N C E S E N N O U V E L L E A Q U I T A I N E
G4: Années | H4: Licences A | I4: Licences B | J4: Licences A & B
G5: 2015-2016 | H5: 1834 | I5: 2013 | J5: 3847
G6: 2016-2017 | H6: 1875 | I6: 2271 | J6: 4146
G7: 2017-2018 | H7: ='Feuille des licences'!E74 -> 1858 | I7: ='Feuille des licences'!F74 -> 2119 | J7: =SUM(H7:I7) -> 3977
G8: 2018-2019 | J8: =SUM(H8:I8) -> 0

Sheet STATISTIQUES LNAE
C3: STATISTIQUES de la LIGUE NOUVELLE AQUITAINE saison 2017 - 2018
C7: Rang | D7: Nom du club | E7: VF | F7: SF+ | G7: SF | H7: JF | I7: CF | J7: MF | K7: BF | L7: PuF | M7: PoF | N7: PpF | O7: TjF | P7: TF | Q7: VM | R7: SM+ | S7: SM | T7: JM | U7: CM | V7: MM | W7: BM | X7: PuM | Y7: PoM | Z7: PpM | AA7: TjM | AB7: TM | AC7: TOTAL | AD7: Lic. A | AE7: Lic. B | AF7: Lic. A+B
C8: 1 | D8: Cercle d'Echecs Cyrano | E8: 1 | F8: 0 | G8: 0 | H8: 0 | I8: 0 | J8: 0 | K8: 0 | L8: 0 | M8: 0 | N8: 1 | O8: 1 | P8: 2 | Q8: 9 | R8: 5 | S8: 5 | T8: 0 | U8: 0 | V8: 0 | W8: 1 | X8: 0 | Y8: 1 | Z8: 0 | AA8: 2 | AB8: 21 | AC8: 23 | AD8: 18 | AE8: 5 | AF8: =AD8+AE8 -> 23
C9: 2 | D9: Le Fleix - La Tour Infernale (F.E.P.) | E9: 0 | F9: 0 | G9: 1 | H9: 0 | I9: 0 | J9: 0 | K9: 0 | L9: 0 | M9: 0 | N9: 0 | O9: 0 | P9: 1 | Q9: 7 | R9: 4 | S9: 4 | T9: 0 | U9: 0 | V9: 0 | W9: 0 | X9: 0 | Y9: 0 | Z9: 0 | AA9: 0 | AB9: 15 | AC9: 16 | AD9: 13 | AE9: 3 | AF9: =AD9+AE9 -> 16
C10: 3 | D10: Echiquier du Nontronnais | E10: 0 | F10: 4 | G10: 1 | H10: 0 | I10: 0 | J10: 0 | K10: 2 | L10: 2 | M10: 1 | N10: 0 | O10: 5 | P10: 10 | Q10: 3 | R10: 9 | S10: 9 | T10: 0 | U10: 1 | V10: 0 | W10: 1 | X10: 6 | Y10: 1 | Z10: 2 | AA10: 11 | AB10: 32 | AC10: 42 | AD10: 15 | AE10: 27 | AF10: 42
C11: 4 | D11: Echiquier Salignacois | E11: 0 | F11: 0 | G11: 0 | H11: 0 | I11: 0 | J11: 1 | K11: 1 | L11: 2 | M11: 1 | N11: 1 | O11: 6 | P11: 6 | Q11: 0 | R11: 1 | S11: 3 | T11: 0 | U11: 2 | V11: 9 | W11: 3 | X11: 5 | Y11: 4 | Z11: 0 | AA11: 23 | AB11: 27 | AC11: 33 | AD11: 6 | AE11: 27 | AF11: 33
C12: 5 | D12: L'Echiquier de Saint Sour | E12: 0 | F12: 1 | G12: 0 | H12: 0 | I12: 0 | J12: 0 | K12: 0 | L12: 0 | M12: 0 | N12: 1 | O12: 1 | P12: 2 | Q12: 0 | R12: 0 | S12: 1 | T12: 0 | U12: 0 | V12: 0 | W12: 1 | X12: 0 | Y12: 0 | Z12: 0 | AA12: 1 | AB12: 2 | AC12: 4 | AD12: 4 | AE12: 0 | AF12: 4
C13: 6 | D13: AGJA-Echiquier Aquitaine | E13: 2 | F13: 3 | G13: 4 | H13: 2 | I13: 2 | J13: 1 | K13: 1 | L13: 1 | M13: 5 | N13: 4 | O13: 16 | P13: 25 | Q13: 16 | R13: 9 | S13: 19 | T13: 4 | U13: 2 | V13: 3 | W13: 10 | X13: 14 | Y13: 17 | Z13: 9 | AA13: 59 | AB13: 103 | AC13: 128 | AD13: 96 | AE13: 32 | AF13: 128
C14: 7 | D14: Bordeaux ASPOM Echecs | E14: 1 | F14: 1 | G14: 0 | H14: 1 | I14: 0 | J14: 3 | K14: 7 | L14: 7 | M14: 8 | N14: 5 | O14: 31 | P14: 33 | Q14: 7 | R14: 17 | S14: 28 | T14: 1 | U14: 0 | V14: 5 | W14: 12 | X14: 8 | Y14: 18 | Z14: 13 | AA14: 57 | AB14: 109 | AC14: 142 | AD14: 84 | AE14: 58 | AF14: 142
C15: 8 | D15: Union Saint Bruno-Bordeaux Echecs | E15: 0 | F15: 1 | G15: 1 | H15: 0 | I15: 1 | J15: 1 | K15: 1 | L15: 6 | M15: 14 | N15: 5 | O15: 28 | P15: 30 | Q15: 0 | R15: 7 | S15: 10 | T15: 0 | U15: 4 | V15: 4 | W15: 3 | X15: 9 | Y15: 34 | Z15: 11 | AA15: 65 | AB15: 82 | AC15: 112 | AD15: 46 | AE15: 66 | AF15: 112
C16: 9 | D16: Echiquier Bordelais | E16: 1 | F16: 3 | G16: 1 | H16: 1 | I16: 2 | J16: 0 | K16: 0 | L16: 5 | M16: 12 | N16: 18 | O16: 38 | P16: 43 | Q16: 13 | R16: 19 | S16: 46 | T16: 5 | U16: 7 | V16: 8 | W16: 11 | X16: 46 | Y16: 61 | Z16: 46 | AA16: 184 | AB16: 262 | AC16: 305 | AD16: 149 | AE16: 156 | AF16: 305
C17: 10 | D17: Echiquier Albert Le Grand | E17: 0 | F17: 1 | G17: 3 | H17: 0 | I17: 0 | J17: 4 | K17: 8 | L17: 27 | M17: 22 | N17: 19 | O17: 80 | P17: 84 | Q17: 0 | R17: 1 | S17: 7 | T17: 1 | U17: 5 | V17: 16 | W17: 19 | X17: 60 | Y17: 72 | Z17: 30 | AA17: 203 | AB17: 211 | AC17: 295 | AD17: 93 | AE17: 202 | AF17: 295
C18: 11 | D18: Echiquier Club Créonnais | E18: 1 | F18: 1 | G18: 4 | H18: 0 | I18: 0 | J18: 0 | K18: 3 | L18: 4 | M18: 5 | N18: 2 | O18: 14 | P18: 20 | Q18: 9 | R18: 11 | S18: 8 | T18: 0 | U18: 1 | V18: 1 | W18: 8 | X18: 10 | Y18: 11 | Z18: 9 | AA18: 40 | AB18: 68 | AC18: 88 | AD18: 54 | AE18: 34 | AF18: 88
C19: 12 | D19: Gujan-Mestras Echecs | E19: 0 | F19: 0 | G19: 2 | H19: 0 | I19: 0 | J19: 0 | K19: 2 | L19: 0 | M19: 0 | N19: 1 | O19: 3 | P19: 5 | Q19: 10 | R19: 11 | S19: 10 | T19: 0 | U19: 1 | V19: 4 | W19: 2 | X19: 4 | Y19: 6 | Z19: 4 | AA19: 21 | AB19: 52 | AC19: 57 | AD19: 30 | AE19: 27 | AF19: 57
C20: 13 | D20: Echecs Club Réolais | E20: 0 | F20: 0 | G20: 0 | H20: 0 | I20: 0 | J20: 0 | K20: 0 | L20: 0 | M20: 0 | N20: 0 | O20: 0 | P20: 0 | Q20: 1 | R20: 2 | S20: 3 | T20: 0 | U20: 0 | V20: 1 | W20: 3 | X20: 0 | Y20: 1 | Z20: 1 | AA20: 6 | AB20: 12 | AC20: 12 | AD20: 5 | AE20: 7 | AF20: 12
C21: 14 | D21: Echiquier Médocain | E21: 1 | F21: 3 | G21: 3 | H21: 0 | I21: 0 | J21: 0 | K21: 1 | L21: 0 | M21: 0 | N21: 0 | O21: 1 | P21: 8 | Q21: 2 | R21: 7 | S21: 13 | T21: 0 | U21: 4 | V21: 1 | W21: 2 | X21: 4 | Y21: 3 | Z21: 0 | AA21: 14 | AB21: 36 | AC21: 44 | AD21: 39 | AE21: 5 | AF21: 44
C22: 15 | D22: Echiquier Libournais | E22: 3 | F22: 2 | G22: 2 | H22: 0 | I22: 0 | J22: 1 | K22: 10 | L22: 8 | M22: 8 | N22: 1 | O22: 28 | P22: 35 | Q22: 6 | R22: 5 | S22: 6 | T22: 0 | U22: 4 | V22: 8 | W22: 17 | X22: 21 | Y22: 18 | Z22: 8 | AA22: 76 | AB22: 93 | AC22: 128 | AD22: 31 | AE22: 97 | AF22: 128
C23: 16 | D23: Merignac Echecs | E23: 0 | F23: 0 | G23: 1 | H23: 0 | I23: 0 | J23: 0 | K23: 0 | L23: 0 | M23: 0 | N23: 0 | O23: 0 | P23: 1 | Q23: 2 | R23: 4 | S23: 2 | T23: 0 | U23: 0 | V23: 0 | W23: 0 | X23: 0 | Y23: 0 | Z23: 0 | AA23: 0 | AB23: 8 | AC23: 9 | AD23: 9 | AE23: 0 | AF23: 9
C24: 17 | D24: Parempuyre Echecs | E24: 0 | F24: 1 | G24: 1 | H24: 1 | I24: 0 | J24: 2 | K24: 0 | L24: 1 | M24: 0 | N24: 1 | O24: 5 | P24: 7 | Q24: 2 | R24: 5 | S24: 4 | T24: 1 | U24: 6 | V24: 1 | W24: 4 | X24: 1 | Y24: 0 | Z24: 1 | AA24: 14 | AB24: 25 | AC24: 32 | AD24: 18 | AE24: 14 | AF24: 32
C25: 18 | D25: Echiquier Tressois | E25: 0 | F25: 0 | G25: 0 | H25: 0 | I25: 0 | J25: 0 | K25: 2 | L25: 3 | M25: 2 | N25: 3 | O25: 10 | P25: 10 | Q25: 6 | R25: 10 | S25: 16 | T25: 1 | U25: 2 | V25: 8 | W25: 8 | X25: 17 | Y25: 14 | Z25: 9 | AA25: 59 | AB25: 91 | AC25: 101 | AD25: 47 | AE25: 54 | AF25: 101
C26: 19 | D26: Dax Echiquier Dacquois | E26: 0 | F26: 0 | G26: 0 | H26: 0 | I26: 0 | J26: 0 | K26: 0 | L26: 0 | M26: 1 | N26: 0 | O26: 1 | P26: 1 | Q26: 15 | R26: 1 | S26: 2 | T26: 0 | U26: 1 | V26: 0 | W26: 1 | X26: 4 | Y26: 2 | Z26: 0 | AA26: 8 | AB26: 26 | AC26: 27 | AD26: 20 | AE26: 7 | AF26: 27
C27: 20 | D27: Mimizan le Fou Ensable (ASEM) | E27: 1 | F27: 1 | G27: 0 | H27: 0 | I27: 0 | J27: 0 | K27: 0 | L27: 0 | M27: 0 | N27: 0 | O27: 0 | P27: 2 | Q27: 4 | R27: 7 | S27: 3 | T27: 0 | U27: 0 | V27: 1 | W27: 0 | X27: 0 | Y27: 0 | Z27: 0 | AA27: 1 | AB27: 15 | AC27: 17 | AD27: 6 | AE27: 11 | AF27: 17
C28: 21 | D28: Echiquier Montois | E28: 0 | F28: 2 | G28: 4 | H28: 0 | I28: 2 | J28: 0 | K28: 14 | L28: 18 | M28: 11 | N28: 1 | O28: 46 | P28: 52 | Q28: 4 | R28: 14 | S28: 11 | T28: 0 | U28: 1 | V28: 12 | W28: 37 | X28: 53 | Y28: 27 | Z28: 4 | AA28: 134 | AB28: 163 | AC28: 215 | AD28: 59 | AE28: 156 | AF28: 215
C29: 22 | D29: Hossegor Echecs | E29: 1 | F29: 2 | G29: 1 | H29: 0 | I29: 0 | J29: 0 | K29: 1 | L29: 0 | M29: 0 | N29: 0 | O29: 1 | P29: 5 | Q29: 8 | R29: 6 | S29: 5 | T29: 1 | U29: 0 | V29: 1 | W29: 2 | X29: 1 | Y29: 1 | Z29: 0 | AA29: 6 | AB29: 25 | AC29: 30 | AD29: 13 | AE29: 17 | AF29: 30
C30: 23 | D30: Echiquier Agenais | E30: 0 | F30: 1 | G30: 8 | H30: 0 | I30: 0 | J30: 0 | K30: 2 | L30: 2 | M30: 6 | N30: 4 | O30: 14 | P30: 23 | Q30: 3 | R30: 12 | S30: 26 | T30: 0 | U30: 2 | V30: 6 | W30: 6 | X30: 16 | Y30: 20 | Z30: 14 | AA30: 64 | AB30: 105 | AC30: 128 | AD30: 80 | AE30: 48 | AF30: 128
C31: 24 | D31: Echiquier Marmandais | E31: 1 | F31: 0 | G31: 0 | H31: 0 | I31: 0 | J31: 0 | K31: 0 | L31: 2 | M31: 0 | N31: 0 | O31: 2 | P31: 3 | Q31: 2 | R31: 3 | S31: 2 | T31: 0 | U31: 0 | V31: 0 | W31: 1 | X31: 3 | Y31: 0 | Z31: 0 | AA31: 4 | AB31: 11 | AC31: 14 | AD31: 6 | AE31: 8 | AF31: 14
C32: 25 | D32: Club des Échecs du Pays de Lauzun | E32: 2 | F32: 3 | G32: 1 | H32: 0 | I32: 0 | J32: 0 | K32: 0 | L32: 0 | M32: 0 | N32: 0 | O32: 0 | P32: 6 | Q32: 8 | R32: 3 | S32: 3 | T32: 0 | U32: 1 | V32: 0 | W32: 0 | X32: 1 | Y32: 2 | Z32: 0 | AA32: 4 | AB32: 18 | AC32: 24 | AD32: 13 | AE32: 11 | AF32: 24
C33: 26 | D33: L'Echiquier Villeneuvois | E33: 0 | F33: 3 | G33: 2 | H33: 0 | I33: 0 | J33: 0 | K33: 1 | L33: 1 | M33: 2 | N33: 2 | O33: 6 | P33: 11 | Q33: 2 | R33: 8 | S33: 11 | T33: 0 | U33: 0 | V33: 3 | W33: 4 | X33: 11 | Y33: 6 | Z33: 6 | AA33: 30 | AB33: 51 | AC33: 62 | AD33: 38 | AE33: 24 | AF33: 62
C34: 27 | D34: Echiquier Bayonne Adour | E34: 5 | F34: 2 | G34: 0 | H34: 0 | I34: 0 | J34: 0 | K34: 0 | L34: 0 | M34: 0 | N34: 0 | O34: 0 | P34: 7 | Q34: 5 | R34: 6 | S34: 2 | T34: 0 | U34: 4 | V34: 0 | W34: 4 | X34: 0 | Y34: 3 | Z34: 1 | AA34: 12 | AB34: 25 | AC34: 32 | AD34: 17 | AE34: 15 | AF34: 32
C35: 28 | D35: Aviron Bayonnais Echecs | E35: 1 | F35: 2 | G35: 2 | H35: 0 | I35: 0 | J35: 0 | K35: 1 | L35: 2 | M35: 4 | N35: 7 | O35: 14 | P35: 19 | Q35: 4 | R35: 12 | S35: 19 | T35: 1 | U35: 1 | V35: 4 | W35: 0 | X35: 19 | Y35: 58 | Z35: 45 | AA35: 128 | AB35: 163 | AC35: 182 | AD35: 42 | AE35: 140 | AF35: 182
C36: 29 | D36: Echecs SICSBT | E36: 1 | F36: 0 | G36: 1 | H36: 0 | I36: 0 | J36: 0 | K36: 0 | L36: 0 | M36: 0 | N36: 0 | O36: 0 | P36: 2 | Q36: 1 | R36: 2 | S36: 0 | T36: 0 | U36: 0 | V36: 0 | W36: 2 | X36: 4 | Y36: 6 | Z36: 1 | AA36: 13 | AB36: 16 | AC36: 18 | AD36: 15 | AE36: 3 | AF36: 18
C37: 30 | D37: Echiquier Henri IV Pau | E37: 4 | F37: 2 | G37: 2 | H37: 0 | I37: 1 | J37: 1 | K37: 7 | L37: 2 | M37: 9 | N37: 4 | O37: 24 | P37: 32 | Q37: 9 | R37: 6 | S37: 21 | T37: 0 | U37: 8 | V37: 11 | W37: 16 | X37: 24 | Y37: 22 | Z37: 22 | AA37: 103 | AB37: 139 | AC37: 171 | AD37: 59 | AE37: 112 | AF37: 171
C38: 31 | D38: Pau Sarrailh Echecs | E38: 0 | F38: 0 | G38: 0 | H38: 0 | I38: 0 | J38: 0 | K38: 0 | L38: 0 | M38: 0 | N38: 0 | O38: 0 | P38: 0 | Q38: 5 | R38: 1 | S38: 4 | T38: 0 | U38: 2 | V38: 0 | W38: 1 | X38: 0 | Y38: 1 | Z38: 3 | AA38: 7 | AB38: 17 | AC38: 17 | AD38: 14 | AE38: 3 | AF38: 17
C39: 32 | D39: Club d'Echecs Pau Berlioz | E39: 3 | F39: 1 | G39: 4 | H39: 0 | I39: 0 | J39: 0 | K39: 0 | L39: 0 | M39: 0 | N39: 2 | O39: 2 | P39: 10 | Q39: 8 | R39: 3 | S39: 3 | T39: 1 | U39: 0 | V39: 2 | W39: 3 | X39: 4 | Y39: 4 | Z39: 1 | AA39: 15 | AB39: 29 | AC39: 39 | AD39: 24 | AE39: 15 | AF39: 39
C40: 33 | D40: Ecole d'Echecs du Béarn | E40: 0 | F40: 0 | G40: 1 | H40: 0 | I40: 0 | J40: 0 | K40: 0 | L40: 0 | M40: 3 | N40: 3 | O40: 6 | P40: 7 | Q40: 0 | R40: 0 | S40: 2 | T40: 0 | U40: 0 | V40: 0 | W40: 1 | X40: 0 | Y40: 3 | Z40: 4 | AA40: 8 | AB40: 10 | AC40: 17 | AD40: 8 | AE40: 9 | AF40: 17
C41: 34 | D41: La Tour du Chateau | E41: 2 | F41: 0 | G41: 2 | H41: 0 | I41: 0 | J41: 0 | K41: 0 | L41: 0 | M41: 0 | N41: 0 | O41: 0 | P41: 4 | Q41: 2 | R41: 1 | S41: 1 | T41: 0 | U41: 0 | V41: 1 | W41: 1 | X41: 2 | Y41: 3 | Z41: 1 | AA41: 8 | AB41: 12 | AC41: 16 | AD41: 5 | AE41: 11 | AF41: 16
C42: 35 | D42: Echiquier Angoumoisin | E42: 1 | F42: 0 | G42: 0 | H42: 0 | I42: 0 | J42: 0 | K42: 0 | L42: 1 | M42: 1 | N42: 1 | O42: 3 | P42: 4 | Q42: 0 | R42: 5 | S42: 12 | T42: 0 | U42: 0 | V42: 0 | W42: 0 | X42: 2 | Y42: 5 | Z42: 5 | AA42: 12 | AB42: 29 | AC42: 33 | AD42: 17 | AE42: 16 | AF42: 33
C43: 36 | D43: Section échecs amicale laique Barbezilienne | E43: 0 | F43: 0 | G43: 0 | H43: 0 | I43: 0 | J43: 0 | K43: 0 | L43: 0 | M43: 1 | N43: 1 | O43: 2 | P43: 2 | Q43: 0 | R43: 1 | S43: 0 | T43: 0 | U43: 0 | V43: 0 | W43: 0 | X43: 7 | Y43: 10 | Z43: 0 | AA43: 17 | AB43: 18 | AC43: 20 | AD43: 6 | AE43: 14 | AF43: 20
C44: 37 | D44: Chasseneuil Animation Loisirs et Culture - CALC | E44: 2 | F44: 1 | G44: 0 | H44: 0 | I44: 0 | J44: 0 | K44: 0 | L44: 0 | M44: 3 | N44: 0 | O44: 3 | P44: 6 | Q44: 2 | R44: 0 | S44: 2 | T44: 0 | U44: 0 | V44: 0 | W44: 2 | X44: 7 | Y44: 13 | Z44: 0 | AA44: 22 | AB44: 26 | AC44: 32 | AD44: 14 | AE44: 18 | AF44: 32
C45: 38 | D45: Club d'Echecs de Cognac | E45: 0 | F45: 0 | G45: 0 | H45: 0 | I45: 0 | J45: 0 | K45: 0 | L45: 0 | M45: 0 | N45: 0 | O45: 0 | P45: 0 | Q45: 6 | R45: 7 | S45: 4 | T45: 1 | U45: 3 | V45: 0 | W45: 2 | X45: 3 | Y45: 5 | Z45: 1 | AA45: 15 | AB45: 32 | AC45: 32 | AD45: 27 | AE45: 5 | AF45: 32
C46: 39 | D46: Echiquier Couronnais | E46: 0 | F46: 0 | G46: 2 | H46: 0 | I46: 0 | J46: 0 | K46: 1 | L46: 1 | M46: 5 | N46: 0 | O46: 7 | P46: 9 | Q46: 3 | R46: 10 | S46: 15 | T46: 0 | U46: 1 | V46: 4 | W46: 1 | X46: 14 | Y46: 5 | Z46: 1 | AA46: 26 | AB46: 54 | AC46: 63 | AD46: 42 | AE46: 21 | AF46: 63
C47: 40 | D47: Les Tours Du Montbronnais | E47: 0 | F47: 0 | G47: 0 | H47: 0 | I47: 0 | J47: 3 | K47: 1 | L47: 1 | M47: 2 | N47: 2 | O47: 9 | P47: 9 | Q47: 5 | R47: 4 | S47: 5 | T47: 0 | U47: 0 | V47: 0 | W47: 2 | X47: 5 | Y47: 12 | Z47: 0 | AA47: 19 | AB47: 33 | AC47: 42 | AD47: 20 | AE47: 22 | AF47: 42
C48: 41 | D48: Aytré - La Rochelle Echecs | E48: 0 | F48: 0 | G48: 1 | H48: 0 | I48: 0 | J48: 0 | K48: 0 | L48: 0 | M48: 0 | N48: 0 | O48: 0 | P48: 1 | Q48: 3 | R48: 14 | S48: 7 | T48: 0 | U48: 1 | V48: 0 | W48: 2 | X48: 0 | Y48: 1 | Z48: 0 | AA48: 4 | AB48: 28 | AC48: 29 | AD48: 29 | AE48: 0 | AF48: 29
C49: 42 | D49: Club d'Echecs de Marennes-Oleron | E49: 0 | F49: 1 | G49: 1 | H49: 0 | I49: 0 | J49: 0 | K49: 0 | L49: 0 | M49: 0 | N49: 0 | O49: 0 | P49: 2 | Q49: 2 | R49: 7 | S49: 4 | T49: 0 | U49: 1 | V49: 2 | W49: 0 | X49: 2 | Y49: 7 | Z49: 4 | AA49: 16 | AB49: 29 | AC49: 31 | AD49: 16 | AE49: 15 | AF49: 31
C50: 43 | D50: Echiquier Rochefortais | E50: 0 | F50: 0 | G50: 0 | H50: 0 | I50: 0 | J50: 0 | K50: 2 | L50: 0 | M50: 2 | N50: 0 | O50: 4 | P50: 4 | Q50: 2 | R50: 8 | S50: 5 | T50: 0 | U50: 1 | V50: 2 | W50: 3 | X50: 3 | Y50: 3 | Z50: 2 | AA50: 14 | AB50: 29 | AC50: 33 | AD50: 27 | AE50: 6 | AF50: 33
C51: 44 | D51: La Tour de Germanicus | E51: 0 | F51: 2 | G51: 2 | H51: 0 | I51: 0 | J51: 1 | K51: 2 | L51: 12 | M51: 8 | N51: 1 | O51: 24 | P51: 28 | Q51: 6 | R51: 11 | S51: 4 | T51: 1 | U51: 2 | V51: 4 | W51: 9 | X51: 25 | Y51: 29 | Z51: 2 | AA51: 72 | AB51: 93 | AC51: 121 | AD51: 35 | AE51: 86 | AF51: 121
C52: 45 | D52: Echiquier Surgerien | E52: 1 | F52: 1 | G52: 3 | H52: 0 | I52: 1 | J52: 1 | K52: 1 | L52: 2 | M52: 10 | N52: 9 | O52: 24 | P52: 29 | Q52: 4 | R52: 3 | S52: 9 | T52: 0 | U52: 5 | V52: 4 | W52: 8 | X52: 19 | Y52: 18 | Z52: 17 | AA52: 71 | AB52: 87 | AC52: 116 | AD52: 45 | AE52: 71 | AF52: 116
C53: 46 | D53: Echec et Mat de Bressuire | E53: 1 | F53: 0 | G53: 2 | H53: 0 | I53: 0 | J53: 0 | K53: 0 | L53: 1 | M53: 2 | N53: 1 | O53: 4 | P53: 7 | Q53: 0 | R53: 3 | S53: 5 | T53: 0 | U53: 0 | V53: 1 | W53: 0 | X53: 5 | Y53: 7 | Z53: 3 | AA53: 16 | AB53: 24 | AC53: 31 | AD53: 23 | AE53: 8 | AF53: 31
C54: 47 | D54: Echiquier Niortais | E54: 0 | F54: 2 | G54: 2 | H54: 0 | I54: 0 | J54: 2 | K54: 1 | L54: 4 | M54: 3 | N54: 0 | O54: 10 | P54: 14 | Q54: 3 | R54: 10 | S54: 7 | T54: 1 | U54: 2 | V54: 4 | W54: 9 | X54: 10 | Y54: 16 | Z54: 10 | AA54: 52 | AB54: 72 | AC54: 86 | AD54: 55 | AE54: 31 | AF54: 86
C55: 48 | D55: Echiquier St Maixentais | E55: 0 | F55: 0 | G55: 0 | H55: 0 | I55: 0 | J55: 0 | K55: 0 | L55: 0 | M55: 0 | N55: 0 | O55: 0 | P55: 0 | Q55: 2 | R55: 3 | S55: 9 | T55: 1 | U55: 2 | V55: 0 | W55: 1 | X55: 3 | Y55: 0 | Z55: 2 | AA55: 9 | AB55: 23 | AC55: 23 | AD55: 17 | AE55: 6 | AF55: 23
C56: 49 | D56: Club d'échecs de Thouars | E56: 0 | F56: 0 | G56: 1 | H56: 0 | I56: 0 | J56: 1 | K56: 0 | L56: 0 | M56: 1 | N56: 0 | O56: 2 | P56: 3 | Q56: 2 | R56: 2 | S56: 7 | T56: 0 | U56: 3 | V56: 1 | W56: 3 | X56: 1 | Y56: 0 | Z56: 1 | AA56: 9 | AB56: 20 | AC56: 23 | AD56: 12 | AE56: 11 | AF56: 23
C57: 50 | D57: Echiquier Poitevin | E57: 3 | F57: 0 | G57: 2 | H57: 0 | I57: 0 | J57: 0 | K57: 0 | L57: 0 | M57: 1 | N57: 0 | O57: 1 | P57: 6 | Q57: 5 | R57: 7 | S57: 9 | T57: 0 | U57: 0 | V57: 2 | W57: 6 | X57: 7 | Y57: 1 | Z57: 5 | AA57: 21 | AB57: 42 | AC57: 48 | AD57: 29 | AE57: 19 | AF57: 48
C58: 51 | D58: C.E. Chatelleraudais | E58: 0 | F58: 0 | G58: 0 | H58: 0 | I58: 0 | J58: 0 | K58: 0 | L58: 0 | M58: 0 | N58: 0 | O58: 0 | P58: 0 | Q58: 2 | R58: 1 | S58: 0 | T58: 0 | U58: 0 | V58: 0 | W58: 1 | X58: 0 | Y58: 0 | Z58: 1 | AA58: 2 | AB58: 5 | AC58: 5 | AD58: 5 | AE58: 0 | AF58: 5
C59: 52 | D59: Poitiers-Migne Echecs | E59: 0 | F59: 1 | G59: 1 | H59: 1 | I59: 0 | J59: 0 | K59: 1 | L59: 0 | M59: 0 | N59: 0 | O59: 2 | P59: 4 | Q59: 3 | R59: 1 | S59: 17 | T59: 1 | U59: 1 | V59: 4 | W59: 1 | X59: 3 | Y59: 0 | Z59: 0 | AA59: 10 | AB59: 31 | AC59: 35 | AD59: 33 | AE59: 2 | AF59: 35
C60: 53 | D60: Rois et Dames des Trois Cites | E60: 0 | F60: 1 | G60: 0 | H60: 0 | I60: 0 | J60: 0 | K60: 0 | L60: 0 | M60: 0 | N60: 0 | O60: 0 | P60: 1 | Q60: 2 | R60: 6 | S60: 8 | T60: 0 | U60: 0 | V60: 2 | W60: 0 | X60: 1 | Y60: 1 | Z60: 0 | AA60: 4 | AB60: 20 | AC60: 21 | AD60: 12 | AE60: 9 | AF60: 21
C61: 54 | D61: Collège d'Argentat | E61: 0 | F61: 0 | G61: 0 | H61: 0 | I61: 0 | J61: 1 | K61: 5 | L61: 1 | M61: 0 | N61: 0 | O61: 7 | P61: 7 | Q61: 0 | R61: 0 | S61: 1 | T61: 0 | U61: 0 | V61: 2 | W61: 4 | X61: 1 | Y61: 0 | Z61: 0 | AA61: 7 | AB61: 8 | AC61: 15 | AD61: 5 | AE61: 10 | AF61: 15
C62: 55 | D62: Brive Le Cavalier Gaillard | E62: 0 | F62: 1 | G62: 1 | H62: 0 | I62: 2 | J62: 1 | K62: 3 | L62: 6 | M62: 2 | N62: 2 | O62: 16 | P62: 18 | Q62: 1 | R62: 8 | S62: 8 | T62: 3 | U62: 2 | V62: 10 | W62: 9 | X62: 26 | Y62: 10 | Z62: 6 | AA62: 66 | AB62: 83 | AC62: 101 | AD62: 43 | AE62: 58 | AF62: 101
C63: 56 | D63: Alekhine Brive Chess CE de Brive | E63: 0 | F63: 0 | G63: 0 | H63: 0 | I63: 0 | J63: 0 | K63: 1 | L63: 0 | M63: 0 | N63: 0 | O63: 1 | P63: 1 | Q63: 0 | R63: 0 | S63: 1 | T63: 0 | U63: 0 | V63: 0 | W63: 1 | X63: 0 | Y63: 1 | Z63: 1 | AA63: 3 | AB63: 4 | AC63: 5 | AD63: 5 | AE63: 0 | AF63: 5
C64: 57 | D64: Cercle d'Echecs d' Egletons | E64: 0 | F64: 0 | G64: 0 | H64: 0 | I64: 0 | J64: 1 | K64: 7 | L64: 7 | M64: 0 | N64: 1 | O64: 16 | P64: 16 | Q64: 2 | R64: 2 | S64: 0 | T64: 0 | U64: 0 | V64: 6 | W64: 9 | X64: 18 | Y64: 3 | Z64: 2 | AA64: 38 | AB64: 42 | AC64: 58 | AD64: 5 | AE64: 53 | AF64: 58
C65: 58 | D65: Meyssac Echecs | E65: 2 | F65: 1 | G65: 0 | H65: 0 | I65: 0 | J65: 0 | K65: 2 | L65: 1 | M65: 1 | N65: 1 | O65: 5 | P65: 8 | Q65: 8 | R65: 5 | S65: 3 | T65: 0 | U65: 1 | V65: 2 | W65: 4 | X65: 1 | Y65: 2 | Z65: 1 | AA65: 11 | AB65: 27 | AC65: 35 | AD65: 9 | AE65: 26 | AF65: 35
C66: 59 | D66: Club d'Echecs du Pays de Brive | E66: 0 | F66: 1 | G66: 2 | H66: 0 | I66: 0 | J66: 2 | K66: 3 | L66: 7 | M66: 3 | N66: 0 | O66: 15 | P66: 18 | Q66: 1 | R66: 4 | S66: 5 | T66: 0 | U66: 1 | V66: 3 | W66: 20 | X66: 28 | Y66: 11 | Z66: 13 | AA66: 76 | AB66: 86 | AC66: 104 | AD66: 32 | AE66: 72 | AF66: 104
C67: 60 | D67: Echiquier Tulliste | E67: 2 | F67: 0 | G67: 1 | H67: 0 | I67: 0 | J67: 0 | K67: 0 | L67: 1 | M67: 0 | N67: 0 | O67: 1 | P67: 4 | Q67: 0 | R67: 0 | S67: 4 | T67: 1 | U67: 0 | V67: 1 | W67: 1 | X67: 2 | Y67: 0 | Z67: 0 | AA67: 5 | AB67: 9 | AC67: 13 | AD67: 10 | AE67: 3 | AF67: 13
C68: 61 | D68: Creuse-Echecs | E68: 0 | F68: 1 | G68: 1 | H68: 0 | I68: 0 | J68: 0 | K68: 0 | L68: 0 | M68: 0 | N68: 0 | O68: 0 | P68: 2 | Q68: 0 | R68: 3 | S68: 2 | T68: 0 | U68: 0 | V68: 0 | W68: 1 | X68: 1 | Y68: 1 | Z68: 0 | AA68: 3 | AB68: 8 | AC68: 10 | AD68: 5 | AE68: 5 | AF68: 10
C69: 62 | D69: Couzeix Chess Club (C3) | E69: 0 | F69: 0 | G69: 1 | H69: 0 | I69: 0 | J69: 0 | K69: 0 | L69: 0 | M69: 4 | N69: 1 | O69: 5 | P69: 6 | Q69: 1 | R69: 5 | S69: 7 | T69: 0 | U69: 0 | V69: 2 | W69: 4 | X69: 2 | Y69: 8 | Z69: 1 | AA69: 17 | AB69: 30 | AC69: 36 | AD69: 15 | AE69: 21 | AF69: 36
C70: 63 | D70: Isle Echecs | E70: 0 | F70: 0 | G70: 0 | H70: 0 | I70: 0 | J70: 0 | K70: 0 | L70: 0 | M70: 3 | N70: 2 | O70: 5 | P70: 5 | Q70: 4 | R70: 4 | S70: 2 | T70: 0 | U70: 0 | V70: 1 | W70: 2 | X70: 2 | Y70: 1 | Z70: 1 | AA70: 7 | AB70: 17 | AC70: 22 | AD70: 13 | AE70: 9 | AF70: 22
C71: 64 | D71: LEC Echiquier Limousin | E71: 1 | F71: 2 | G71: 3 | H71: 0 | I71: 5 | J71: 2 | K71: 2 | L71: 5 | M71: 8 | N71: 0 | O71: 22 | P71: 28 | Q71: 5 | R71: 17 | S71: 31 | T71: 4 | U71: 10 | V71: 7 | W71: 15 | X71: 23 | Y71: 18 | Z71: 10 | AA71: 87 | AB71: 140 | AC71: 168 | AD71: 70 | AE71: 98 | AF71: 168
C72: 65 | D72: ASSJ Echecs - Cercle Philidor Saint-Junien | E72: 0 | F72: 0 | G72: 0 | H72: 0 | I72: 0 | J72: 0 | K72: 0 | L72: 1 | M72: 0 | N72: 0 | O72: 1 | P72: 1 | Q72: 1 | R72: 1 | S72: 0 | T72: 0 | U72: 0 | V72: 2 | W72: 0 | X72: 0 | Y72: 1 | Z72: 0 | AA72: 3 | AB72: 5 | AC72: 6 | AD72: 6 | AE72: 0 | AF72: 6
C74: T O T A U X L N A E | E74: =SUM(E8:E72) -> 44 | F74: 55 | G74: 78 | H74: 6 | I74: 16 | J74: 29 | K74: 96 | L74: =SUM(L8:L72) -> 144 | M74: 174 | N74: 107 | O74: 572 | P74: 749 | Q74: 248 | R74: 364 | S74: 502 | T74: 29 | U74: 95 | V74: 176 | W74: 304 | X74: =SUM(X8:X72) -> 568 | Y74: 608 | Z74: 334 | AA74: 2114 | AB74: 3228 | AC74: 3977 | AD74: 1858 | AE74: 2119 | AF74: 3977

Sheet FEUILLE de SAISIE
B3: FEUILLE de SAISIE
B5: Contrôle | D5: VF | E5: SF+ | F5: SF | G5: JF | H5: CF | I5: MF | J5: BF | K5: PuF | L5: PoF | M5: PpF | N5: VM | O5: SM+ | P5: SM | Q5: JM | R5: CM | S5: MM | T5: BM | U5: PuM | V5: PoM | W5: PpM | X5: Licences A | Y5: Licences B | Z5: Licences A+B
D6: 1 CERCLE D'ÉCHECS CYRANO | W6: AQ 24 | X6: 1 CYRANO 23
A7: =IF(B7<>C7,"ouille!","BON") -> BON | B7: =Z7 -> 23 | C7: =SUM(D7:W7) -> 23 | D7: 1 | E7: 0 | F7: 0 | G7: 0 | H7: 0 | I7: 0 | J7: 0 | K7: 0 | L7: 0 | M7: 1 | N7: 9 | O7: 5 | P7: 5 | Q7: 0 | R7: 0 | S7: 0 | T7: 1 | U7: 0 | V7: 1 | W7: 0 | X7: 18 | Y7: 5 | Z7: =X7+Y7 -> 23
D8: 2 LE FLEIX-LA TOUR INFERNALE (ALAC) | W8: AQ 24 | X8: 2 LE FLEIX 16
A9: =IF(B9<>C9,"ouille!","BON") -> BON | B9: =Z9 -> 16 | C9: =SUM(D9:W9) -> 16 | D9: 0 | E9: 0 | F9: 1 | G9: 0 | H9: 0 | I9: 0 | J9: 0 | K9: 0 | L9: 0 | M9: 0 | N9: 7 | O9: 4 | P9: 4 | Q9: 0 | R9: 0 | S9: 0 | T9: 0 | U9: 0 | V9: 0 | W9: 0 | X9: 13 | Y9: 3 | Z9: =SUM(X9:Y9) -> 16
D10: 3 ÉCHIQUIER DU NONTRONNAIS | W10: AQ 24 | X10: 3 NONTRON 23
A11: =IF(C11<>40,"Comment? Il n'y a pas 40 adhérents?","Il y a bien 40 adhérents!") -> Il y a bien 40 adhérents! | C11: =SUM(D11:W11) -> 40 | D11: 0 | E11: 4 | F11: 0 | G11: 0 | H11: 0 | I11: 0 | J11: 2 | K11: 2 | L11: 0 | M11: 0 | N11: 3 | O11: 9 | P11: 9 | Q11: 0 | R11: 1 | S11: 0 | T11: 1 | U11: 6 | V11: 1 | W11: 2
C12: =SUM(D12:W12) -> 2 | D12: 0 | E12: 0 | F12: 1 | G12: 0 | H12: 0 | I12: 0 | J12: 0 | K12: 0 | L12: 1 | M12: 0 | N12: 0 | O12: 0 | P12: 0 | Q12: 0 | R12: 0 | S12: 0 | T12: 0 | U12: 0 | V12: 0 | W12: 0
A13: BON | B13: 42 | C13: =SUM(D13:W13) -> 42 | D13: =SUM(D11:D12) -> 0 | E13: =SUM(E11:E12) -> 4 | F13: =SUM(F11:F12) -> 1 | G13: 0 | H13: 0 | I13: 0 | J13: 2 | K13: 2 | L13: 1 | M13: 0 | N13: =SUM(N11:N12) -> 3 | O13: =SUM(O11:O12) -> 9 | P13: =SUM(P11:P12) -> 9 | Q13: 0 | R13: 1 | S13: 0 | T13: 1 | U13: 6 | V13: 1 | W13: 2 | X13: 15 | Y13: 27 | Z13: =SUM(X13:Y13) -> 42
D14: 4 ÉCHIQUIER SALIGNACOIS | W14: AQ 24 | X14: 4 SALIGNAC 53
A15: BON | B15: =Z15 -> 33 | C15: =SUM(D15:W15) -> 33 | D15: 0 | E15: 0 | F15: 0 | G15: 0 | H15: 0 | I15: 1 | J15: 1 | K15: 2 | L15: 1 | M15: 1 | N15: 0 | O15: 1 | P15: 3 | Q15: 0 | R15: 2 | S15: 9 | T15: 3 | U15: 5 | V15: 4 | W15: 0 | X15: 6 | Y15: 27 | Z15: =SUM(X15:Y15) -> 33
D16: 5 L'ÉCHIQUIER DE SAINT SOUR | W16: AQ 24 | X16: 5 SAINT SOUR 68
A17: BON | B17: 4 | C17: =SUM(D17:W17) -> 4 | D17: 0 | E17: 1 | F17: 0 | G17: 0 | H17: 0 | I17: 0 | J17: 0 | K17: 0 | L17: 0 | M17: 1 | N17: 0 | O17: 0 | P17: 1 | Q17: 0 | R17: 0 | S17: 0 | T17: 1 | U17: 0 | V17: 0 | W17: 0 | X17: 4 | Y17: 0 | Z17: =SUM(X17:Y17) -> 4
D18: VF | E18: SF+ | F18: SF | G18: JF | H18: CF | I18: MF | J18: BF | K18: PuF | L18: PoF | M18: PpF | N18: VM | O18: SM+ | P18: SM | Q18: JM | R18: CM | S18: MM | T18: BM | U18: PuM | V18: PoM | W18: PpM | X18: Licences A | Y18: Licences B | Z18: Licences A+B
D19: 6 AGJA - ÉCHIQUIER AQUITAINE | W19: AQ 33 | X19: 6 AGJA 136
A20: =IF(C20<>40,"Comment? Il n'y a pas 40 adhérents?","Il y a bien 40 adhérents!") -> Il y a bien 40 adhérents! | C20: =SUM(D20:W20) -> 40 | D20: 1 | E20: 1 | F20: 2 | G20: 0 | H20: 0 | I20: 1 | J20: 1 | K20: 1 | L20: 1 | M20: 1 | N20: 3 | O20: 1 | P20: 3 | Q20: 0 | R20: 1 | S20: 0 | T20: 3 | U20: 6 | V20: 10 | W20: 4
A21: =IF(C21<>40,"Comment? Il n'y a pas 40 adhérents?","Il y a bien 40 adhérents!") -> Il y a bien 40 adhérents! | C21: =SUM(D21:W21) -> 40 | D21: 0 | E21: 1 | F21: 1 | G21: 1 | H21: 2 | I21: 0 | J21: 0 | K21: 0 | L21: 2 | M21: 2 | N21: 6 | O21: 3 | P21: 6 | Q21: 3 | R21: 1 | S21: 2 | T21: 3 | U21: 4 | V21: 2 | W21: 1
A22: =IF(C22<>40,"Comment? Il n'y a pas 40 adhérents?","Il y a bien 40 adhérents!") -> Il y a bien 40 adhérents! | C22: =SUM(D22:W22) -> 40 | D22: 1 | E22: 1 | F22: 1 | G22: 1 | H22: 0 | I22: 0 | J22: 0 | K22: 0 | L22: 2 | M22: 1 | N22: 6 | O22: 4 | P22: 7 | Q22: 1 | R22: 0 | S22: 1 | T22: 3 | U22: 3 | V22: 4 | W22: 4
C23: =SUM(D23:W23) -> 8 | D23: 0 | E23: 0 | F23: 0 | G23: 0 | H23: 0 | I23: 0 | J23: 0 | K23: 0 | L23: 0 | M23: 0 | N23: 1 | O23: 1 | P23: 3 | Q23: 0 | R23: 0 | S23: 0 | T23: 1 | U23: 1 | V23: 1 | W23: 0
A24: BON | B24: =Z24 -> 128 | C24: =SUM(D24:W24) -> 128 | D24: =SUM(D20:D23) -> 2 | E24: =SUM(E20:E23) -> 3 | F24: =SUM(F20:F23) -> 4 | G24: 2 | H24: 2 | I24: 1 | J24: 1 | K24: 1 | L24: 5 | M24: 4 | N24: 16 | O24: 9 | P24: 19 | Q24: 4 | R24: 2 | S24: 3 | T24: 10 | U24: 14 | V24: 17 | W24: 9 | X24: 96 | Y24: 32 | Z24: =SUM(X24:Y24) -> 128
D25: 7 BORDEAUX ASPOM ÉCHECS | W25: AQ 33 | X25: 7 ASPOM 183
A26: =IF(C26<>40,"Comment? Il n'y a pas 40 adhérents?","Il y a bien 40 adhérents!") -> Il y a bien 40 adhérents! | C26: =SUM(D26:W26) -> 40 | D26: 0 | E26: 0 | F26: 0 | G26: 0 | H26: 0 | I26: 0 | J26: 4 | K26: 3 | L26: 2 | M26: 2 | N26: 1 | O26: 5 | P26: 7 | Q26: 0 | R26: 0 | S26: 1 | T26: 2 | U26: 4 | V26: 6 | W26: 3
A27: =IF(C27<>40,"Comment? Il n'y a pas 40 adhérents?","Il y a bien 40 adhérents!") -> Il y a bien 40 adhérents! | C27: =SUM(D27:W27) -> 40 | D27: 0 | E27: 0 | F27: 0 | G27: 1 | H27: 0 | I27: 1 | J27: 3 | K27: 2 | L27: 2 | M27: 1 | N27: 2 | O27: 5 | P27: 7 | Q27: 1 | R27: 0 | S27: 2 | T27: 4 | U27: 2 | V27: 3 | W27: 4
A28: =IF(C28<>40,"Comment? Il n'y a pas 40 adhérents?","Il y a bien 40 adhérents!") -> Il y a bien 40 adhérents! | C28: =SUM(D28:W28) -> 40 | D28: 1 | E28: 0 | F28: 0 | G28: 0 | H28: 0 | I28: 1 | J28: 0 | K28: 1 | L28: 2 | M28: 1 | N28: 2 | O28: 5 | P28: 8 | Q28: 0 | R28: 0 | S28: 1 | T28: 6 | U28: 2 | V28: 7 | W28: 3
C29: =SUM(D29:W29) -> 22 | D29: 0 | E29: 1 | F29: 0 | G29: 0 | H29: 0 | I29: 1 | J29: 0 | K29: 1 | L29: 2 | M29: 1 | N29: 2 | O29: 2 | P29: 6 | Q29: 0 | R29: 0 | S29: 1 | T29: 0 | U29: 0 | V29: 2 | W29: 3
A30: BON | B30: =Z30 -> 142 | C30: =SUM(D30:W30) -> 142 | D30: =SUM(D26:D29) -> 1 | E30: =SUM(E26:E29) -> 1 | F30: =SUM(F26:F29) -> 0 | G30: 1 | H30: 0 | I30: 3 | J30: 7 | K30: 7 | L30: 8 | M30: 5 | N30: 7 | O30: 17 | P30: 28 | Q30: 1 | R30: 0 | S30: 5 | T30: 12 | U30: 8 | V30: 18 | W30: 13 | X30: 84 | Y30: 58 | Z30: =SUM(X30:Y30) -> 142
D31: 8 UNION SAINT BRUNO-BORDEAUX ÉCHECS | W31: AQ 33 | X31: 8 USB-BE 116
A32: =IF(C32<>40,"Comment? Il n'y a pas 40 adhérents?","Il y a bien 40 adhérents!") -> Il y a bien 40 adhérents! | C32: =SUM(D32:W32) -> 40 | D32: 0 | E32: 0 | F32: 1 | G32: 0 | H32: 0 | I32: 0 | J32: 0 | K32: 2 | L32: 5 | M32: 1 | N32: 0 | O32: 2 | P32: 1 | Q32: 0 | R32: 0 | S32: 2 | T32: 0 | U32: 4 | V32: 13 | W32: 9
A33: =IF(C33<>40,"Comment? Il n'y a pas 40 adhérents?","Il y a bien 40 adhérents!") -> Il y a bien 40 adhérents! | C33: =SUM(D33:W33) -> 40 | D33: 0 | E33: 1 | F33: 0 | G33: 0 | H33: 1 | I33: 1 | J33: 1 | K33: 1 | L33: 3 | M33: 2 | N33: 0 | O33: 4 | P33: 5 | Q33: 0 | R33: 2 | S33: 2 | T33: 3 | U33: 4 | V33: 10 | W33: 0
C34: =SUM(D34:W34) -> 32 | D34: 0 | E34: 0 | F34: 0 | G34: 0 | H34: 0 | I34: 0 | J34: 0 | K34: 3 | L34: 6 | M34: 2 | N34: 0 | O34: 1 | P34: 4 | Q34: 0 | R34: 2 | S34: 0 | T34: 0 | U34: 1 | V34: 11 | W34: 2
A35: BON | B35: =Z35 -> 112 | C35: =SUM(D35:W35) -> 112 | D35: =SUM(D32:D34) -> 0 | E35: =SUM(E32:E34) -> 1 | F35: =SUM(F32:F34) -> 1 | G35: 0 | H35: 1 | I35: 1 | J35: 1 | K35: 6 | L35: 14 | M35: 5 | N35: 0 | O35: 7 | P35: 10 | Q35: 0 | R35: 4 | S35: 4 | T35: 3 | U35: 9 | V35: 34 | W35: 11 | X35: 46 | Y35: 66 | Z35: =SUM(X35:Y35) -> 112
D36: 9 ÉCHIQUIER BORDELAIS | W36: AQ 33 | X36: 9 BORDEAUX 349
A37: =IF(C37<>40,"Comment? Il n'y a pas 40 adhérents?","Il y a bien 40 adhérents!") -> Il y a bien 40 adhérents! | C37: =SUM(D37:W37) -> 40 | D37: 0 | E37: 0 | F37: 0 | G37: 1 | H37: 0 | I37: 0 | J37: 0 | K37: 1 | L37: 1 | M37: 2 | N37: 1 | O37: 1 | P37: 8 | Q37: 2 | R37: 2 | S37: 1 | T37: 3 | U37: 8 | V37: 6 | W37: 3
A38: =IF(C38<>40,"Comment? Il n'y a pas 40 adhérents?","Il y a bien 40 adhérents!") -> Il y a bien 40 adhérents! | C38: 40 | D38: 0 | E38: 0 | F38: 0 | G38: 0 | H38: 0 | I38: 0 | J38: 0 | K38: 1 | L38: 3 | M38: 1 | N38: 2 | O38: 2 | P38: 7 | Q38: 0 | R38: 1 | S38: 1 | T38: 0 | U38: 3 | V38: 9 | W38: 10
A39: =IF(C39<>40,"Comment? Il n'y a pas 40 adhérents?","Il y a bien 40 adhérents!") -> Il y a bien 40 adhérents! | C39: 40 | D39: 0 | E39: 0 | F39: 0 | G39: 0 | H39: 2 | I39: 0 | J39: 0 | K39: 2 | L39: 2 | M39: 2 | N39: 1 | O39: 4 | P39: 3 | Q39: 0 | R39: 0 | S39: 0 | T39: 2 | U39: 5 | V39: 8 | W39: 9
A40: Il y a bien 40 adhérents! | C40: 40 | D40: 0 | E40: 1 | F40: 0 | G40: 0 | H40: 0 | I40: 0 | J40: 0 | K40: 1 | L40: 1 | M40: 2 | N40: 1 | O40: 3 | P40: 5 | Q40: 1 | R40: 0 | S40: 3 | T40: 1 | U40: 4 | V40: 10 | W40: 7
A41: Il y a bien 40 adhérents! | C41: 40 | D41: 0 | E41: 0 | F41: 0 | G41: 0 | H41: 0 | I41: 0 | J41: 0 | K41: 0 | L41: 0 | M41: 4 | N41: 3 | O41: 0 | P41: 6 | Q41: 1 | R41: 1 | S41: 0 | T41: 2 | U41: 9 | V41: 6 | W41: 8
A42: Il y a bien 40 adhérents! | C42: 40 | D42: 1 | E42: 0 | F42: 0 | G42: 0 | H42: 0 | I42: 0 | J42: 0 | K42: 0 | L42: 0 | M42: 4 | N42: 1 | O42: 5 | P42: 6 | Q42: 0 | R42: 0 | S42: 1 | T42: 2 | U42: 8 | V42: 9 | W42: 3
A43: =IF(C43<>40,"Comment? Il n'y a pas 40 adhérents?","Il y a bien 40 adhérents!") -> Il y a bien 40 adhérents! | C43: 40 | D43: 0 | E43: 1 | F43: 1 | G43: 0 | H43: 0 | I43: 0 | J43: 0 | K43: 0 | L43: 3 | M43: 2 | N43: 3 | O43: 4 | P43: 9 | Q43: 0 | R43: 2 | S43: 1 | T43: 0 | U43: 6 | V43: 5 | W43: 3
C44: 25 | D44: 0 | E44: 1 | F44: 0 | G44: 0 | H44: 0 | I44: 0 | J44: 0 | K44: 0 | L44: 2 | M44: 1 | N44: 1 | O44: 0 | P44: 2 | Q44: 1 | R44: 1 | S44: 1 | T44: 1 | U44: 3 | V44: 8 | W44: 3
A45: BON | B45: =Z45 -> 305 | C45: 305 | D45: =SUM(D37:D44) -> 1 | E45: =SUM(E37:E44) -> 3 | F45: =SUM(F37:F44) -> 1 | G45: 1 | H45: 2 | I45: 0 | J45: 0 | K45: 5 | L45: 12 | M45: 18 | N45: 13 | O45: 19 | P45: 46 | Q45: 5 | R45: 7 | S45: 8 | T45: 11 | U45: 46 | V45: 61 | W45: 46 | X45: 149 | Y45: 156 | Z45: =SUM(X45:Y45) -> 305
D46: VF | E46: SF+ | F46: SF | G46: JF | H46: CF | I46: MF | J46: BF | K46: PuF | L46: PoF | M46: PpF | N46: VM | O46: SM+ | P46: SM | Q46: JM | R46: CM | S46: MM | T46: BM | U46: PuM | V46: PoM | W46: PpM | X46: Licences A | Y46: Licences B | Z46: Licences A+B
D47: 10 ÉCHIQUIER ALBERT LE GRAND | W47: AQ 33 | X47: 10 ALGB 244
A48: =IF(C48<>40,"Comment? Il n'y a pas 40 adhérents?","Il y a bien 40 adhérents!") -> Il y a bien 40 adhérents! | C48: =SUM(D48:W48) -> 40 | D48: 0 | E48: 0 | F48: 0 | G48: 0 | H48: 0 | I48: 1 | J48: 1 | K48: 3 | L48: 1 | M48: 3 | N48: 0 | O48: 0 | P48: 1 | Q48: 1 | R48: 0 | S48: 1 | T48: 2 | U48: 12 | V48: 7 | W48: 7
A49: =IF(C49<>40,"Comment? Il n'y a pas 40 adhérents?","Il y a bien 40 adhérents!") -> Il y a bien 40 adhérents! | C49: 40 | D49: 0 | E49: 0 | F49: 1 | G49: 0 | H49: 0 | I49: 1 | J49: 3 | K49: 2 | L49: 3 | M49: 4 | N49: 0 | O49: 0 | P49: 1 | Q49: 0 | R49: 0 | S49: 2 | T49: 2 | U49: 5 | V49: 12 | W49: 4
A50: Il y a bien 40 adhérents! | C50: 40 | D50: 0 | E50: 0 | F50: 1 | G50: 0 | H50: 0 | I50: 0 | J50: 1 | K50: 4 | L50: 7 | M50: 2 | N50: 0 | O50: 0 | P50: 2 | Q50: 0 | R50: 2 | S50: 1 | T50: 4 | U50: 5 | V50: 6 | W50: 5
A51: Il y a bien 40 adhérents! | C51: 40 | D51: 0 | E51: 0 | F51: 0 | G51: 0 | H51: 0 | I51: 0 | J51: 2 | K51: 4 | L51: 3 | M51: 1 | N51: 0 | O51: 1 | P51: 0 | Q51: 0 | R51: 0 | S51: 4 | T51: 4 | U51: 8 | V51: 10 | W51: 3
A52: Il y a bien 40 adhérents! | C52: 40 | D52: 0 | E52: 0 | F52: 1 | G52: 0 | H52: 0 | I52: 1 | J52: 1 | K52: 6 | L52: 1 | M52: 3 | N52: 0 | O52: 0 | P52: 2 | Q52: 0 | R52: 1 | S52: 3 | T52: 3 | U52: 7 | V52: 8 | W52: 3
A53: Il y a bien 40 adhérents! | C53: 40 | D53: 0 | E53: 1 | F53: 0 | G53: 0 | H53: 0 | I53: 0 | J53: 0 | K53: 5 | L53: 3 | M53: 1 | N53: 0 | O53: 0 | P53: 1 | Q53: 0 | R53: 1 | S53: 3 | T53: 2 | U53: 7 | V53: 13 | W53: 3
A54: Il y a bien 40 adhérents! | C54: 40 | D54: 0 | E54: 0 | F54: 0 | G54: 0 | H54: 0 | I54: 1 | J54: 0 | K54: 2 | L54: 4 | M54: 3 | N54: 0 | O54: 0 | P54: 0 | Q54: 0 | R54: 0 | S54: 2 | T54: 1 | U54: 9 | V54: 14 | W54: 4
C55: 15 | D55: 0 | E55: 0 | F55: 0 | G55: 0 | H55: 0 | I55: 0 | J55: 0 | K55: 1 | L55: 0 | M55: 2 | N55: 0 | O55: 0 | P55: 0 | Q55: 0 | R55: 1 | S55: 0 | T55: 1 | U55: 7 | V55: 2 | W55: 1
A56: BON | B56: =Z56 -> 295 | C56: 295 | D56: =SUM(D48:D55) -> 0 | E56: =SUM(E48:E55) -> 1 | F56: =SUM(F48:F55) -> 3 | G56: 0 | H56: 0 | I56: 4 | J56: 8 | K56: 27 | L56: 22 | M56: 19 | N56: 0 | O56: 1 | P56: 7 | Q56: 1 | R56: 5 | S56: 16 | T56: 19 | U56: 60 | V56: 72 | W56: 30 | X56: 93 | Y56: 202 | Z56: =SUM(X56:Y56) -> 295
D57: 11 ÉCHIQUIER CLUB CREONNAIS | W57: AQ 33 | X57: 11 CREON 50
A58: =IF(C58<>40,"Comment? Il n'y a pas 40 adhérents?","Il y a bien 40 adhérents!") -> Il y a bien 40 adhérents! | C58: =SUM(D58:W58) -> 40 | D58: 1 | E58: 0 | F58: 3 | G58: 0 | H58: 0 | I58: 0 | J58: 0 | K58: 2 | L58: 1 | M58: 0 | N58: 6 | O58: 5 | P58: 4 | Q58: 0 | R58: 0 | S58: 1 | T58: 4 | U58: 4 | V58: 3 | W58: 6
A59: Il y a bien 40 adhérents! | C59: =SUM(D59:W59) -> 40 | D59: 0 | E59: 1 | F59: 1 | G59: 0 | H59: 0 | I59: 0 | J59: 3 | K59: 1 | L59: 2 | M59: 2 | N59: 2 | O59: 6 | P59: 4 | Q59: 0 | R59: 1 | S59: 0 | T59: 2 | U59: 5 | V59: 7 | W59: 3
C60: =SUM(D60:W60) -> 8 | D60: 0 | E60: 0 | F60: 0 | G60: 0 | H60: 0 | I60: 0 | J60: 0 | K60: 1 | L60: 2 | M60: 0 | N60: 1 | O60: 0 | P60: 0 | Q60: 0 | R60: 0 | S60: 0 | T60: 2 | U60: 1 | V60: 1 | W60: 0
A61: BON | B61: =Z61 -> 88 | C61: =SUM(D61:W61) -> 88 | D61: =SUM(D58:D60) -> 1 | E61: =SUM(E58:E60) -> 1 | F61: =SUM(F58:F60) -> 4 | G61: 0 | H61: 0 | I61: 0 | J61: 3 | K61: 4 | L61: 5 | M61: 2 | N61: 9 | O61: 11 | P61: 8 | Q61: 0 | R61: 1 | S61: 1 | T61: 8 | U61: 10 | V61: 11 | W61: 9 | X61: 54 | Y61: 34 | Z61: =SUM(X61:Y61) -> 88
D62: 12 GUJAN-MESTRAS ÉCHECS | W62: AQ 33 | X62: 12 GUJAN 49
A63: =IF(C63<>40,"Comment? Il n'y a pas 40 adhérents?","Il y a bien 40 adhérents!") -> Il y a bien 40 adhérents! | C63: =SUM(D63:W63) -> 40 | D63: 0 | E63: 0 | F63: 1 | G63: 0 | H63: 0 | I63: 0 | J63: 1 | K63: 0 | L63: 0 | M63: 1 | N63: 6 | O63: 9 | P63: 5 | Q63: 0 | R63: 1 | S63: 3 | T63: 2 | U63: 3 | V63: 5 | W63: 3
C64: =SUM(D64:W64) -> 17 | D64: 0 | E64: 0 | F64: 1 | G64: 0 | H64: 0 | I64: 0 | J64: 1 | K64: 0 | L64: 0 | M64: 0 | N64: 4 | O64: 2 | P64: 5 | Q64: 0 | R64: 0 | S64: 1 | T64: 0 | U64: 1 | V64: 1 | W64: 1
A65: BON | B65: =Z65 -> 57 | C65: =SUM(D65:W65) -> 57 | D65: =SUM(D63:D64) -> 0 | E65: =SUM(E63:E64) -> 0 | F65: =SUM(F63:F64) -> 2 | G65: 0 | H65: 0 | I65: 0 | J65: 2 | K65: 0 | L65: 0 | M65: 1 | N65: 10 | O65: 11 | P65: 10 | Q65: 0 | R65: 1 | S65: 4 | T65: 2 | U65: 4 | V65: 6 | W65: 4 | X65: 30 | Y65: 27 | Z65: =SUM(X65:Y65) -> 57
D66: 13 ÉCHECS CLUB RÉOLAIS | W66: AQ 33 | X66: 13 LA REOLE 13
A67: BON | B67: =Z67 -> 12 | C67: =SUM(D67:W67) -> 12 | D67: 0 | E67: 0 | F67: 0 | G67: 0 | H67: 0 | I67: 0 | J67: 0 | K67: 0 | L67: 0 | M67: 0 | N67: 1 | O67: 2 | P67: 3 | Q67: 0 | R67: 0 | S67: 1 | T67: 3 | U67: 0 | V67: 1 | W67: 1 | X67: 5 | Y67: 7 | Z67: =SUM(X67:Y67) -> 12
D68: VF | E68: SF+ | F68: SF | G68: JF | H68: CF | I68: MF | J68: BF | K68: PuF | L68: PoF | M68: PpF | N68: VM | O68: SM+ | P68: SM | Q68: JM | R68: CM | S68: MM | T68: BM | U68: PuM | V68: PoM | W68: PpM | X68: Licences A | Y68: Licences B | Z68: Licences A+B
D69: 14 ÉCHIQUIER MÉDOCAIN | W69: AQ 33 | X69: 14 MEDOC 41
A70: =IF(C70<>40,"Comment? Il n'y a pas 40 adhérents?","Il y a bien 40 adhérents!") -> Il y a bien 40 adhérents! | C70: =SUM(D70:W70) -> 40 | D70: 1 | E70: 2 | F70: 2 | G70: 0 | H70: 0 | I70: 0 | J70: 1 | K70: 0 | L70: 0 | M70: 0 | N70: 2 | O70: 7 | P70: 13 | Q70: 0 | R70: 4 | S70: 1 | T70: 1 | U70: 3 | V70: 3 | W70: 0
C71: =SUM(D71:W71) -> 4 | D71: 0 | E71: 1 | F71: 1 | G71: 0 | H71: 0 | I71: 0 | J71: 0 | K71: 0 | L71: 0 | M71: 0 | N71: 0 | O71: 0 | P71: 0 | Q71: 0 | R71: 0 | S71: 0 | T71: 1 | U71: 1 | V71: 0 | W71: 0
A72: BON | B72: =Z72 -> 44 | C72: =SUM(D72:W72) -> 44 | D72: =SUM(D70:D71) -> 1 | E72: =SUM(E70:E71) -> 3 | F72: =SUM(F70:F71) -> 3 | G72: 0 | H72: 0 | I72: 0 | J72: 1 | K72: 0 | L72: 0 | M72: 0 | N72: 2 | O72: 7 | P72: 13 | Q72: 0 | R72: 4 | S72: 1 | T72: 2 | U72: 4 | V72: 3 | W72: 0 | X72: 39 | Y72: 5 | Z72: =SUM(X72:Y72) -> 44
D73: 15 ÉCHIQUIER LIBOURNAIS | W73: AQ 33 | X73: 15 LIBOURNE 118
A74: =IF(C74<>40,"Comment? Il n'y a pas 40 adhérents?","Il y a bien 40 adhérents!") -> Il y a bien 40 adhérents! | C74: =SUM(D74:W74) -> 40 | D74: 1 | E74: 0 | F74: 0 | G74: 0 | H74: 0 | I74: 0 | J74: 5 | K74: 2 | L74: 3 | M74: 1 | N74: 0 | O74: 2 | P74: 3 | Q74: 0 | R74: 1 | S74: 1 | T74: 5 | U74: 7 | V74: 9 | W74: 0
A75: Il y a bien 40 adhérents! | C75: =SUM(D75:W75) -> 40 | D75: 2 | E75: 1 | F75: 0 | G75: 0 | H75: 0 | I75: 0 | J75: 0 | K75: 3 | L75: 3 | M75: 0 | N75: 3 | O75: 2 | P75: 1 | Q75: 0 | R75: 1 | S75: 4 | T75: 5 | U75: 8 | V75: 3 | W75: 4
A76: Il y a bien 40 adhérents! | C76: =SUM(D76:W76) -> 40 | D76: 0 | E76: 1 | F76: 1 | G76: 0 | H76: 0 | I76: 1 | J76: 4 | K76: 2 | L76: 1 | M76: 0 | N76: 2 | O76: 1 | P76: 2 | Q76: 0 | R76: 2 | S76: 2 | T76: 7 | U76: 5 | V76: 5 | W76: 4
C77: =SUM(D77:W77) -> 8 | D77: 0 | E77: 0 | F77: 1 | G77: 0 | H77: 0 | I77: 0 | J77: 1 | K77: 1 | L77: 1 | M77: 0 | N77: 1 | O77: 0 | P77: 0 | Q77: 0 | R77: 0 | S77: 1 | T77: 0 | U77: 1 | V77: 1 | W77: 0
A78: =IF(B78<>C78,"ouille!","BON") -> BON | B78: =Z78 -> 128 | C78: =SUM(D78:W78) -> 128 | D78: =SUM(D74:D77) -> 3 | E78: =SUM(E74:E77) -> 2 | F78: =SUM(F74:F77) -> 2 | G78: 0 | H78: 0 | I78: 1 | J78: 10 | K78: 8 | L78: 8 | M78: 1 | N78: 6 | O78: 5 | P78: 6 | Q78: 0 | R78: 4 | S78: 8 | T78: 17 | U78: 21 | V78: 18 | W78: 8 | X78: 31 | Y78: 97 | Z78: =SUM(X78:Y78) -> 128
D79: 16 MERIGNAC ÉCHECS | W79: AQ 33 | X79: 16 MERIGNAC 19
A80: BON | B80: 9 | C80: =SUM(D80:W80) -> 9 | D80: 0 | E80: 0 | F80: 1 | G80: 0 | H80: 0 | I80: 0 | J80: 0 | K80: 0 | L80: 0 | M80: 0 | N80: 2 | O80: 4 | P80: 2 | Q80: 0 | R80: 0 | S80: 0 | T80: 0 | U80: 0 | V80: 0 | W80: 0 | X80: 9 | Y80: 0 | Z80: =SUM(X80:Y80) -> 9
D81: 17 PAREMPUYRE ÉCHECS | W81: AQ 33 | X81: 17 PAREMPUYRE 48
A82: BON | B82: =Z82 -> 32 | C82: =SUM(D82:W82) -> 32 | D82: 0 | E82: 1 | F82: 1 | G82: 1 | H82: 0 | I82: 2 | J82: 0 | K82: 1 | L82: 0 | M82: 1 | N82: 2 | O82: 5 | P82: 4 | Q82: 1 | R82: 6 | S82: 1 | T82: 4 | U82: 1 | V82: 0 | W82: 1 | X82: 18 | Y82: 14 | Z82: =SUM(X82:Y82) -> 32
D83: 18 ÉCHIQUIER TRESSOIS | W83: AQ 33 | X83: 18 TRESSES 62
A84: =IF(C84<>40,"Comment? Il n'y a pas 40 adhérents?","Il y a bien 40 adhérents!") -> Il y a bien 40 adhérents! | C84: =SUM(D84:W84) -> 40 | D84: 0 | E84: 0 | F84: 0 | G84: 0 | H84: 0 | I84: 0 | J84: 1 | K84: 0 | L84: 2 | M84: 2 | N84: 1 | O84: 5 | P84: 9 | Q84: 0 | R84: 1 | S84: 2 | T84: 4 | U84: 7 | V84: 4 | W84: 2
A85: =IF(C85<>40,"Comment? Il n'y a pas 40 adhérents?","Il y a bien 40 adhérents!") -> Il y a bien 40 adhérents! | C85: =SUM(D85:W85) -> 40 | D85: 0 | E85: 0 | F85: 0 | G85: 0 | H85: 0 | I85: 0 | J85: 1 | K85: 2 | L85: 0 | M85: 0 | N85: 2 | O85: 5 | P85: 5 | Q85: 1 | R85: 1 | S85: 5 | T85: 1 | U85: 5 | V85: 8 | W85: 4
C86: =SUM(D86:W86) -> 21 | D86: 0 | E86: 0 | F86: 0 | G86: 0 | H86: 0 | I86: 0 | J86: 0 | K86: 1 | L86: 0 | M86: 1 | N86: 3 | O86: 0 | P86: 2 | Q86: 0 | R86: 0 | S86: 1 | T86: 3 | U86: 5 | V86: 2 | W86: 3
A87: BON | B87: =Z87 -> 101 | C87: =SUM(D87:W87) -> 101 | D87: =SUM(D84:D86) -> 0 | E87: =SUM(E84:E86) -> 0 | F87: =SUM(F84:F86) -> 0 | G87: 0 | H87: 0 | I87: 0 | J87: 2 | K87: 3 | L87: 2 | M87: 3 | N87: 6 | O87: 10 | P87: 16 | Q87: 1 | R87: 2 | S87: 8 | T87: 8 | U87: 17 | V87: 14 | W87: 9 | X87: 47 | Y87: 54 | Z87: =SUM(X87:Y87) -> 101
D88: VF | E88: SF+ | F88: SF | G88: JF | H88: CF | I88: MF | J88: BF | K88: PuF | L88: PoF | M88: PpF | N88: VM | O88: SM+ | P88: SM | Q88: JM | R88: CM | S88: MM | T88: BM | U88: PuM | V88: PoM | W88: PpM | X88: Licences A | Y88: Licences B | Z88: Licences A+B
D89: 19 DAX ÉCHIQUIER DACQUOIS | W89: AQ 40 | X89: 19 DAX 31
A90: BON | B90: =Z90 -> 27 | C90: =SUM(D90:W90) -> 27 | D90: 0 | E90: 0 | F90: 0 | G90: 0 | H90: 0 | I90: 0 | J90: 0 | K90: 0 | L90: 1 | M90: 0 | N90: 15 | O90: 1 | P90: 2 | Q90: 0 | R90: 1 | S90: 0 | T90: 1 | U90: 4 | V90: 2 | W90: 0 | X90: 20 | Y90: 7 | Z90: =SUM(X90:Y90) -> 27
D91: 20 MIMIZAN LE FOU ENSABLÉ (ASEM) | W91: AQ 40 | X91: 20 MIMIZAN 11
A92: BON | B92: =Z92 -> 17 | C92: =SUM(D92:W92) -> 17 | D92: 1 | E92: 1 | F92: 0 | G92: 0 | H92: 0 | I92: 0 | J92: 0 | K92: 0 | L92: 0 | M92: 0 | N92: 4 | O92: 7 | P92: 3 | Q92: 0 | R92: 0 | S92: 1 | T92: 0 | U92: 0 | V92: 0 | W92: 0 | X92: 6 | Y92: 11 | Z92: =SUM(X92:Y92) -> 17
D93: 21 ÉCHIQUIER MONTOIS | W93: AQ 40 | X93: 21 MONT DE MARSAN 241
A94: =IF(C94<>40,"Comment? Il n'y a pas 40 adhérents?","Il y a bien 40 adhérents!") -> Il y a bien 40 adhérents! | C94: =SUM(D94:W94) -> 40 | D94: 0 | E94: 0 | F94: 0 | G94: 0 | H94: 0 | I94: 0 | J94: 3 | K94: 4 | L94: 1 | M94: 0 | N94: 1 | O94: 0 | P94: 2 | Q94: 0 | R94: 1 | S94: 4 | T94: 5 | U94: 13 | V94: 5 | W94: 1
A95: Il y a bien 40 adhérents! | C95: 40 | D95: 0 | E95: 2 | F95: 0 | G95: 0 | H95: 0 | I95: 0 | J95: 4 | K95: 1 | L95: 2 | M95: 1 | N95: 1 | O95: 3 | P95: 0 | Q95: 0 | R95: 0 | S95: 3 | T95: 7 | U95: 12 | V95: 3 | W95: 1
A96: Il y a bien 40 adhérents! | C96: 40 | D96: 0 | E96: 0 | F96: 2 | G96: 0 | H96: 1 | I96: 0 | J96: 2 | K96: 3 | L96: 2 | M96: 0 | N96: 1 | O96: 4 | P96: 4 | Q96: 0 | R96: 0 | S96: 1 | T96: 8 | U96: 5 | V96: 7 | W96: 0
A97: Il y a bien 40 adhérents! | C97: 40 | D97: 0 | E97: 0 | F97: 1 | G97: 0 | H97: 0 | I97: 0 | J97: 2 | K97: 4 | L97: 3 | M97: 0 | N97: 1 | O97: 2 | P97: 0 | Q97: 0 | R97: 0 | S97: 3 | T97: 10 | U97: 9 | V97: 4 | W97: 1
A98: Il y a bien 40 adhérents! | C98: 40 | D98: 0 | E98: 0 | F98: 0 | G98: 0 | H98: 1 | I98: 0 | J98: 2 | K98: 3 | L98: 3 | M98: 0 | N98: 0 | O98: 4 | P98: 4 | Q98: 0 | R98: 0 | S98: 1 | T98: 6 | U98: 10 | V98: 5 | W98: 1
C99: 15 | D99: 0 | E99: 0 | F99: 1 | G99: 0 | H99: 0 | I99: 0 | J99: 1 | K99: 3 | L99: 0 | M99: 0 | N99: 0 | O99: 1 | P99: 1 | Q99: 0 | R99: 0 | S99: 0 | T99: 1 | U99: 4 | V99: 3 | W99: 0
A100: BON | B100: 215 | C100: 215 | D100: =SUM(D94:D99) -> 0 | E100: =SUM(E94:E99) -> 2 | F100: =SUM(F94:F99) -> 4 | G100: 0 | H100: 2 | I100: 0 | J100: 14 | K100: 18 | L100: 11 | M100: 1 | N100: 4 | O100: 14 | P100: 11 | Q100: 0 | R100: 1 | S100: 12 | T100: 37 | U100: 53 | V100: 27 | W100: 4 | X100: 59 | Y100: 156 | Z100: =SUM(X100:Y100) -> 215
D101: 22 HOSSEGOR ÉCHECS | W101: AQ 40 | X101: 22 HOSSEGOR 34
A102: BON | B102: 30 | C102: =SUM(D102:W102) -> 30 | D102: 1 | E102: 2 | F102: 1 | G102: 0 | H102: 0 | I102: 0 | J102: 1 | K102: 0 | L102: 0 | M102: 0 | N102: 8 | O102: 6 | P102: 5 | Q102: 1 | R102: 0 | S102: 1 | T102: 2 | U102: 1 | V102: 1 | W102: 0 | X102: 13 | Y102: 17 | Z102: =SUM(X102:Y102) -> 30
D103: VF | E103: SF+ | F103: SF | G103: JF | H103: CF | I103: MF | J103: BF | K103: PuF | L103: PoF | M103: PpF | N103: VM | O103: SM+ | P103: SM | Q103: JM | R103: CM | S103: MM | T103: BM | U103: PuM | V103: PoM | W103: PpM | X103: Licences A | Y103: Licences B | Z103: Licences A+B
D104: 23 ÉCHIQUIER AGENAIS | W104: AQ 47 | X104: 23 AGEN139
A105: =IF(C105<>40,"Comment? Il n'y a pas 40 adhérents?","Il y a bien 40 adhérents!") -> Il y a bien 40 adhérents! | C105: =SUM(D105:W105) -> 40 | D105: 0 | E105: 1 | F105: 2 | G105: 0 | H105: 0 | I105: 0 | J105: 0 | K105: 0 | L105: 3 | M105: 1 | N105: 1 | O105: 3 | P105: 10 | Q105: 0 | R105: 1 | S105: 0 | T105: 1 | U105: 8 | V105: 5 | W105: 4
A106: =IF(C106<>40,"Comment? Il n'y a pas 40 adhérents?","Il y a bien 40 adhérents!") -> Il y a bien 40 adhérents! | C106: =SUM(D106:W106) -> 40 | D106: 0 | E106: 0 | F106: 4 | G106: 0 | H106: 0 | I106: 0 | J106: 1 | K106: 1 | L106: 0 | M106: 1 | N106: 1 | O106: 3 | P106: 8 | Q106: 0 | R106: 1 | S106: 1 | T106: 1 | U106: 3 | V106: 9 | W106: 6
A107: Il y a bien 40 adhérents! | C107: =SUM(D107:W107) -> 40 | D107: 0 | E107: 0 | F107: 2 | G107: 0 | H107: 0 | I107: 0 | J107: 1 | K107: 1 | L107: 1 | M107: 2 | N107: 1 | O107: 5 | P107: 7 | Q107: 0 | R107: 0 | S107: 5 | T107: 4 | U107: 3 | V107: 4 | W107: 4
C108: =SUM(D108:W108) -> 8 | D108: 0 | E108: 0 | F108: 0 | G108: 0 | H108: 0 | I108: 0 | J108: 0 | K108: 0 | L108: 2 | M108: 0 | N108: 0 | O108: 1 | P108: 1 | Q108: 0 | R108: 0 | S108: 0 | T108: 0 | U108: 2 | V108: 2 | W108: 0
A109: BON | B109: 128 | C109: =SUM(D109:W109) -> 128 | D109: =SUM(D105:D108) -> 0 | E109: =SUM(E105:E108) -> 1 | F109: =SUM(F105:F108) -> 8 | G109: 0 | H109: 0 | I109: 0 | J109: 2 | K109: 2 | L109: 6 | M109: 4 | N109: 3 | O109: 12 | P109: 26 | Q109: 0 | R109: 2 | S109: 6 | T109: 6 | U109: 16 | V109: 20 | W109: 14 | X109: 80 | Y109: 48 | Z109: =SUM(X109:Y109) -> 128
D110: 24 ÉCHIQUIER MARMANDAIS | W110: AQ 47 | X110: 24 MARMANDE 23
A111: BON | B111: 14 | C111: =SUM(D111:W111) -> 14 | D111: 1 | E111: 0 | F111: 0 | G111: 0 | H111: 0 | I111: 0 | J111: 0 | K111: 2 | L111: 0 | M111: 0 | N111: 2 | O111: 3 | P111: 2 | Q111: 0 | R111: 0 | S111: 0 | T111: 1 | U111: 3 | V111: 0 | W111: 0 | X111: 6 | Y111: 8 | Z111: =SUM(X111:Y111) -> 14
D112: 25 CLUB DES ÉCHECS DU PAYS DE LAUZUN | W112: AQ 47 | X112: 25 PAYS DE LAUZUN
A113: BON | B113: =Z113 -> 24 | C113: =SUM(D113:W113) -> 24 | D113: 2 | E113: 3 | F113: 1 | G113: 0 | H113: 0 | I113: 0 | J113: 0 | K113: 0 | L113: 0 | M113: 0 | N113: 8 | O113: 3 | P113: 3 | Q113: 0 | R113: 1 | S113: 0 | T113: 0 | U113: 1 | V113: 2 | W113: 0 | X113: 13 | Y113: 11 | Z113: =SUM(X113:Y113) -> 24
D114: 26 L'ÉCHIQUIER VILLENEUVOIS | W114: AQ 47 | X114: 26 VILLENEUVE 53
A115: =IF(C115<>40,"Comment? Il n'y a pas 40 adhérents?","Il y a bien 40 adhérents!") -> Il y a bien 40 adhérents! | C115: =SUM(D115:W115) -> 40 | D115: 0 | E115: 2 | F115: 2 | G115: 0 | H115: 0 | I115: 0 | J115: 1 | K115: 0 | L115: 0 | M115: 2 | N115: 0 | O115: 6 | P115: 7 | Q115: 0 | R115: 0 | S115: 2 | T115: 3 | U115: 8 | V115: 3 | W115: 4
C116: =SUM(D116:W116) -> 22 | D116: 0 | E116: 1 | F116: 0 | G116: 0 | H116: 0 | I116: 0 | J116: 0 | K116: 1 | L116: 2 | M116: 0 | N116: 2 | O116: 2 | P116: 4 | Q116: 0 | R116: 0 | S116: 1 | T116: 1 | U116: 3 | V116: 3 | W116: 2
A117: BON | B117: 62 | C117: =SUM(D117:W117) -> 62 | D117: =SUM(D115:D116) -> 0 | E117: =SUM(E115:E116) -> 3 | F117: =SUM(F115:F116) -> 2 | G117: 0 | H117: 0 | I117: 0 | J117: 1 | K117: 1 | L117: 2 | M117: 2 | N117: 2 | O117: 8 | P117: 11 | Q117: 0 | R117: 0 | S117: 3 | T117: 4 | U117: 11 | V117: 6 | W117: 6 | X117: 38 | Y117: 24 | Z117: =SUM(X117:Y117) -> 62
D118: VF | E118: SF+ | F118: SF | G118: JF | H118: CF | I118: MF | J118: BF | K118: PuF | L118: PoF | M118: PpF | N118: VM | O118: SM+ | P118: SM | Q118: JM | R118: CM | S118: MM | T118: BM | U118: PuM | V118: PoM | W118: PpM | X118: Licences A | Y118: Licences B | Z118: Licences A+B
D119: 27 ÉCHIQUIER BAYONNE ADOUR | W119: AQ 64 | X119: 27 BAYONNE 21
A120: BON | B120: =Z120 -> 32 | C120: =SUM(D120:W120) -> 32 | D120: 5 | E120: 2 | F120: 0 | G120: 0 | H120: 0 | I120: 0 | J120: 0 | K120: 0 | L120: 0 | M120: 0 | N120: 5 | O120: 6 | P120: 2 | Q120: 0 | R120: 4 | S120: 0 | T120: 4 | U120: 0 | V120: 3 | W120: 1 | X120: 17 | Y120: 15 | Z120: =SUM(X120:Y120) -> 32
D121: 28 AVIRON BAYONNAIS | W121: AQ 64 | X121: 28 BASQUE 134
A122: =IF(C122<>40,"Comment? Il n'y a pas 40 adhérents?","Il y a bien 40 adhérents!") -> Il y a bien 40 adhérents! | C122: =SUM(D122:W122) -> 40 | D122: 0 | E122: 0 | F122: 1 | G122: 0 | H122: 0 | I122: 0 | J122: 0 | K122: 0 | L122: 1 | M122: 1 | N122: 0 | O122: 4 | P122: 4 | Q122: 1 | R122: 0 | S122: 0 | T122: 0 | U122: 7 | V122: 18 | W122: 3
A123: Il y a bien 40 adhérents! | C123: 40 | D123: 1 | E123: 2 | F123: 0 | G123: 0 | H123: 0 | I123: 0 | J123: 0 | K123: 1 | L123: 1 | M123: 2 | N123: 0 | O123: 2 | P123: 4 | Q123: 0 | R123: 0 | S123: 2 | T123: 0 | U123: 1 | V123: 11 | W123: 13
A124: Il y a bien 40 adhérents! | C124: 40 | D124: 0 | E124: 0 | F124: 0 | G124: 0 | H124: 0 | I124: 0 | J124: 0 | K124: 0 | L124: 2 | M124: 3 | N124: 0 | O124: 2 | P124: 2 | Q124: 0 | R124: 1 | S124: 0 | T124: 0 | U124: 4 | V124: 11 | W124: 15
A125: Il y a bien 40 adhérents! | C125: 40 | D125: 0 | E125: 0 | F125: 1 | G125: 0 | H125: 0 | I125: 0 | J125: 1 | K125: 1 | L125: 0 | M125: 1 | N125: 1 | O125: 3 | P125: 7 | Q125: 0 | R125: 0 | S125: 2 | T125: 0 | U125: 3 | V125: 14 | W125: 6
C126: 22 | D126: 0 | E126: 0 | F126: 0 | G126: 0 | H126: 0 | I126: 0 | J126: 0 | K126: 0 | L126: 0 | M126: 0 | N126: 3 | O126: 1 | P126: 2 | Q126: 0 | R126: 0 | S126: 0 | T126: 0 | U126: 4 | V126: 4 | W126: 8
A127: BON | B127: =Z127 -> 182 | C127: 182 | D127: =SUM(D122:D126) -> 1 | E127: =SUM(E122:E126) -> 2 | F127: =SUM(F122:F126) -> 2 | G127: 0 | H127: 0 | I127: 0 | J127: 1 | K127: 2 | L127: 4 | M127: 7 | N127: 4 | O127: 12 | P127: 19 | Q127: 1 | R127: 1 | S127: 4 | T127: 0 | U127: 19 | V127: 58 | W127: 45 | X127: 42 | Y127: 140 | Z127: =SUM(X127:Y127) -> 182
D128: 29 ÉCHECS SICSBT | W128: AQ 64 | X128: 29 SICSBT 23
A129: BON | B129: =Z129 -> 18 | C129: =SUM(D129:W129) -> 18 | D129: 1 | E129: 0 | F129: 1 | G129: 0 | H129: 0 | I129: 0 | J129: 0 | K129: 0 | L129: 0 | M129: 0 | N129: 1 | O129: 2 | P129: 0 | Q129: 0 | R129: 0 | S129: 0 | T129: 2 | U129: 4 | V129: 6 | W129: 1 | X129: 15 | Y129: 3 | Z129: =SUM(X129:Y129) -> 18
D130: 30 ÉCHIQUIER HENRI IV PAU | W130: AQ 64 | X130: 30 HENRI IV 251
A131: =IF(C131<>40,"Comment? Il n'y a pas 40 adhérents?","Il y a bien 40 adhérents!") -> Il y a bien 40 adhérents! | C131: =SUM(D131:W131) -> 40 | D131: 0 | E131: 0 | F131: 0 | G131: 0 | H131: 1 | I131: 0 | J131: 0 | K131: 1 | L131: 4 | M131: 2 | N131: 1 | O131: 0 | P131: 3 | Q131: 0 | R131: 2 | S131: 3 | T131: 3 | U131: 6 | V131: 6 | W131: 8
A132: Il y a bien 40 adhérents! | C132: 40 | D132: 1 | E132: 0 | F132: 0 | G132: 0 | H132: 0 | I132: 0 | J132: 3 | K132: 0 | L132: 2 | M132: 1 | N132: 3 | O132: 1 | P132: 3 | Q132: 0 | R132: 0 | S132: 3 | T132: 5 | U132: 4 | V132: 8 | W132: 6
A133: Il y a bien 40 adhérents! | C133: 40 | D133: 1 | E133: 1 | F133: 1 | G133: 0 | H133: 0 | I133: 0 | J133: 1 | K133: 1 | L133: 1 | M133: 0 | N133: 3 | O133: 1 | P133: 9 | Q133: 0 | R133: 5 | S133: 4 | T133: 1 | U133: 5 | V133: 4 | W133: 2
A134: Il y a bien 40 adhérents! | C134: 40 | D134: 2 | E134: 1 | F134: 1 | G134: 0 | H134: 0 | I134: 1 | J134: 3 | K134: 0 | L134: 1 | M134: 1 | N134: 2 | O134: 2 | P134: 5 | Q134: 0 | R134: 1 | S134: 1 | T134: 6 | U134: 6 | V134: 3 | W134: 4
C135: 11 | D135: 0 | E135: 0 | F135: 0 | G135: 0 | H135: 0 | I135: 0 | J135: 0 | K135: 0 | L135: 1 | M135: 0 | N135: 0 | O135: 2 | P135: 1 | Q135: 0 | R135: 0 | S135: 0 | T135: 1 | U135: 3 | V135: 1 | W135: 2
A136: BON | B136: 171 | C136: 171 | D136: =SUM(D131:D135) -> 4 | E136: =SUM(E131:E135) -> 2 | F136: =SUM(F131:F135) -> 2 | G136: 0 | H136: 1 | I136: 1 | J136: 7 | K136: 2 | L136: 9 | M136: 4 | N136: 9 | O136: 6 | P136: 21 | Q136: 0 | R136: 8 | S136: 11 | T136: 16 | U136: 24 | V136: 22 | W136: 22 | X136: 59 | Y136: 112 | Z136: =SUM(X136:Y136) -> 171
D137: 31 PAU SARRAILH ÉCHECS | W137: AQ 64 | X137: 31 SARRAILH 19
A138: BON | B138: 17 | C138: =SUM(D138:W138) -> 17 | D138: 0 | E138: 0 | F138: 0 | G138: 0 | H138: 0 | I138: 0 | J138: 0 | K138: 0 | L138: 0 | M138: 0 | N138: 5 | O138: 1 | P138: 4 | Q138: 0 | R138: 2 | S138: 0 | T138: 1 | U138: 0 | V138: 1 | W138: 3 | X138: 14 | Y138: 3 | Z138: =SUM(X138:Y138) -> 17
D139: 32 CLUB D'ÉCHECS PAU BERLIOZ | W139: AQ 64 | X139: 32 BERLIOZ 45
A140: =IF(B140<>C140,"ouille!","BON") -> BON | B140: 39 | C140: =SUM(D140:W140) -> 39 | D140: 3 | E140: 1 | F140: 4 | G140: 0 | H140: 0 | I140: 0 | J140: 0 | K140: 0 | L140: 0 | M140: 2 | N140: 8 | O140: 3 | P140: 3 | Q140: 1 | R140: 0 | S140: 2 | T140: 3 | U140: 4 | V140: 4 | W140: 1 | X140: 24 | Y140: 15 | Z140: =SUM(X140:Y140) -> 39
D141: 33 ÉCOLE D'ÉCHECS DU BEARN | W141: AQ 64 | X141: 33 BEARN 40
A142: BON | B142: =Z142 -> 17 | C142: =SUM(D142:W142) -> 17 | D142: 0 | E142: 0 | F142: 1 | G142: 0 | H142: 0 | I142: 0 | J142: 0 | K142: 0 | L142: 3 | M142: 3 | N142: 0 | O142: 0 | P142: 2 | Q142: 0 | R142: 0 | S142: 0 | T142: 1 | U142: 0 | V142: 3 | W142: 4 | X142: 8 | Y142: 9 | Z142: =SUM(X142:Y142) -> 17
D143: 34 LA TOUR DU CHÂTEAU | W143: AQ 64 | X143: 34 LA TOUR 23
A144: BON | B144: =Z144 -> 16 | C144: =SUM(D144:W144) -> 16 | D144: 2 | E144: 0 | F144: 2 | G144: 0 | H144: 0 | I144: 0 | J144: 0 | K144: 0 | L144: 0 | M144: 0 | N144: 2 | O144: 1 | P144: 1 | Q144: 0 | R144: 0 | S144: 1 | T144: 1 | U144: 2 | V144: 3 | W144: 1 | X144: 5 | Y144: 11 | Z144: =SUM(X144:Y144) -> 16
D146: VF | E146: SF+ | F146: SF | G146: JF | H146: CF | I146: MF | J146: BF | K146: PuF | L146: PoF | M146: PpF | N146: VM | O146: SM+ | P146: SM | Q146: JM | R146: CM | S146: MM | T146: BM | U146: PuM | V146: PoM | W146: PpM | X146: Licences A | Y146: Licences B | Z146: Licences A+B
D147: 35 ÉCHIQUIER ANGOUMOISIN | W147: CP 16 | X147: 35 ANGOULEME 24
A148: BON | B148: =Z148 -> 33 | C148: =SUM(D148:W148) -> 33 | D148: 1 | E148: 0 | F148: 0 | G148: 0 | H148: 0 | I148: 0 | J148: 0 | K148: 1 | L148: 1 | M148: 1 | N148: 0 | O148: 5 | P148: 12 | Q148: 0 | R148: 0 | S148: 0 | T148: 0 | U148: 2 | V148: 5 | W148: 5 | X148: 17 | Y148: 16 | Z148: =SUM(X148:Y148) -> 33
D149: 36 SECTION ÉCHECS AMICALE LAÏQUE BARBEZILIENNE | W149: CP 16 | X149: 36 BARBEZIEUX 33
A150: BON | B150: =Z150 -> 20 | C150: =SUM(D150:W150) -> 20 | D150: 0 | E150: 0 | F150: 0 | G150: 0 | H150: 0 | I150: 0 | J150: 0 | K150: 0 | L150: 1 | M150: 1 | N150: 0 | O150: 1 | P150: 0 | Q150: 0 | R150: 0 | S150: 0 | T150: 0 | U150: 7 | V150: 10 | W150: 0 | X150: 6 | Y150: 14 | Z150: =SUM(X150:Y150) -> 20
D151: 37 CHASSENEUIL ANIMATION LOISIRS ET CULTURE - CALC | W151: CP 16 | X151: 37 CHASSENEUIL 31
A152: BON | B152: =Z152 -> 32 | C152: =SUM(D152:W152) -> 32 | D152: 2 | E152: 1 | F152: 0 | G152: 0 | H152: 0 | I152: 0 | J152: 0 | K152: 0 | L152: 3 | M152: 0 | N152: 2 | O152: 0 | P152: 2 | Q152: 0 | R152: 0 | S152: 0 | T152: 2 | U152: 7 | V152: 13 | W152: 0 | X152: 14 | Y152: 18 | Z152: =SUM(X152:Y152) -> 32
D153: 38 CLUB D'ÉCHECS DE COGNAC | W153: CP 16 | X153: 38 COGNAC 25
A154: BON | B154: =Z154 -> 32 | C154: =SUM(D154:W154) -> 32 | D154: 0 | E154: 0 | F154: 0 | G154: 0 | H154: 0 | I154: 0 | J154: 0 | K154: 0 | L154: 0 | M154: 0 | N154: 6 | O154: 7 | P154: 4 | Q154: 1 | R154: 3 | S154: 0 | T154: 2 | U154: 3 | V154: 5 | W154: 1 | X154: 27 | Y154: 5 | Z154: =SUM(X154:Y154) -> 32
D155: 39 ÉCHIQUIER COURONNAIS | W155: CP 16 | X155: 39 LA COURONNE 47
A156: =IF(C156<>40,"Comment? Il n'y a pas 40 adhérents?","Il y a bien 40 adhérents!") -> Il y a bien 40 adhérents! | C156: =SUM(D156:W156) -> 40 | D156: 0 | E156: 0 | F156: 2 | G156: 0 | H156: 0 | I156: 0 | J156: 1 | K156: 1 | L156: 3 | M156: 0 | N156: 1 | O156: 5 | P156: 9 | Q156: 0 | R156: 1 | S156: 1 | T156: 0 | U156: 11 | V156: 4 | W156: 1
C157: =SUM(D157:W157) -> 23 | D157: 0 | E157: 0 | F157: 0 | G157: 0 | H157: 0 | I157: 0 | J157: 0 | K157: 0 | L157: 2 | M157: 0 | N157: 2 | O157: 5 | P157: 6 | Q157: 0 | R157: 0 | S157: 3 | T157: 1 | U157: 3 | V157: 1 | W157: 0
A158: BON | B158: =Z158 -> 63 | C158: =SUM(D158:W158) -> 63 | D158: =SUM(D156:D157) -> 0 | E158: =SUM(E156:E157) -> 0 | F158: =SUM(F156:F157) -> 2 | G158: 0 | H158: 0 | I158: 0 | J158: 1 | K158: 1 | L158: 5 | M158: 0 | N158: 3 | O158: 10 | P158: 15 | Q158: 0 | R158: 1 | S158: 4 | T158: 1 | U158: 14 | V158: 5 | W158: 1 | X158: 42 | Y158: 21 | Z158: =SUM(X158:Y158) -> 63
D159: 40 LES TOURS DU MONTBRONNAIS | W159: CP 16 | X159: 40 MONTBRON 41
A160: =IF(C160<>40,"Comment? Il n'y a pas 40 adhérents?","Il y a bien 40 adhérents!") -> Il y a bien 40 adhérents! | C160: =SUM(D160:W160) -> 40 | D160: 0 | E160: 0 | F160: 0 | G160: 0 | H160: 0 | I160: 3 | J160: 1 | K160: 1 | L160: 2 | M160: 2 | N160: 5 | O160: 4 | P160: 4 | Q160: 0 | R160: 0 | S160: 0 | T160: 2 | U160: 5 | V160: 11 | W160: 0
C161: =SUM(D161:W161) -> 2 | D161: 0 | E161: 0 | F161: 0 | G161: 0 | H161: 0 | I161: 0 | J161: 0 | K161: 0 | L161: 0 | M161: 0 | N161: 0 | O161: 0 | P161: 1 | Q161: 0 | R161: 0 | S161: 0 | T161: 0 | U161: 0 | V161: 1 | W161: 0
A162: BON | B162: =Z162 -> 42 | C162: =SUM(D162:W162) -> 42 | D162: =SUM(D160:D161) -> 0 | E162: =SUM(E160:E161) -> 0 | F162: =SUM(F160:F161) -> 0 | G162: 0 | H162: 0 | I162: 3 | J162: 1 | K162: 1 | L162: 2 | M162: 2 | N162: 5 | O162: 4 | P162: 5 | Q162: 0 | R162: 0 | S162: 0 | T162: 2 | U162: 5 | V162: 12 | W162: 0 | X162: 20 | Y162: 22 | Z162: =SUM(X162:Y162) -> 42
D163: VF | E163: SF+ | F163: SF | G163: JF | H163: CF | I163: MF | J163: BF | K163: PuF | L163: PoF | M163: PpF | N163: VM | O163: SM+ | P163: SM | Q163: JM | R163: CM | S163: MM | T163: BM | U163: PuM | V163: PoM | W163: PpM | X163: Licences A | Y163: Licences B | Z163: Licences A+B
D164: 41 AYTRÉ - LA ROCHELLE ÉCHECS | W164: CP 17 | X164: 41 LA ROCHELLE 27
A165: BON | B165: =Z165 -> 29 | C165: =SUM(D165:W165) -> 29 | D165: 0 | E165: 0 | F165: 1 | G165: 0 | H165: 0 | I165: 0 | J165: 0 | K165: 0 | L165: 0 | M165: 0 | N165: 3 | O165: 14 | P165: 7 | Q165: 0 | R165: 1 | S165: 0 | T165: 2 | U165: 0 | V165: 1 | W165: 0 | X165: 29 | Y165: 0 | Z165: =SUM(X165:Y165) -> 29
D166: 42 CLUB D'ÉCHECS DE MARENNES-OLERON | W166: CP 17 | X166: 42 OLERON 26
A167: BON | B167: =Z167 -> 31 | C167: =SUM(D167:W167) -> 31 | D167: 0 | E167: 1 | F167: 1 | G167: 0 | H167: 0 | I167: 0 | J167: 0 | K167: 0 | L167: 0 | M167: 0 | N167: 2 | O167: 7 | P167: 4 | Q167: 0 | R167: 1 | S167: 2 | T167: 0 | U167: 2 | V167: 7 | W167: 4 | X167: 16 | Y167: 15 | Z167: =SUM(X167:Y167) -> 31
D168: 43 ÉCHIQUIER ROCHEFORTAIS | W168: CP 17 | X168: 43 ROCHEFORT 32
A169: BON | B169: =Z169 -> 33 | C169: =SUM(D169:W169) -> 33 | D169: 0 | E169: 0 | F169: 0 | G169: 0 | H169: 0 | I169: 0 | J169: 2 | K169: 0 | L169: 2 | M169: 0 | N169: 2 | O169: 8 | P169: 5 | Q169: 0 | R169: 1 | S169: 2 | T169: 3 | U169: 3 | V169: 3 | W169: 2 | X169: 27 | Y169: 6 | Z169: =SUM(X169:Y169) -> 33
D170: 44 LA TOUR DE GERMANICUS | W170: CP 17 | X170: 44 GERMANICUS 88
A171: =IF(C171<>40,"Comment? Il n'y a pas 40 adhérents?","Il y a bien 40 adhérents!") -> Il y a bien 40 adhérents! | C171: =SUM(D171:W171) -> 40 | D171: 0 | E171: 1 | F171: 0 | G171: 0 | H171: 0 | I171: 0 | J171: 2 | K171: 2 | L171: 3 | M171: 1 | N171: 1 | O171: 3 | P171: 3 | Q171: 0 | R171: 0 | S171: 0 | T171: 4 | U171: 7 | V171: 13 | W171: 0
A172: Il y a bien 40 adhérents! | C172: 40 | D172: 0 | E172: 1 | F172: 0 | G172: 0 | H172: 0 | I172: 1 | J172: 0 | K172: 5 | L172: 2 | M172: 0 | N172: 2 | O172: 4 | P172: 1 | Q172: 0 | R172: 0 | S172: 4 | T172: 2 | U172: 8 | V172: 10 | W172: 0
A173: Il y a bien 40 adhérents! | C173: 40 | D173: 0 | E173: 0 | F173: 2 | G173: 0 | H173: 0 | I173: 0 | J173: 0 | K173: 5 | L173: 3 | M173: 0 | N173: 3 | O173: 4 | P173: 0 | Q173: 1 | R173: 2 | S173: 0 | T173: 3 | U173: 9 | V173: 6 | W173: 2
C174: 1 | D174: 0 | E174: 0 | F174: 0 | G174: 0 | H174: 0 | I174: 0 | J174: 0 | K174: 0 | L174: 0 | M174: 0 | N174: 0 | O174: 0 | P174: 0 | Q174: 0 | R174: 0 | S174: 0 | T174: 0 | U174: 1 | V174: 0 | W174: 0
A175: BON | B175: 121 | C175: 121 | D175: =SUM(D171:D174) -> 0 | E175: 2 | F175: 2 | G175: 0 | H175: 0 | I175: 1 | J175: 2 | K175: 12 | L175: 8 | M175: 1 | N175: 6 | O175: 11 | P175: 4 | Q175: 1 | R175: 2 | S175: 4 | T175: 9 | U175: 25 | V175: 29 | W175: 2 | X175: 35 | Y175: 86 | Z175: =SUM(X175:Y175) -> 121
D176: 45 ÉCHIQUIER SURGERIEN | W176: CP 17 | X176: 45 SURGERE 112
A177: =IF(C177<>40,"Comment? Il n'y a pas 40 adhérents?","Il y a bien 40 adhérents!") -> Il y a bien 40 adhérents! | C177: =SUM(D177:W177) -> 40 | D177: 0 | E177: 0 | F177: 0 | G177: 0 | H177: 0 | I177: 1 | J177: 1 | K177: 1 | L177: 3 | M177: 4 | N177: 1 | O177: 0 | P177: 6 | Q177: 0 | R177: 1 | S177: 1 | T177: 3 | U177: 8 | V177: 6 | W177: 4
A178: =IF(C178<>40,"Comment? Il n'y a pas 40 adhérents?","Il y a bien 40 adhérents!") -> Il y a bien 40 adhérents! | C178: =SUM(D178:W178) -> 40 | D178: 1 | E178: 0 | F178: 2 | G178: 0 | H178: 0 | I178: 0 | J178: 0 | K178: 1 | L178: 2 | M178: 3 | N178: 2 | O178: 2 | P178: 0 | Q178: 0 | R178: 2 | S178: 0 | T178: 4 | U178: 5 | V178: 12 | W178: 4
C179: =SUM(D179:W179) -> 36 | D179: 0 | E179: 1 | F179: 1 | G179: 0 | H179: 1 | I179: 0 | J179: 0 | K179: 0 | L179: 5 | M179: 2 | N179: 1 | O179: 1 | P179: 3 | Q179: 0 | R179: 2 | S179: 3 | T179: 1 | U179: 6 | V179: 0 | W179: 9
A180: BON | B180: 116 | C180: =SUM(D180:W180) -> 116 | D180: =SUM(D177:D179) -> 1 | E180: =SUM(E177:E179) -> 1 | F180: =SUM(F177:F179) -> 3 | G180: 0 | H180: 1 | I180: 1 | J180: 1 | K180: 2 | L180: 10 | M180: 9 | N180: 4 | O180: 3 | P180: 9 | Q180: 0 | R180: 5 | S180: 4 | T180: 8 | U180: 19 | V180: 18 | W180: 17 | X180: 45 | Y180: 71 | Z180: =SUM(X180:Y180) -> 116
D181: VF | E181: SF+ | F181: SF | G181: JF | H181: CF | I181: MF | J181: BF | K181: PuF | L181: PoF | M181: PpF | N181: VM | O181: SM+ | P181: SM | Q181: JM | R181: CM | S181: MM | T181: BM | U181: PuM | V181: PoM | W181: PpM | X181: Licences A | Y181: Licences B | Z181: Licences A+B
D182: 46 ÉCHEC ET MAT DE BRESSUIRE | W182: CP 79 | X182: 46 BRESSUIRE 31
A183: BON | B183: =Z183 -> 31 | C183: =SUM(D183:W183) -> 31 | D183: 1 | E183: 0 | F183: 2 | G183: 0 | H183: 0 | I183: 0 | J183: 0 | K183: 1 | L183: 2 | M183: 1 | N183: 0 | O183: 3 | P183: 5 | Q183: 0 | R183: 0 | S183: 1 | T183: 0 | U183: 5 | V183: 7 | W183: 3 | X183: 23 | Y183: 8 | Z183: =SUM(X183:Y183) -> 31
D184: 47 ÉCHIQUIER NIORTAIS | W184: CP 79 | X184: 47 NIORT 83
A185: =IF(C185<>40,"Comment? Il n'y a pas 40 adhérents?","Il y a bien 40 adhérents!") -> Il y a bien 40 adhérents! | C185: =SUM(D185:W185) -> 40 | D185: 0 | E185: 1 | F185: 2 | G185: 0 | H185: 0 | I185: 1 | J185: 1 | K185: 3 | L185: 1 | M185: 0 | N185: 3 | O185: 3 | P185: 4 | Q185: 1 | R185: 1 | S185: 3 | T185: 4 | U185: 2 | V185: 6 | W185: 4
A186: Il y a bien 40 adhérents! | C186: =SUM(D186:W186) -> 40 | D186: 0 | E186: 1 | F186: 0 | G186: 0 | H186: 0 | I186: 1 | J186: 0 | K186: 1 | L186: 2 | M186: 0 | N186: 0 | O186: 6 | P186: 2 | Q186: 0 | R186: 1 | S186: 1 | T186: 4 | U186: 7 | V186: 9 | W186: 5
C187: =SUM(D187:W187) -> 6 | D187: 0 | E187: 0 | F187: 0 | G187: 0 | H187: 0 | I187: 0 | J187: 0 | K187: 0 | L187: 0 | M187: 0 | N187: 0 | O187: 1 | P187: 1 | Q187: 0 | R187: 0 | S187: 0 | T187: 1 | U187: 1 | V187: 1 | W187: 1
A188: BON | B188: 86 | C188: =SUM(D188:W188) -> 86 | D188: =SUM(D185:D187) -> 0 | E188: =SUM(E185:E187) -> 2 | F188: =SUM(F185:F187) -> 2 | G188: 0 | H188: 0 | I188: 2 | J188: 1 | K188: 4 | L188: 3 | M188: 0 | N188: 3 | O188: 10 | P188: 7 | Q188: 1 | R188: 2 | S188: 4 | T188: 9 | U188: 10 | V188: 16 | W188: 10 | X188: 55 | Y188: 31 | Z188: =SUM(X188:Y188) -> 86
D189: 48 ÉCHIQUIER SAINT MAIXENTAIS | W189: CP 79 | X189: 48 SAINT MAIXENT 23
A190: BON | B190: 23 | C190: =SUM(D190:W190) -> 23 | D190: 0 | E190: 0 | F190: 0 | G190: 0 | H190: 0 | I190: 0 | J190: 0 | K190: 0 | L190: 0 | M190: 0 | N190: 2 | O190: 3 | P190: 9 | Q190: 1 | R190: 2 | S190: 0 | T190: 1 | U190: 3 | V190: 0 | W190: 2 | X190: 17 | Y190: 6 | Z190: =SUM(X190:Y190) -> 23
D191: 49 CLUB D'ÉCHECS DE THOUARS | W191: CP 79 | X191: 49 THOUARS 14
A192: BON | B192: 23 | C192: =SUM(D192:W192) -> 23 | D192: 0 | E192: 0 | F192: 1 | G192: 0 | H192: 0 | I192: 1 | J192: 0 | K192: 0 | L192: 1 | M192: 0 | N192: 2 | O192: 2 | P192: 7 | Q192: 0 | R192: 3 | S192: 1 | T192: 3 | U192: 1 | V192: 0 | W192: 1 | X192: 12 | Y192: 11 | Z192: =SUM(X192:Y192) -> 23
D193: VF | E193: SF+ | F193: SF | G193: JF | H193: CF | I193: MF | J193: BF | K193: PuF | L193: PoF | M193: PpF | N193: VM | O193: SM+ | P193: SM | Q193: JM | R193: CM | S193: MM | T193: BM | U193: PuM | V193: PoM | W193: PpM | X193: Licences A | Y193: Licences B | Z193: Licences A+B
D194: 50 ÉCHIQUIER POITEVIN | W194: CP 86 | X194: 50 POITEVIN 47
A195: =IF(C195<>40,"Comment? Il n'y a pas 40 adhérents?","Il y a bien 40 adhérents!") -> Il y a bien 40 adhérents! | C195: =SUM(D195:W195) -> 40 | D195: 3 | E195: 0 | F195: 2 | G195: 0 | H195: 0 | I195: 0 | J195: 0 | K195: 0 | L195: 0 | M195: 0 | N195: 5 | O195: 6 | P195: 8 | Q195: 0 | R195: 0 | S195: 2 | T195: 5 | U195: 5 | V195: 1 | W195: 3
C196: =SUM(D196:W196) -> 8 | D196: 0 | E196: 0 | F196: 0 | G196: 0 | H196: 0 | I196: 0 | J196: 0 | K196: 0 | L196: 1 | M196: 0 | N196: 0 | O196: 1 | P196: 1 | Q196: 0 | R196: 0 | S196: 0 | T196: 1 | U196: 2 | V196: 0 | W196: 2
A197: BON | B197: =Z197 -> 48 | C197: =SUM(D197:W197) -> 48 | D197: =SUM(D195:D196) -> 3 | E197: =SUM(E195:E196) -> 0 | F197: =SUM(F195:F196) -> 2 | G197: 0 | H197: 0 | I197: 0 | J197: 0 | K197: 0 | L197: 1 | M197: 0 | N197: 5 | O197: 7 | P197: 9 | Q197: 0 | R197: 0 | S197: 2 | T197: 6 | U197: 7 | V197: 1 | W197: 5 | X197: 29 | Y197: 19 | Z197: =SUM(X197:Y197) -> 48
D198: 51 C.E.CHATELLERAUDAIS | W198: CP 86 | X198: 51 CHATELLERAUD 6
A199: BON | B199: 5 | C199: =SUM(D199:W199) -> 5 | D199: 0 | E199: 0 | F199: 0 | G199: 0 | H199: 0 | I199: 0 | J199: 0 | K199: 0 | L199: 0 | M199: 0 | N199: 2 | O199: 1 | P199: 0 | Q199: 0 | R199: 0 | S199: 0 | T199: 1 | U199: 0 | V199: 0 | W199: 1 | X199: 5 | Y199: 0 | Z199: =SUM(X199:Y199) -> 5
D200: 52 POITIERS-MIGNE ÉCHECS | W200: CP 86 | X200: 52 POITIERS MIGNE 45
A201: BON | B201: 35 | C201: =SUM(D201:W201) -> 35 | D201: 0 | E201: 1 | F201: 1 | G201: 1 | H201: 0 | I201: 0 | J201: 1 | K201: 0 | L201: 0 | M201: 0 | N201: 3 | O201: 1 | P201: 17 | Q201: 1 | R201: 1 | S201: 4 | T201: 1 | U201: 3 | V201: 0 | W201: 0 | X201: 33 | Y201: 2 | Z201: =SUM(X201:Y201) -> 35
D202: 53 ROIS ET DAMES DES TROIS CITÉS | W202: CP 86 | X202: 53 3 CITES 27
A203: BON | B203: 21 | C203: =SUM(D203:W203) -> 21 | D203: 0 | E203: 1 | F203: 0 | G203: 0 | H203: 0 | I203: 0 | J203: 0 | K203: 0 | L203: 0 | M203: 0 | N203: 2 | O203: 6 | P203: 8 | Q203: 0 | R203: 0 | S203: 2 | T203: 0 | U203: 1 | V203: 1 | W203: 0 | X203: 12 | Y203: 9 | Z203: =SUM(X203:Y203) -> 21
D205: VF | E205: SF+ | F205: SF | G205: JF | H205: CF | I205: MF | J205: BF | K205: PuF | L205: PoF | M205: PpF | N205: VM | O205: SM+ | P205: SM | Q205: JM | R205: CM | S205: MM | T205: BM | U205: PuM | V205: PoM | W205: PpM | X205: Licences A | Y205: Licences B | Z205: Licences A+B
... 42 more rows

Sheet Feuille des licences
C3: FEUILLE des LICENCES
C7: Rang | D7: Nom du club | E7: Lic. A | F7: Lic. B | G7: Lic. A+B
C8: 1 | D8: Cercle d'Echecs Cyrano | E8: ='FEUILLE de SAISIE'!X7 -> 18 | F8: ='FEUILLE de SAISIE'!Y7 -> 5 | G8: =SUM(E8:F8) -> 23
C9: 2 | D9: Le Fleix - La Tour Infernale (F.E.P.) | E9: ='FEUILLE de SAISIE'!X9 -> 13 | F9: ='FEUILLE de SAISIE'!Y9 -> 3 | G9: =SUM(E9:F9) -> 16
C10: 3 | D10: Echiquier du Nontronnais | E10: ='FEUILLE de SAISIE'!X13 -> 15 | F10: ='FEUILLE de SAISIE'!Y13 -> 27 | G10: 42
C11: 4 | D11: Echiquier Salignacois | E11: ='FEUILLE de SAISIE'!X15 -> 6 | F11: ='FEUILLE de SAISIE'!Y15 -> 27 | G11: 33
C12: 5 | D12: L'Echiquier de Saint Sour | E12: ='FEUILLE de SAISIE'!X17 -> 4 | F12: ='FEUILLE de SAISIE'!Y17 -> 0 | G12: 4
C13: 6 | D13: AGJA-Echiquier Aquitaine | E13: ='FEUILLE de SAISIE'!X24 -> 96 | F13: ='FEUILLE de SAISIE'!Y24 -> 32 | G13: 128
C14: 7 | D14: Bordeaux ASPOM Echecs | E14: ='FEUILLE de SAISIE'!X30 -> 84 | F14: ='FEUILLE de SAISIE'!Y30 -> 58 | G14: 142
C15: 8 | D15: Union Saint Bruno-Bordeaux Echecs | E15: ='FEUILLE de SAISIE'!X35 -> 46 | F15: ='FEUILLE de SAISIE'!Y35 -> 66 | G15: 112
C16: 9 | D16: Echiquier Bordelais | E16: ='FEUILLE de SAISIE'!X45 -> 149 | F16: ='FEUILLE de SAISIE'!Y45 -> 156 | G16: 305
C17: 10 | D17: Echiquier Albert Le Grand | E17: ='FEUILLE de SAISIE'!X56 -> 93 | F17: ='FEUILLE de SAISIE'!Y56 -> 202 | G17: 295
C18: 11 | D18: Echiquier Club Créonnais | E18: ='FEUILLE de SAISIE'!X61 -> 54 | F18: ='FEUILLE de SAISIE'!Y61 -> 34 | G18: 88
C19: 12 | D19: Gujan-Mestras Echecs | E19: ='FEUILLE de SAISIE'!X65 -> 30 | F19: ='FEUILLE de SAISIE'!Y65 -> 27 | G19: 57
C20: 13 | D20: Echecs Club Réolais | E20: ='FEUILLE de SAISIE'!X67 -> 5 | F20: ='FEUILLE de SAISIE'!Y67 -> 7 | G20: 12
C21: 14 | D21: Echiquier Médocain | E21: ='FEUILLE de SAISIE'!X72 -> 39 | F21: ='FEUILLE de SAISIE'!Y72 -> 5 | G21: 44
C22: 15 | D22: Echiquier Libournais | E22: ='FEUILLE de SAISIE'!X78 -> 31 | F22: ='FEUILLE de SAISIE'!Y78 -> 97 | G22: 128
C23: 16 | D23: Merignac Echecs | E23: ='FEUILLE de SAISIE'!X80 -> 9 | F23: ='FEUILLE de SAISIE'!Y80 -> 0 | G23: 9
C24: 17 | D24: Parempuyre Echecs | E24: ='FEUILLE de SAISIE'!X82 -> 18 | F24: ='FEUILLE de SAISIE'!Y82 -> 14 | G24: 32
C25: 18 | D25: Echiquier Tressois | E25: ='FEUILLE de SAISIE'!X87 -> 47 | F25: ='FEUILLE de SAISIE'!Y87 -> 54 | G25: 101
C26: 19 | D26: Dax Echiquier Dacquois | E26: ='FEUILLE de SAISIE'!X90 -> 20 | F26: ='FEUILLE de SAISIE'!Y90 -> 7 | G26: 27
C27: 20 | D27: Mimizan le Fou Ensable (ASEM) | E27: ='FEUILLE de SAISIE'!X92 -> 6 | F27: ='FEUILLE de SAISIE'!Y92 -> 11 | G27: 17
C28: 21 | D28: Echiquier Montois | E28: ='FEUILLE de SAISIE'!X100 -> 59 | F28: ='FEUILLE de SAISIE'!Y100 -> 156 | G28: 215
C29: 22 | D29: Hossegor Echecs | E29: ='FEUILLE de SAISIE'!X102 -> 13 | F29: ='FEUILLE de SAISIE'!Y102 -> 17 | G29: 30
C30: 23 | D30: Echiquier Agenais | E30: ='FEUILLE de SAISIE'!X109 -> 80 | F30: ='FEUILLE de SAISIE'!Y109 -> 48 | G30: 128
C31: 24 | D31: Echiquier Marmandais | E31: ='FEUILLE de SAISIE'!X111 -> 6 | F31: ='FEUILLE de SAISIE'!Y111 -> 8 | G31: 14
C32: 25 | D32: Club des Échecs du Pays de Lauzun | E32: ='FEUILLE de SAISIE'!X113 -> 13 | F32: ='FEUILLE de SAISIE'!Y113 -> 11 | G32: 24
C33: 26 | D33: L'Echiquier Villeneuvois | E33: ='FEUILLE de SAISIE'!X117 -> 38 | F33: ='FEUILLE de SAISIE'!Y117 -> 24 | G33: 62
C34: 27 | D34: Echiquier Bayonne Adour | E34: ='FEUILLE de SAISIE'!X120 -> 17 | F34: ='FEUILLE de SAISIE'!Y120 -> 15 | G34: 32
C35: 28 | D35: Cote Basque Echecs | E35: ='FEUILLE de SAISIE'!X127 -> 42 | F35: ='FEUILLE de SAISIE'!Y127 -> 140 | G35: 182
C36: 29 | D36: Echecs SICSBT | E36: ='FEUILLE de SAISIE'!X129 -> 15 | F36: ='FEUILLE de SAISIE'!Y129 -> 3 | G36: 18
C37: 30 | D37: Echiquier Henri IV Pau | E37: ='FEUILLE de SAISIE'!X136 -> 59 | F37: ='FEUILLE de SAISIE'!Y136 -> 112 | G37: 171
C38: 31 | D38: Pau Sarrailh Echecs | E38: ='FEUILLE de SAISIE'!X138 -> 14 | F38: ='FEUILLE de SAISIE'!Y138 -> 3 | G38: 17
C39: 32 | D39: Club d'Echecs Pau Berlioz | E39: ='FEUILLE de SAISIE'!X140 -> 24 | F39: ='FEUILLE de SAISIE'!Y140 -> 15 | G39: 39
C40: 33 | D40: Ecole d'Echecs du Béarn | E40: ='FEUILLE de SAISIE'!X142 -> 8 | F40: ='FEUILLE de SAISIE'!Y142 -> 9 | G40: 17
C41: 34 | D41: La Tour du Château | E41: ='FEUILLE de SAISIE'!X144 -> 5 | F41: ='FEUILLE de SAISIE'!Y144 -> 11 | G41: 16
C42: 35 | D42: Echiquier Angoumoisin | E42: ='FEUILLE de SAISIE'!X148 -> 17 | F42: ='FEUILLE de SAISIE'!Y148 -> 16 | G42: 33
C43: 36 | D43: Section echecs amicale laique Barbezilienne | E43: ='FEUILLE de SAISIE'!X150 -> 6 | F43: ='FEUILLE de SAISIE'!Y150 -> 14 | G43: 20
C44: 37 | D44: Chasseneuil Animation Loisirs et Culture - CALC | E44: ='FEUILLE de SAISIE'!X152 -> 14 | F44: ='FEUILLE de SAISIE'!Y152 -> 18 | G44: 32
C45: 38 | D45: Club d'Echecs de Cognac | E45: ='FEUILLE de SAISIE'!X154 -> 27 | F45: ='FEUILLE de SAISIE'!Y154 -> 5 | G45: 32
C46: 39 | D46: Echiquier Couronnais | E46: ='FEUILLE de SAISIE'!X158 -> 42 | F46: ='FEUILLE de SAISIE'!Y158 -> 21 | G46: 63
C47: 40 | D47: Les Tours Du Montbronnais | E47: ='FEUILLE de SAISIE'!X162 -> 20 | F47: ='FEUILLE de SAISIE'!Y162 -> 22 | G47: 42
C48: 41 | D48: Aytré - La Rochelle Echecs | E48: ='FEUILLE de SAISIE'!X165 -> 29 | F48: ='FEUILLE de SAISIE'!Y165 -> 0 | G48: 29
C49: 42 | D49: Club d'Echecs de Marennes-Oleron | E49: ='FEUILLE de SAISIE'!X167 -> 16 | F49: ='FEUILLE de SAISIE'!Y167 -> 15 | G49: 31
C50: 43 | D50: Echiquier Rochefortais | E50: ='FEUILLE de SAISIE'!X169 -> 27 | F50: ='FEUILLE de SAISIE'!Y169 -> 6 | G50: 33
C51: 44 | D51: La Tour de Germanicus | E51: ='FEUILLE de SAISIE'!X175 -> 35 | F51: ='FEUILLE de SAISIE'!Y175 -> 86 | G51: 121
C52: 45 | D52: Echiquier Surgerien | E52: ='FEUILLE de SAISIE'!X180 -> 45 | F52: ='FEUILLE de SAISIE'!Y180 -> 71 | G52: 116
C53: 46 | D53: Echec et Mat de Bressuire | E53: ='FEUILLE de SAISIE'!X183 -> 23 | F53: ='FEUILLE de SAISIE'!Y183 -> 8 | G53: 31
C54: 47 | D54: Echiquier Niortais | E54: ='FEUILLE de SAISIE'!X188 -> 55 | F54: ='FEUILLE de SAISIE'!Y188 -> 31 | G54: 86
C55: 48 | D55: Echiquier St Maixentais | E55: ='FEUILLE de SAISIE'!X190 -> 17 | F55: ='FEUILLE de SAISIE'!Y190 -> 6 | G55: 23
C56: 49 | D56: Club d'échecs de Thouars | E56: ='FEUILLE de SAISIE'!X192 -> 12 | F56: ='FEUILLE de SAISIE'!Y192 -> 11 | G56: 23
C57: 50 | D57: Echiquier Poitevin | E57: ='FEUILLE de SAISIE'!X197 -> 29 | F57: ='FEUILLE de SAISIE'!Y197 -> 19 | G57: 48
C58: 51 | D58: C.E. Chatelleraudais | E58: ='FEUILLE de SAISIE'!X199 -> 5 | F58: ='FEUILLE de SAISIE'!Y199 -> 0 | G58: 5
C59: 52 | D59: Poitiers-Migne Echecs | E59: ='FEUILLE de SAISIE'!X201 -> 33 | F59: ='FEUILLE de SAISIE'!Y201 -> 2 | G59: 35
C60: 53 | D60: Rois et Dames des Trois Cites | E60: ='FEUILLE de SAISIE'!X203 -> 12 | F60: ='FEUILLE de SAISIE'!Y203 -> 9 | G60: 21
C61: 54 | D61: Collège d'Argentat | E61: ='FEUILLE de SAISIE'!X207 -> 5 | F61: ='FEUILLE de SAISIE'!Y207 -> 10 | G61: 15
C62: 55 | D62: Brive Le Cavalier Gaillard | E62: ='FEUILLE de SAISIE'!X212 -> 43 | F62: ='FEUILLE de SAISIE'!Y212 -> 58 | G62: 101
C63: 56 | D63: Alekhine Brive Chess CE de Brive | E63: ='FEUILLE de SAISIE'!X214 -> 5 | F63: ='FEUILLE de SAISIE'!Y214 -> 0 | G63: 5
C64: 57 | D64: Cercle d'Echecs d' Egletons | E64: ='FEUILLE de SAISIE'!X218 -> 5 | F64: ='FEUILLE de SAISIE'!Y218 -> 53 | G64: 58
C65: 58 | D65: Meyssac Echecs | E65: ='FEUILLE de SAISIE'!X220 -> 9 | F65: ='FEUILLE de SAISIE'!Y220 -> 26 | G65: 35
C66: 59 | D66: Club d'Echecs du Pays de Brive | E66: ='FEUILLE de SAISIE'!X225 -> 32 | F66: ='FEUILLE de SAISIE'!Y225 -> 72 | G66: 104
C67: 60 | D67: Echiquier Tulliste | E67: ='FEUILLE de SAISIE'!X227 -> 10 | F67: ='FEUILLE de SAISIE'!Y227 -> 3 | G67: 13
C68: 61 | D68: Creuse-Echecs | E68: ='FEUILLE de SAISIE'!X230 -> 5 | F68: ='FEUILLE de SAISIE'!Y230 -> 5 | G68: 10
C69: 62 | D69: Couzeix Chess Club (C3) | E69: ='FEUILLE de SAISIE'!X232 -> 15 | F69: ='FEUILLE de SAISIE'!Y232 -> 21 | G69: 36
C70: 63 | D70: Isle Echecs | E70: ='FEUILLE de SAISIE'!X234 -> 13 | F70: ='FEUILLE de SAISIE'!Y234 -> 9 | G70: 22
C71: 64 | D71: LEC Echiquier Limousin | E71: ='FEUILLE de SAISIE'!X241 -> 70 | F71: ='FEUILLE de SAISIE'!Y241 -> 98 | G71: 168
C72: 65 | D72: ASSJ Echecs - Cercle Philidor Saint-Junien | E72: ='FEUILLE de SAISIE'!X243 -> 6 | F72: ='FEUILLE de SAISIE'!Y243 -> 0 | G72: 6
C74: T O T A U X L N A E | E74: =SUM(E8:E72) -> 1858 | F74: 2119 | G74: 3977
D77: T AQ | E77: =SUM(E8:E41) -> 1176 | F77: =SUM(F7:F40) -> 1393 | G77: =SUM(G8:G41) -> 2580

Sheet STATISTIQUES GÉNÉRALES
D3: STATISTIQUES GÉNÉRALES LNAE saison 2017 - 2018
D8: NOMBRE D'ADHÉRENTS | E8: ='TOTAL GÉNÉRAL'!AA9 -> 3977
D9: NOMBRE DE CLUBS | E9: ='TOTAL GÉNÉRAL'!AC9 -> 65
D10: NOMBRE DE CDJE | E10: 12
D11: NOMBRE DE VÉTÉRANS (F+M) | E11: ='TOTAL GÉNÉRAL'!C9+'TOTAL GÉNÉRAL'!O9 -> 292
D12: NOMBRE DE SÉNIORS + (F+M) | E12: ='TOTAL GÉNÉRAL'!D9+'TOTAL GÉNÉRAL'!P9 -> 419
D13: NOMBRE DE SÉNIORS (F+M) | E13: ='TOTAL GÉNÉRAL'!E9+'TOTAL GÉNÉRAL'!Q9 -> 580
D14: NOMBRE DE JUNIORS (F+M) | E14: ='TOTAL GÉNÉRAL'!F9+'TOTAL GÉNÉRAL'!R9 -> 35
D15: NOMBRE DE CADETS (F+M) | E15: ='TOTAL GÉNÉRAL'!G9+'TOTAL GÉNÉRAL'!S9 -> 111
D16: NOMBRE DE MINIMES (F+M) | E16: ='TOTAL GÉNÉRAL'!H9+'TOTAL GÉNÉRAL'!T9 -> 205
D17: NOMBRE DE BENJAMINS (F+M) | E17: ='TOTAL GÉNÉRAL'!I9+'TOTAL GÉNÉRAL'!U9 -> 400
D18: NOMBRE DE PUPILLES (F+M) | E18: ='TOTAL GÉNÉRAL'!J9+'TOTAL GÉNÉRAL'!V9 -> 712
D19: NOMBRE DE POUSSINS (F+M) | E19: ='TOTAL GÉNÉRAL'!K9+'TOTAL GÉNÉRAL'!W9 -> 782
D20: NOMBRE DE PETITS POUSSINS (F+M) | E20: ='TOTAL GÉNÉRAL'!L9+'TOTAL GÉNÉRAL'!X9 -> 441
D21: NOMBRE TOTAL D'ARBITRES | E21: 144
D22: NOMBRE D'ARBITRES AF1 | E22: 12
D23: NOMBRE D'ARBITRES AF2 | E23: 5
D24: NOMBRE D'ARBITRES AF3 | E24: 41
D25: NOMBRE D'ARBITRES AF4 | E25: 72
D26: NOMBRE D'ARBITRES JEUNES (AJ) | E26: 14
D29: Au 31 août 2018

Sheet Ordre des clubs
E1: Lire en bas de page
D3: ORDRE DES CLUBS EN FONCTION DU NOMBRE TOTAL DE LICENCES A, B et A+B
D7: Rang | E7: Nom du club | F7: Licence A | J7: Rang | K7: Nom du club | L7: Licence B | P7: Rang | Q7: Nom du club | R7: Licence A+B
D8: 1 | E8: Cercle d'Echecs Cyrano | F8: ='Feuille des licences'!E8 -> 18 | J8: 1 | K8: Cercle d'Echecs Cyrano | L8: ='Feuille des licences'!F8 -> 5 | P8: 1 | Q8: Cercle d'Echecs Cyrano | R8: ='Feuille des licences'!G8 -> 23
D9: 2 | E9: Le Fleix - La Tour Infernale (F.E.P.) | F9: ='Feuille des licences'!E9 -> 13 | J9: 2 | K9: Le Fleix - La Tour Infernale (F.E.P.) | L9: ='Feuille des licences'!F9 -> 3 | P9: 2 | Q9: Le Fleix - La Tour Infernale (F.E.P.) | R9: ='Feuille des licences'!G9 -> 16
D10: 3 | E10: Echiquier du Nontronnais | F10: ='Feuille des licences'!E10 -> 15 | J10: 3 | K10: Echiquier du Nontronnais | L10: ='Feuille des licences'!F10 -> 27 | P10: 3 | Q10: Echiquier du Nontronnais | R10: ='Feuille des licences'!G10 -> 42
D11: 4 | E11: Echiquier Salignacois | F11: ='Feuille des licences'!E11 -> 6 | J11: 4 | K11: Echiquier Salignacois | L11: ='Feuille des licences'!F11 -> 27 | P11: 4 | Q11: Echiquier Salignacois | R11: ='Feuille des licences'!G11 -> 33
D12: 5 | E12: L'Echiquier de Saint Sour | F12: ='Feuille des licences'!E12 -> 4 | J12: 5 | K12: L'Echiquier de Saint Sour | L12: ='Feuille des licences'!F12 -> 0 | P12: 5 | Q12: L'Echiquier de Saint Sour | R12: ='Feuille des licences'!G12 -> 4
D13: 6 | E13: AGJA-Echiquier Aquitaine | F13: ='Feuille des licences'!E13 -> 96 | J13: 6 | K13: AGJA-Echiquier Aquitaine | L13: ='Feuille des licences'!F13 -> 32 | P13: 6 | Q13: AGJA-Echiquier Aquitaine | R13: ='Feuille des licences'!G13 -> 128
D14: 7 | E14: Bordeaux ASPOM Echecs | F14: ='Feuille des licences'!E14 -> 84 | J14: 7 | K14: Bordeaux ASPOM Echecs | L14: ='Feuille des licences'!F14 -> 58 | P14: 7 | Q14: Bordeaux ASPOM Echecs | R14: ='Feuille des licences'!G14 -> 142
D15: 8 | E15: Union Saint Bruno-Bordeaux Echecs | F15: ='Feuille des licences'!E15 -> 46 | J15: 8 | K15: Union Saint Bruno-Bordeaux Echecs | L15: ='Feuille des licences'!F15 -> 66 | P15: 8 | Q15: Union Saint Bruno-Bordeaux Echecs | R15: ='Feuille des licences'!G15 -> 112
D16: 9 | E16: Echiquier Bordelais | F16: ='Feuille des licences'!E16 -> 149 | J16: 9 | K16: Echiquier Bordelais | L16: ='Feuille des licences'!F16 -> 156 | P16: 9 | Q16: Echiquier Bordelais | R16: ='Feuille des licences'!G16 -> 305
D17: 10 | E17: Echiquier Albert Le Grand | F17: ='Feuille des licences'!E17 -> 93 | J17: 10 | K17: Echiquier Albert Le Grand | L17: ='Feuille des licences'!F17 -> 202 | P17: 10 | Q17: Echiquier Albert Le Grand | R17: ='Feuille des licences'!G17 -> 295
D18: 11 | E18: Echiquier Club Créonnais | F18: ='Feuille des licences'!E18 -> 54 | J18: 11 | K18: Echiquier Club Créonnais | L18: ='Feuille des licences'!F18 -> 34 | P18: 11 | Q18: Echiquier Club Créonnais | R18: ='Feuille des licences'!G18 -> 88
D19: 12 | E19: Gujan-Mestras Echecs | F19: ='Feuille des licences'!E19 -> 30 | J19: 12 | K19: Gujan-Mestras Echecs | L19: ='Feuille des licences'!F19 -> 27 | P19: 12 | Q19: Gujan-Mestras Echecs | R19: ='Feuille des licences'!G19 -> 57
D20: 13 | E20: Echecs Club Réolais | F20: ='Feuille des licences'!E20 -> 5 | J20: 13 | K20: Echecs Club Réolais | L20: ='Feuille des licences'!F20 -> 7 | P20: 13 | Q20: Echecs Club Réolais | R20: ='Feuille des licences'!G20 -> 12
D21: 14 | E21: Echiquier Médocain | F21: ='Feuille des licences'!E21 -> 39 | J21: 14 | K21: Echiquier Médocain | L21: ='Feuille des licences'!F21 -> 5 | P21: 14 | Q21: Echiquier Médocain | R21: ='Feuille des licences'!G21 -> 44
D22: 15 | E22: Echiquier Libournais | F22: ='Feuille des licences'!E22 -> 31 | J22: 15 | K22: Echiquier Libournais | L22: ='Feuille des licences'!F22 -> 97 | P22: 15 | Q22: Echiquier Libournais | R22: ='Feuille des licences'!G22 -> 128
D23: 16 | E23: Merignac Echecs | F23: ='Feuille des licences'!E23 -> 9 | J23: 16 | K23: Merignac Echecs | L23: ='Feuille des licences'!F23 -> 0 | P23: 16 | Q23: Merignac Echecs | R23: ='Feuille des licences'!G23 -> 9
D24: 17 | E24: Parempuyre Echecs | F24: ='Feuille des licences'!E24 -> 18 | J24: 17 | K24: Parempuyre Echecs | L24: ='Feuille des licences'!F24 -> 14 | P24: 17 | Q24: Parempuyre Echecs | R24: ='Feuille des licences'!G24 -> 32
D25: 18 | E25: Echiquier Tressois | F25: ='Feuille des licences'!E25 -> 47 | J25: 18 | K25: Echiquier Tressois | L25: ='Feuille des licences'!F25 -> 54 | P25: 18 | Q25: Echiquier Tressois | R25: ='Feuille des licences'!G25 -> 101
D26: 19 | E26: Dax Echiquier Dacquois | F26: ='Feuille des licences'!E26 -> 20 | J26: 19 | K26: Dax Echiquier Dacquois | L26: ='Feuille des licences'!F26 -> 7 | P26: 19 | Q26: Dax Echiquier Dacquois | R26: ='Feuille des licences'!G26 -> 27
D27: 20 | E27: Mimizan le Fou Ensable (ASEM) | F27: ='Feuille des licences'!E27 -> 6 | J27: 20 | K27: Mimizan le Fou Ensable (ASEM) | L27: ='Feuille des licences'!F27 -> 11 | P27: 20 | Q27: Mimizan le Fou Ensable (ASEM) | R27: ='Feuille des licences'!G27 -> 17
D28: 21 | E28: Echiquier Montois | F28: ='Feuille des licences'!E28 -> 59 | J28: 21 | K28: Echiquier Montois | L28: ='Feuille des licences'!F28 -> 156 | P28: 21 | Q28: Echiquier Montois | R28: ='Feuille des licences'!G28 -> 215
D29: 22 | E29: Hossegor Echecs | F29: ='Feuille des licences'!E29 -> 13 | J29: 22 | K29: Hossegor Echecs | L29: ='Feuille des licences'!F29 -> 17 | P29: 22 | Q29: Hossegor Echecs | R29: ='Feuille des licences'!G29 -> 30
D30: 23 | E30: Echiquier Agenais | F30: ='Feuille des licences'!E30 -> 80 | J30: 23 | K30: Echiquier Agenais | L30: ='Feuille des licences'!F30 -> 48 | P30: 23 | Q30: Echiquier Agenais | R30: ='Feuille des licences'!G30 -> 128
D31: 24 | E31: Echiquier Marmandais | F31: ='Feuille des licences'!E31 -> 6 | J31: 24 | K31: Echiquier Marmandais | L31: ='Feuille des licences'!F31 -> 8 | P31: 24 | Q31: Echiquier Marmandais | R31: ='Feuille des licences'!G31 -> 14
D32: 25 | E32: Club des Échecs du Pays de Lauzun | F32: ='Feuille des licences'!E32 -> 13 | J32: 25 | K32: Club des Échecs du Pays de Lauzun | L32: ='Feuille des licences'!F32 -> 11 | P32: 25 | Q32: Club des Échecs du Pays de Lauzun | R32: ='Feuille des licences'!G32 -> 24
D33: 26 | E33: L'Echiquier Villeneuvois | F33: ='Feuille des licences'!E33 -> 38 | J33: 26 | K33: L'Echiquier Villeneuvois | L33: ='Feuille des licences'!F33 -> 24 | P33: 26 | Q33: L'Echiquier Villeneuvois | R33: ='Feuille des licences'!G33 -> 62
D34: 27 | E34: Echiquier Bayonne Adour | F34: ='Feuille des licences'!E34 -> 17 | J34: 27 | K34: Echiquier Bayonne Adour | L34: ='Feuille des licences'!F34 -> 15 | P34: 27 | Q34: Echiquier Bayonne Adour | R34: ='Feuille des licences'!G34 -> 32
D35: 28 | E35: Aviron Bayonnais Echecs | F35: ='Feuille des licences'!E35 -> 42 | J35: 28 | K35: Aviron Bayonnais Echecs | L35: ='Feuille des licences'!F35 -> 140 | P35: 28 | Q35: Aviron Bayonnais Echecs | R35: ='Feuille des licences'!G35 -> 182
D36: 29 | E36: Echecs SICSBT | F36: ='Feuille des licences'!E36 -> 15 | J36: 29 | K36: Echecs SICSBT | L36: ='Feuille des licences'!F36 -> 3 | P36: 29 | Q36: Echecs SICSBT | R36: ='Feuille des licences'!G36 -> 18
D37: 30 | E37: Echiquier Henri IV Pau | F37: ='Feuille des licences'!E37 -> 59 | J37: 30 | K37: Echiquier Henri IV Pau | L37: ='Feuille des licences'!F37 -> 112 | P37: 30 | Q37: Echiquier Henri IV Pau | R37: ='Feuille des licences'!G37 -> 171
D38: 31 | E38: Pau Sarrailh Echecs | F38: ='Feuille des licences'!E38 -> 14 | J38: 31 | K38: Pau Sarrailh Echecs | L38: ='Feuille des licences'!F38 -> 3 | P38: 31 | Q38: Pau Sarrailh Echecs | R38: ='Feuille des licences'!G38 -> 17
D39: 32 | E39: Club d'Echecs Pau Berlioz | F39: ='Feuille des licences'!E39 -> 24 | J39: 32 | K39: Club d'Echecs Pau Berlioz | L39: ='Feuille des licences'!F39 -> 15 | P39: 32 | Q39: Club d'Echecs Pau Berlioz | R39: ='Feuille des licences'!G39 -> 39
D40: 33 | E40: Ecole d'Echecs du Béarn | F40: ='Feuille des licences'!E40 -> 8 | J40: 33 | K40: Ecole d'Echecs du Béarn | L40: ='Feuille des licences'!F40 -> 9 | P40: 33 | Q40: Ecole d'Echecs du Béarn | R40: ='Feuille des licences'!G40 -> 17
D41: 34 | E41: La Tour du Chateau | F41: ='Feuille des licences'!E41 -> 5 | J41: 34 | K41: La Tour du Chateau | L41: ='Feuille des licences'!F41 -> 11 | P41: 34 | Q41: La Tour du Chateau | R41: ='Feuille des licences'!G41 -> 16
D42: 35 | E42: Echiquier Angoumoisin | F42: ='Feuille des licences'!E42 -> 17 | J42: 35 | K42: Echiquier Angoumoisin | L42: ='Feuille des licences'!F42 -> 16 | P42: 35 | Q42: Echiquier Angoumoisin | R42: ='Feuille des licences'!G42 -> 33
D43: 36 | E43: Section echecs amicale laique Barbezilienne | F43: ='Feuille des licences'!E43 -> 6 | J43: 36 | K43: Section echecs amicale laique Barbezilienne | L43: ='Feuille des licences'!F43 -> 14 | P43: 36 | Q43: Section echecs amicale laique Barbezilienne | R43: ='Feuille des licences'!G43 -> 20
D44: 37 | E44: Chasseneuil Animation Loisirs et Culture - CALC | F44: ='Feuille des licences'!E44 -> 14 | J44: 37 | K44: Chasseneuil Animation Loisirs et Culture - CALC | L44: ='Feuille des licences'!F44 -> 18 | P44: 37 | Q44: Chasseneuil Animation Loisirs et Culture - CALC | R44: ='Feuille des licences'!G44 -> 32
D45: 38 | E45: Club d'Echecs de Cognac | F45: ='Feuille des licences'!E45 -> 27 | J45: 38 | K45: Club d'Echecs de Cognac | L45: ='Feuille des licences'!F45 -> 5 | P45: 38 | Q45: Club d'Echecs de Cognac | R45: ='Feuille des licences'!G45 -> 32
D46: 39 | E46: Echiquier Couronnais | F46: ='Feuille des licences'!E46 -> 42 | J46: 39 | K46: Echiquier Couronnais | L46: ='Feuille des licences'!F46 -> 21 | P46: 39 | Q46: Echiquier Couronnais | R46: ='Feuille des licences'!G46 -> 63
D47: 40 | E47: Les Tours Du Montbronnais | F47: ='Feuille des licences'!E47 -> 20 | J47: 40 | K47: Les Tours Du Montbronnais | L47: ='Feuille des licences'!F47 -> 22 | P47: 40 | Q47: Les Tours Du Montbronnais | R47: ='Feuille des licences'!G47 -> 42
D48: 41 | E48: Aytré - La Rochelle Echecs | F48: ='Feuille des licences'!E48 -> 29 | J48: 41 | K48: Aytré - La Rochelle Echecs | L48: ='Feuille des licences'!F48 -> 0 | P48: 41 | Q48: Aytré - La Rochelle Echecs | R48: ='Feuille des licences'!G48 -> 29
D49: 42 | E49: Club d'Echecs de Marennes-Oleron | F49: ='Feuille des licences'!E49 -> 16 | J49: 42 | K49: Club d'Echecs de Marennes-Oleron | L49: ='Feuille des licences'!F49 -> 15 | P49: 42 | Q49: Club d'Echecs de Marennes-Oleron | R49: ='Feuille des licences'!G49 -> 31
D50: 43 | E50: Echiquier Rochefortais | F50: ='Feuille des licences'!E50 -> 27 | J50: 43 | K50: Echiquier Rochefortais | L50: ='Feuille des licences'!F50 -> 6 | P50: 43 | Q50: Echiquier Rochefortais | R50: ='Feuille des licences'!G50 -> 33
D51: 44 | E51: La Tour de Germanicus | F51: ='Feuille des licences'!E51 -> 35 | J51: 44 | K51: La Tour de Germanicus | L51: ='Feuille des licences'!F51 -> 86 | P51: 44 | Q51: La Tour de Germanicus | R51: ='Feuille des licences'!G51 -> 121
D52: 45 | E52: Echiquier Surgerien | F52: ='Feuille des licences'!E52 -> 45 | J52: 45 | K52: Echiquier Surgerien | L52: ='Feuille des licences'!F52 -> 71 | P52: 45 | Q52: Echiquier Surgerien | R52: ='Feuille des licences'!G52 -> 116
D53: 46 | E53: Echec et Mat de Bressuire | F53: ='Feuille des licences'!E53 -> 23 | J53: 46 | K53: Echec et Mat de Bressuire | L53: ='Feuille des licences'!F53 -> 8 | P53: 46 | Q53: Echec et Mat de Bressuire | R53: ='Feuille des licences'!G53 -> 31
D54: 47 | E54: Echiquier Niortais | F54: ='Feuille des licences'!E54 -> 55 | J54: 47 | K54: Echiquier Niortais | L54: ='Feuille des licences'!F54 -> 31 | P54: 47 | Q54: Echiquier Niortais | R54: ='Feuille des licences'!G54 -> 86
D55: 48 | E55: Echiquier St Maixentais | F55: ='Feuille des licences'!E55 -> 17 | J55: 48 | K55: Echiquier St Maixentais | L55: ='Feuille des licences'!F55 -> 6 | P55: 48 | Q55: Echiquier St Maixentais | R55: ='Feuille des licences'!G55 -> 23
D56: 49 | E56: Club d'échecs de Thouars | F56: ='Feuille des licences'!E56 -> 12 | J56: 49 | K56: Club d'échecs de Thouars | L56: ='Feuille des licences'!F56 -> 11 | P56: 49 | Q56: Club d'échecs de Thouars | R56: ='Feuille des licences'!G56 -> 23
D57: 50 | E57: Echiquier Poitevin | F57: ='Feuille des licences'!E57 -> 29 | J57: 50 | K57: Echiquier Poitevin | L57: ='Feuille des licences'!F57 -> 19 | P57: 50 | Q57: Echiquier Poitevin | R57: ='Feuille des licences'!G57 -> 48
D58: 51 | E58: C.E. Chatelleraudais | F58: ='Feuille des licences'!E58 -> 5 | J58: 51 | K58: C.E. Chatelleraudais | L58: ='Feuille des licences'!F58 -> 0 | P58: 51 | Q58: C.E. Chatelleraudais | R58: ='Feuille des licences'!G58 -> 5
D59: 52 | E59: Poitiers-Migne Echecs | F59: ='Feuille des licences'!E59 -> 33 | J59: 52 | K59: Poitiers-Migne Echecs | L59: ='Feuille des licences'!F59 -> 2 | P59: 52 | Q59: Poitiers-Migne Echecs | R59: ='Feuille des licences'!G59 -> 35
D60: 53 | E60: Rois et Dames des Trois Cites | F60: ='Feuille des licences'!E60 -> 12 | J60: 53 | K60: Rois et Dames des Trois Cites | L60: ='Feuille des licences'!F60 -> 9 | P60: 53 | Q60: Rois et Dames des Trois Cites | R60: ='Feuille des licences'!G60 -> 21
D61: 54 | E61: Collège d'Argentat | F61: ='Feuille des licences'!E61 -> 5 | J61: 54 | K61: Collège d'Argentat | L61: ='Feuille des licences'!F61 -> 10 | P61: 54 | Q61: Collège d'Argentat | R61: ='Feuille des licences'!G61 -> 15
D62: 55 | E62: Brive Le Cavalier Gaillard | F62: ='Feuille des licences'!E62 -> 43 | J62: 55 | K62: Brive Le Cavalier Gaillard | L62: ='Feuille des licences'!F62 -> 58 | P62: 55 | Q62: Brive Le Cavalier Gaillard | R62: ='Feuille des licences'!G62 -> 101
D63: 56 | E63: Alekhine Brive Chess CE de Brive | F63: ='Feuille des licences'!E63 -> 5 | J63: 56 | K63: Alekhine Brive Chess CE de Brive | L63: ='Feuille des licences'!F63 -> 0 | P63: 56 | Q63: Alekhine Brive Chess CE de Brive | R63: ='Feuille des licences'!G63 -> 5
D64: 57 | E64: Cercle d'Echecs d' Egletons | F64: ='Feuille des licences'!E64 -> 5 | J64: 57 | K64: Cercle d'Echecs d' Egletons | L64: ='Feuille des licences'!F64 -> 53 | P64: 57 | Q64: Cercle d'Echecs d' Egletons | R64: ='Feuille des licences'!G64 -> 58
D65: 58 | E65: Meyssac Echecs | F65: ='Feuille des licences'!E65 -> 9 | J65: 58 | K65: Meyssac Echecs | L65: ='Feuille des licences'!F65 -> 26 | P65: 58 | Q65: Meyssac Echecs | R65: ='Feuille des licences'!G65 -> 35
D66: 59 | E66: Club d'Echecs du Pays de Brive | F66: ='Feuille des licences'!E66 -> 32 | J66: 59 | K66: Club d'Echecs du Pays de Brive | L66: ='Feuille des licences'!F66 -> 72 | P66: 59 | Q66: Club d'Echecs du Pays de Brive | R66: ='Feuille des licences'!G66 -> 104
D67: 60 | E67: Echiquier Tulliste | F67: ='Feuille des licences'!E67 -> 10 | J67: 60 | K67: Echiquier Tulliste | L67: ='Feuille des licences'!F67 -> 3 | P67: 60 | Q67: Echiquier Tulliste | R67: ='Feuille des licences'!G67 -> 13
D68: 61 | E68: Creuse-Echecs | F68: ='Feuille des licences'!E68 -> 5 | J68: 61 | K68: Creuse-Echecs | L68: ='Feuille des licences'!F68 -> 5 | P68: 61 | Q68: Creuse-Echecs | R68: ='Feuille des licences'!G68 -> 10
D69: 62 | E69: Couzeix Chess Club (C3) | F69: ='Feuille des licences'!E69 -> 15 | J69: 62 | K69: Couzeix Chess Club (C3) | L69: ='Feuille des licences'!F69 -> 21 | P69: 62 | Q69: Couzeix Chess Club (C3) | R69: ='Feuille des licences'!G69 -> 36
D70: 63 | E70: Isle Echecs | F70: ='Feuille des licences'!E70 -> 13 | J70: 63 | K70: Isle Echecs | L70: ='Feuille des licences'!F70 -> 9 | P70: 63 | Q70: Isle Echecs | R70: ='Feuille des licences'!G70 -> 22
D71: 64 | E71: LEC Echiquier Limousin | F71: ='Feuille des licences'!E71 -> 70 | J71: 64 | K71: LEC Echiquier Limousin | L71: ='Feuille des licences'!F71 -> 98 | P71: 64 | Q71: LEC Echiquier Limousin | R71: ='Feuille des licences'!G71 -> 168
D72: 65 | E72: ASSJ Echecs - Cercle Philidor Saint-Junien | F72: ='Feuille des licences'!E72 -> 6 | J72: 65 | K72: ASSJ Echecs - Cercle Philidor Saint-Junien | L72: ='Feuille des licences'!F72 -> 0 | P72: 65 | Q72: ASSJ Echecs - Cercle Philidor Saint-Junien | R72: ='Feuille des licences'!G72 -> 6
E77: Chaque colonne devra subir un tri par ordre décroissant

Sheet Grille saisie 1
B2: VF | C2: SF+ | D2: SF | E2: JF | F2: CF | G2: MF | H2: BF | I2: PuF | J2: PoF | K2: PpF | L2: VM | M2: SM+ | N2: SM | O2: JM | P2: CM | Q2: MM | R2: BM | S2: PuM | T2: PoM | U2: PpM | W2: Largeur de colonne : 4,3
B3: 1 CERCLE D'ÉCHECS CYRANO | U3: AQ 24 | W3: Page 1 : de 2 à 43
W4: Page 2 : de 45 à 87
B5: 2 LE FLEIX-LA TOUR INFERNALE (ALAC) | U5: AQ 24 | W5: Page 3 : de 89 à 130
W6: Page 4 : de 132 à 171
B7: 3 ÉCHIQUIER DU NONTRONNAIS | U7: AQ 24 | W7: Page 5 : de 173 à 209
W8: Page 6 : de 211 à 250
B11: 4 ÉCHIQUIER SALIGNACOIS | U11: AQ 24
B13: 5 L'ÉCHIQUIER DE SAINT SOUR | U13: AQ 24
B15: 6 AGJA - ÉCHIQUIER AQUITAINE | U15: AQ 33
B21: VF | C21: SF+ | D21: SF | E21: JF | F21: CF | G21: MF | H21: BF | I21: PuF | J21: PoF | K21: PpF | L21: VM | M21: SM+ | N21: SM | O21: JM | P21: CM | Q21: MM | R21: BM | S21: PuM | T21: PoM | U21: PpM
B22: 7 BORDEAUX ASPOM ÉCHECS | U22: AQ 33
B28: 8 UNION SAINT BRUNO-BORDEAUX ÉCHECS | U28: AQ 33
B33: 9 ÉCHIQUIER BORDELAIS | U33: AQ 33
B43: VF | C43: SF+ | D43: SF | E43: JF | F43: CF | G43: MF | H43: BF | I43: PuF | J43: PoF | K43: PpF | L43: VM | M43: SM+ | N43: SM | O43: JM | P43: CM | Q43: MM | R43: BM | S43: PuM | T43: PoM | U43: PpM
B45: VF | C45: SF+ | D45: SF | E45: JF | F45: CF | G45: MF | H45: BF | I45: PuF | J45: PoF | K45: PpF | L45: VM | M45: SM+ | N45: SM | O45: JM | P45: CM | Q45: MM | R45: BM | S45: PuM | T45: PoM | U45: PpM
B46: 10 ÉCHIQUIER ALBERT LE GRAND | U46: AQ 33
B56: 11 ÉCHIQUIER CLUB CREONNAIS | U56: AQ 33
B61: 12 GUJAN-MESTRAS ÉCHECS | U61: AQ 33
B65: 13 ÉCHECS CLUB RÉOLAIS | U65: AQ 33
B67: VF | C67: SF+ | D67: SF | E67: JF | F67: CF | G67: MF | H67: BF | I67: PuF | J67: PoF | K67: PpF | L67: VM | M67: SM+ | N67: SM | O67: JM | P67: CM | Q67: MM | R67: BM | S67: PuM | T67: PoM | U67: PpM
B68: 14 ÉCHIQUIER MÉDOCAIN | U68: AQ 33
B72: 15 ÉCHIQUIER LIBOURNAIS | U72: AQ 33
B78: 16 MERIGNAC ÉCHECS | U78: AQ 33
B80: 17 PAREMPUYRE ÉCHECS | U80: AQ 33
B82: 18 ÉCHIQUIER TRESSOIS | U82: AQ 33
B87: VF | C87: SF+ | D87: SF | E87: JF | F87: CF | G87: MF | H87: BF | I87: PuF | J87: PoF | K87: PpF | L87: VM | M87: SM+ | N87: SM | O87: JM | P87: CM | Q87: MM | R87: BM | S87: PuM | T87: PoM | U87: PpM
B89: VF | C89: SF+ | D89: SF | E89: JF | F89: CF | G89: MF | H89: BF | I89: PuF | J89: PoF | K89: PpF | L89: VM | M89: SM+ | N89: SM | O89: JM | P89: CM | Q89: MM | R89: BM | S89: PuM | T89: PoM | U89: PpM
B90: 19 DAX ÉCHIQUIER DACQUOIS | U90: AQ 40
B92: 20 MIMIZAN LE FOU ENSABLÉ (ASEM) | U92: AQ 40
B94: 21 ÉCHIQUIER MONTOIS | U94: AQ 40
B102: 22 HOSSEGOR ÉCHECS | U102: AQ 40
B104: 23 ÉCHIQUIER AGENAIS | U104: AQ 47
B110: VF | C110: SF+ | D110: SF | E110: JF | F110: CF | G110: MF | H110: BF | I110: PuF | J110: PoF | K110: PpF | L110: VM | M110: SM+ | N110: SM | O110: JM | P110: CM | Q110: MM | R110: BM | S110: PuM | T110: PoM | U110: PpM
B111: 24 ÉCHIQUIER MARMANDAIS | U111: AQ 47
B113: 25 CLUB DES ÉCHECS DU PAYS DE LAUZUN | U113: AQ 47
B117: 26 L'ÉCHIQUIER VILLENEUVOIS | U117: AQ 47
B121: 27 ÉCHIQUIER BAYONNE ADOUR | U121: AQ 64
B123: 28 AVIRON BAYONNAIS ÉCHECS
B130: VF | C130: SF+ | D130: SF | E130: JF | F130: CF | G130: MF | H130: BF | I130: PuF | J130: PoF | K130: PpF | L130: VM | M130: SM+ | N130: SM | O130: JM | P130: CM | Q130: MM | R130: BM | S130: PuM | T130: PoM | U130: PpM
B132: VF | C132: SF+ | D132: SF | E132: JF | F132: CF | G132: MF | H132: BF | I132: PuF | J132: PoF | K132: PpF | L132: VM | M132: SM+ | N132: SM | O132: JM | P132: CM | Q132: MM | R132: BM | S132: PuM | T132: PoM | U132: PpM
B133: 29 ÉCHECS SICSBT | U133: AQ 64
B135: 30 ÉCHIQUIER HENRI IV PAU | U135: AQ 64
B142: 31 PAU SARRAILH ÉCHECS | U142: AQ 64
B144: 32 CLUB D'ÉCHECS PAU BERLIOZ | U144: AQ 64
B146: 33 ÉCOLE D'ÉCHECS DU BEARN | U146: AQ 64
B148: 34 LA TOUR DU CHÂTEAU | U148: AQ 64
B150: VF | C150: SF+ | D150: SF | E150: JF | F150: CF | G150: MF | H150: BF | I150: PuF | J150: PoF | K150: PpF | L150: VM | M150: SM+ | N150: SM | O150: JM | P150: CM | Q150: MM | R150: BM | S150: PuM | T150: PoM | U150: PpM
B151: 35 ÉCHIQUIER ANGOUMOISIN | U151: CP 16
B153: 36 SECTION ÉCHECS AMICALE LAÏQUE BARBEZILIENNE | U153: CP 16
B155: 37 CHASSENEUIL ANIMATION LOISIRS ET CULTURE - CALC | U155: CP 16
B157: 38 CLUB D'ÉCHECS DE COGNAC
B159: 39 ÉCHIQUIER COURONNAIS | U159: CP 16
B163: 40 LES TOURS DU MONTBRONNAIS | U163: CP 16
B167: 41 AYTRÉ - LA ROCHELLE ÉCHECS | U167: CP 17
B169: 42 CLUB D'ÉCHECS DE MARENNES-OLERON | U169: CP 17
B171: VF | C171: SF+ | D171: SF | E171: JF | F171: CF | G171: MF | H171: BF | I171: PuF | J171: PoF | K171: PpF | L171: VM | M171: SM+ | N171: SM | O171: JM | P171: CM | Q171: MM | R171: BM | S171: PuM | T171: PoM | U171: PpM
B173: VF | C173: SF+ | D173: SF | E173: JF | F173: CF | G173: MF | H173: BF | I173: PuF | J173: PoF | K173: PpF | L173: VM | M173: SM+ | N173: SM | O173: JM | P173: CM | Q173: MM | R173: BM | S173: PuM | T173: PoM | U173: PpM
B174: 43 ÉCHIQUIER ROCHEFORTAIS | U174: CP 17
B176: 44 LA TOUR DE GERMANICUS | U176: CP 17
B182: 45 ÉCHIQUIER SURGERIEN | U182: CP 17
B187: 46 ÉCHEC ET MAT DE BRESSUIRE | U187: CP 79
B189: VF | C189: SF+ | D189: SF | E189: JF | F189: CF | G189: MF | H189: BF | I189: PuF | J189: PoF | K189: PpF | L189: VM | M189: SM+ | N189: SM | O189: JM | P189: CM | Q189: MM | R189: BM | S189: PuM | T189: PoM | U189: PpM
B190: 47 ÉCHIQUIER NIORTAIS | U190: CP 79
B195: 48 ÉCHIQUIER SAINT MAIXENTAIS | U195: CP 79
B197: 49 CLUB D'ÉCHECS DE THOUARS | U197: CP 79
B199: 50 ÉCHIQUIER POITEVIN | U199: CP 86
B203: 51 C.E.CHATELLERAUDAIS | U203: CP 86
B205: 52 POITIERS-MIGNE ÉCHECS | U205: CP 86
B207: 53 ROIS ET DAMES DES TROIS CITÉS | U207: CP 86
B209: VF | C209: SF+ | D209: SF | E209: JF | F209: CF | G209: MF | H209: BF | I209: PuF | J209: PoF | K209: PpF | L209: VM | M209: SM+ | N209: SM | O209: JM | P209: CM | Q209: MM | R209: BM | S209: PuM | T209: PoM | U209: PpM
B211: VF | C211: SF+ | D211: SF | E211: JF | F211: CF | G211: MF | H211: BF | I211: PuF | J211: PoF | K211: PpF | L211: VM | M211: SM+ | N211: SM | O211: JM | P211: CM | Q211: MM | R211: BM | S211: PuM | T211: PoM | U211: PpM
B212: 54 COLLÈGE D'ARGENTAT | U212: LIM 19
B214: 55 BRIVE LE CAVALIER GAILLARD | U214: LIM 19
B219: 56 ALEKHINE BRIVE CHESS CE DE BRIVE | U219: LIM 19
B221: 57 CERCLE D'ÉCHECS D'EGLETONS | U221: LIM 19
B225: 58 MEYSSAC ÉCHECS | U225: LIM 19
B227: 59 CLUB D'ÉCHECS DU PAYS DE BRIVE | U227: LIM 19
B232: VF | C232: SF+ | D232: SF | E232: JF | F232: CF | G232: MF | H232: BF | I232: PuF | J232: PoF | K232: PpF | L232: VM | M232: SM+ | N232: SM | O232: JM | P232: CM | Q232: MM | R232: BM | S232: PuM | T232: PoM | U232: PpM
B233: 60 ÉCHIQUIER TULLISTE | U233: LIM 19
B235: 61 CREUSE-ÉCHECS | U235: LIM 23
B237: 62 COUZEIX CHESS CLUB (C3) | U237: LIM 87
B239: 63 ISLES ÉCHECS | U239: LIM 87
B241: 64 LEC ÉCHIQUIER LIMOUSIN | U241: LIM 87
B248: 65 ASSJ ÉCHECS - CERCLE PHILIDOR SAINT-JUNIEN | U248: LIM 87
B250: VF | C250: SF+ | D250: SF | E250: JF | F250: CF | G250: MF | H250: BF | I250: PuF | J250: PoF | K250: PpF | L250: VM | M250: SM+ | N250: SM | O250: JM | P250: CM | Q250: MM | R250: BM | S250: PuM | T250: PoM | U250: PpM
B252: Récupérer les données sur le site de la ligue avec les feuilles de saisie, puis les transcrire sur la grille ci-dessus.

Sheet Grille saisie 2
D4: Licences A | E4: Licences B | F4: Lic. A+B | H4: Licences A | I4: Licences B | J4: Lic. A+B | L4: Licences A | M4: Licences B | N4: Lic. A+B
D5: 1 CYRANO 18+5=23 ; 1 | H5: 23 AGEN 80+48=128 ; 5 | L5: 45 SURGERE 45+71=116 ; 4
B7: Nombre de licences A, nombre de licenceB, total | D7: 2 LE FLEIX 13+3=16 ; 1 | H7: 24 MARMANDE 6+8=14 ; 1 | L7: 46 BRESSUIRE 23+8=31 ; 1
B8: et nombre de lignes à prévoir en fonction du nombre
B9: total de licences par club. | D9: 3 NONTRON 15+27=42 ; 3 | H9: 25 PAYS DE LAUZUN 13+11=44 ; 3 | L9: 47 NIORT 55+31=86 ; 4
D11: 4 SALIGNAC 6+27=33 ; 1 | H11: 26 VILLENEUVE 38+24=62 ; 3 | L11: 48 SAINT MAIXENT 17+6=23 ; 1
D13: 5 SAINT SOUR 4+0=4 ; 1 | H13: 27 BAYONNE 17+15=32 ; 1 | L13: 49 THOUARS 12+11=23 ; 1
D15: 6 AGJA 96+32=128 ; 5 | H15: 28 AVIRON 42+139=181 ; 6 | L15: 50 POITEVIN 29+19=48 ; 3
D17: 7 ASPOM 84+57=141 ; 5 | H17: 29 SICSBT 15+3=18 ; 1 | L17: 51 CHATELLERAUD 5+0=5 ; 1
D19: 8 USB-BE 46+66=112 ; 4 | H19: 30 HENRI IV 59+112=171 ; 6 | L19: 52 POITIERS MIGNE 33+2=35 ; 1
D21: 9 BORDEAUX 149+155=304 ; 9 | H21: 31 SARRAILH 14+3=17 ; 1 | L21: 53 3 CITES 12+9=21 ; 1
D23: 10 ALGB 93+202=295 ; 9 | H23: 32 BERLIOZ 24+15=39 ; 1 | L23: 54 ARGENTAT 5+10=15 ; 1
D25: 11 CREON 54+34=88 ; 4 | H25: 33 BEARN 8+9=17 ; 1 | L25: 55 BRIVE GAILLARD 43+58=101 ; 4
D27: 12 GUJAN 30+27=57 ; 3 | H27: 34 LA TOUR 5+11=16 ; 1 | L27: 56 ALEKHINE 5+0=5 ; 1
D29: 13 LA REOLE 5+7=12 ; 1 | H29: 35 ANGOULEME 17+16=33 ; 1 | L29: 57 EGLETONS 5+53=58 ; 3
D31: 14 MEDOC 39+5=44 ; 3 | H31: 36 BARBEZIEUX 6+14=20 ; 1 | L31: 58 MEYSSAC 9+26=35 ; 1
D33: 15 LIBOURNE 31+97=128 ; 5 | H33: 37 CHASSENEUIL 14+18=32 ; 1 | L33: 59 PAYS DE BRIVE 32+71=103 ; 4
D35: 16 MERIGNAC 9+0=9 ; 1 | H35: 38 COGNAC 27+4=31 ; 1 | L35: 60 TULLE 10+3=13 ; 1
D37: 17 PAREMPUYRE 18+14=32 ; 1 | H37: 39 LA COURONNE 42+21=63 ; 3 | L37: 61 CREUSE 5+5=10 ; 1
D39: 18 TRESSES 47+54=101 ; 4 | H39: 40 MONTBRON 20+22=42 ; 3 | L39: 62 COUZEIX 15+21=36 ; 1
D41: 19 DAX 20+7=27 ; 1 | H41: 41 LA ROCHELLE 29+0=29 ; 1 | L41: 63 ISLES 13+9=22 ; 1
D43: 20 MIMIZAN 6+11=17 ; 1 | H43: 42 OLERON 16+15=31 ; 1 | L43: 64 LIMOUSIN 70+98=168 ; 6
D45: 21 MONT DE MARSAN 59+154=213 ; 7 | H45: 43 ROCHEFORT 27+6=33 ; 1 | L45: 65 AS St Junien 6+0=6 ; 1
D47: 22 HOSSEGOR 13+17=30 ; 1 | H47: 44 GERMANICUS 35+86=121 ; 5
